{"text_format":"1","workbook":"xlsx","n_sheets":2,"sheets":["ГРАФИК И.Б.НОЯБРЬ ","ТАБЕЛЬ  И.Б. НОЯБРЬ"],"not_rendered":{"charts":0,"images":0,"macros":1,"external_links":5,"defined_names":45,"comments":0,"pivot_tables":0},"unopened":[],"bounds":{"document_bytes":16777216,"sheet_cells":100000,"rows_first":2000,"rows_last":500,"rows_between":2000,"halvings":0,"cell_chars":16384,"cell_head_chars":4096},"cells_cut":0,"cells_raw":0,"read":"whole","date_system":"1900"}

{"sheet":"ГРАФИК И.Б.НОЯБРЬ ","index":0,"n_rows":106,"n_cols":250,"rows_kept":106,"cut":false,"hidden":false,"merged":[[105,5,105,7],[105,8,105,21],[105,27,105,56],[105,63,105,95],[103,5,103,7],[103,8,103,21],[103,27,103,56],[103,63,103,95],[104,5,104,7],[104,8,104,21],[104,27,104,56],[104,63,104,95],[101,5,101,7],[101,8,101,21],[101,27,101,56],[101,63,101,95],[102,5,102,7],[102,8,102,21],[102,27,102,56],[102,63,102,95],[99,5,99,7],[99,8,99,21],[99,27,99,56],[99,63,99,95],[100,5,100,7],[100,8,100,21],[100,27,100,56],[100,63,100,95],[97,5,97,7],[97,8,97,21],[97,27,97,56],[97,63,97,95],[98,5,98,7],[98,8,98,21],[98,27,98,56],[98,63,98,95],[95,5,95,7],[95,8,95,21],[95,27,95,56],[95,63,95,95],[96,5,96,7],[96,8,96,21],[96,27,96,56],[96,63,96,95],[89,202,89,207],[89,208,89,213],[89,214,89,220],[92,5,92,21],[94,5,94,7],[94,8,94,21],[94,27,94,56],[94,63,94,95],[89,166,89,171],[89,172,89,177],[89,178,89,183],[89,184,89,189],[89,190,89,195],[89,196,89,201],[89,130,89,135],[89,136,89,141],[89,142,89,147],[89,148,89,153],[89,154,89,159],[89,160,89,165],[89,94,89,99],[89,100,89,105],[89,106,89,111],[89,112,89,117],[89,118,89,123],[89,124,89,129],[89,58,89,63],[89,64,89,69],[89,70,89,75],[89,76,89,81],[89,82,89,87],[89,88,89,93],[89,24,89,27],[89,28,89,33],[89,34,89,39],[89,40,89,45],[89,46,89,51],[89,52,89,57],[88,184,88,189],[88,190,88,195],[88,196,88,201],[88,202,88,207],[88,208,88,213],[88,214,88,220],[88,148,88,153],[88,154,88,159],[88,160,88,165],[88,166,88,171],[88,172,88,177],[88,178,88,183],[88,112,88,117],[88,118,88,123],[88,124,88,129],[88,130,88,135],[88,136,88,141],[88,142,88,147],[88,76,88,81],[88,82,88,87],[88,88,88,93],[88,94,88,99],[88,100,88,105],[88,106,88,111],[87,208,87,213],[88,24,88,27],[88,28,88,33],[88,34,88,39],[88,40,88,45],[88,46,88,51],[88,52,88,57],[88,58,88,63],[88,64,88,69],[88,70,88,75],[87,172,87,177],[87,178,87,183],[87,184,87,189],[87,190,87,195],[87,196,87,201],[87,202,87,207],[87,136,87,141],[87,142,87,147],[87,148,87,153],[87,154,87,159],[87,160,87,165],[87,166,87,171],[87,100,87,105],[87,106,87,111],[87,112,87,117],[87,118,87,123],[87,124,87,129],[87,130,87,135],[87,64,87,69],[87,70,87,75],[87,76,87,81],[87,82,87,87],[87,88,87,93],[87,94,87,99],[86,202,86,207],[86,208,86,213],[86,214,87,220],[86,221,87,228],[87,28,87,33],[87,34,87,39],[87,40,87,45],[87,46,87,51],[87,52,87,57],[87,58,87,63],[86,166,86,171],[86,172,86,177],[86,178,86,183],[86,184,86,189],[86,190,86,195],[86,196,86,201],[86,130,86,135],[86,136,86,141],[86,142,86,147],[86,148,86,153],[86,154,86,159],[86,160,86,165],[86,94,86,99],[86,100,86,105],[86,106,86,111],[86,112,86,117],[86,118,86,123],[86,124,86,129],[86,58,86,63],[86,64,86,69],[86,70,86,75],[86,76,86,81],[86,82,86,87],[86,88,86,93],[85,190,85,195],[85,196,85,201],[85,202,85,207],[85,208,85,213],[86,23,87,27],[86,28,86,33],[86,34,86,39],[86,40,86,45],[86,46,86,51],[86,52,86,57],[85,154,85,159],[85,160,85,165],[85,166,85,171],[85,172,85,177],[85,178,85,183],[85,184,85,189],[85,118,85,123],[85,124,85,129],[85,130,85,135],[85,136,85,141],[85,142,85,147],[85,148,85,153],[85,82,85,87],[85,88,85,93],[85,94,85,99],[85,100,85,105],[85,106,85,111],[85,112,85,117],[84,221,85,228],[85,28,85,33],[85,34,85,39],[85,40,85,45],[85,46,85,51],[85,52,85,57],[85,58,85,63],[85,64,85,69],[85,70,85,75],[85,76,85,81],[84,178,84,183],[84,184,84,189],[84,190,84,195],[84,196,84,201],[84,202,84,207],[84,208,84,213],[84,142,84,147],[84,148,84,153],[84,154,84,159],[84,160,84,165],[84,166,84,171],[84,172,84,177],[84,106,84,111],[84,112,84,117],[84,118,84,123],[84,124,84,129],[84,130,84,135],[84,136,84,141],[84,70,84,75],[84,76,84,81],[84,82,84,87],[84,88,84,93],[84,94,84,99],[84,100,84,105],[83,202,83,207],[83,208,83,213],[84,23,85,27],[84,28,84,33],[84,34,84,39],[84,40,84,45],[84,46,84,51],[84,52,84,57],[84,58,84,63],[84,64,84,69],[83,166,83,171],[83,172,83,177],[83,178,83,183],[83,184,83,189],[83,190,83,195],[83,196,83,201],[83,130,83,135],[83,136,83,141],[83,142,83,147],[83,148,83,153],[83,154,83,159],[83,160,83,165],[83,94,83,99],[83,100,83,105],[83,106,83,111],[83,112,83,117],[83,118,83,123],[83,124,83,129],[83,58,83,63],[83,64,83,69],[83,70,83,75],[83,76,83,81],[83,82,83,87],[83,88,83,93],[82,196,82,201],[82,202,82,207],[82,208,82,213],[82,214,85,220],[82,232,83,232],[83,28,83,33],[83,34,83,39],[83,40,83,45],[83,46,83,51],[83,52,83,57],[82,160,82,165],[82,166,82,171],[82,172,82,177],[82,178,82,183],[82,184,82,189],[82,190,82,195],[82,124,82,129],[82,130,82,135],[82,136,82,141],[82,142,82,147],[82,148,82,153],[82,154,82,159],[82,88,82,93],[82,94,82,99],[82,100,82,105],[82,106,82,111],[82,112,82,117],[82,118,82,123],[82,52,82,57],[82,58,82,63],[82,64,82,69],[82,70,82,75],[82,76,82,81],[82,82,82,87],[81,202,81,207],[81,208,81,212],[81,214,81,220],[82,1,89,4],[82,5,89,22],[82,23,83,27],[82,28,82,33],[82,34,82,39],[82,40,82,45],[82,46,82,51],[81,166,81,171],[81,172,81,177],[81,178,81,183],[81,184,81,189],[81,190,81,195],[81,196,81,201],[81,130,81,135],[81,136,81,141],[81,142,81,147],[81,148,81,153],[81,154,81,159],[81,160,81,165],[81,94,81,99],[81,100,81,105],[81,106,81,111],[81,112,81,117],[81,118,81,123],[81,124,81,129],[81,58,81,63],[81,64,81,69],[81,70,81,75],[81,76,81,81],[81,82,81,87],[81,88,81,93],[81,24,81,27],[81,28,81,33],[81,34,81,39],[81,40,81,45],[81,46,81,51],[81,52,81,57],[80,184,80,189],[80,190,80,195],[80,196,80,201],[80,202,80,207],[80,208,80,212],[80,214,80,220],[80,148,80,153],[80,154,80,159],[80,160,80,165],[80,166,80,171],[80,172,80,177],[80,178,80,183],[80,112,80,117],[80,118,80,123],[80,124,80,129],[80,130,80,135],[80,136,80,141],[80,142,80,147],[80,76,80,80],[80,82,80,87],[80,88,80,93],[80,94,80,99],[80,100,80,105],[80,106,80,111],[79,214,79,220],[80,24,80,27],[80,28,80,33],[80,34,80,39],[80,40,80,45],[80,46,80,51],[80,52,80,57],[80,58,80,63],[80,64,80,69],[80,70,80,75],[79,178,79,183],[79,184,79,189],[79,190,79,195],[79,196,79,201],[79,202,79,207],[79,208,79,212],[79,142,79,147],[79,148,79,153],[79,154,79,159],[79,160,79,165],[79,166,79,171],[79,172,79,177],[79,106,79,111],[79,112,79,117],[79,118,79,123],[79,124,79,129],[79,130,79,135],[79,136,79,141],[79,70,79,75],[79,76,79,81],[79,82,79,87],[79,88,79,93],[79,94,79,99],[79,100,79,105],[78,202,78,207],[78,208,78,212],[79,24,79,27],[79,28,79,33],[79,34,79,39],[79,40,79,45],[79,46,79,51],[79,52,79,57],[79,58,79,63],[79,64,79,69],[78,166,78,171],[78,172,78,177],[78,178,78,183],[78,184,78,189],[78,190,78,195],[78,196,78,201],[78,130,78,135],[78,136,78,141],[78,142,78,147],[78,148,78,153],[78,154,78,159],[78,160,78,165],[78,94,78,99],[78,100,78,105],[78,106,78,111],[78,112,78,117],[78,118,78,123],[78,124,78,129],[78,58,78,63],[78,64,78,69],[78,70,78,75],[78,76,78,80],[78,82,78,87],[78,88,78,93],[78,24,78,27],[78,28,78,33],[78,34,78,39],[78,40,78,45],[78,46,78,51],[78,52,78,57],[77,154,77,159],[77,160,77,165],[77,166,77,171],[77,172,77,177],[77,178,77,183],[77,184,77,189],[77,118,77,123],[77,124,77,129],[77,130,77,135],[77,136,77,141],[77,142,77,147],[77,148,77,153],[77,82,77,87],[77,88,77,93],[77,94,77,99],[77,100,77,105],[77,106,77,111],[77,112,77,117],[76,232,78,232],[77,28,77,33],[77,34,77,39],[77,40,77,45],[77,46,77,51],[77,52,77,57],[77,58,77,63],[77,64,77,69],[77,70,77,75],[77,76,77,80],[76,172,76,177],[76,178,76,183],[76,184,76,189],[76,202,76,207],[76,208,76,212],[76,214,78,220],[77,190,77,195],[77,196,77,201],[77,202,77,207],[77,208,77,212],[76,124,76,129],[76,130,76,135],[76,136,76,141],[76,142,76,147],[76,160,76,165],[76,166,76,171],[76,76,76,80],[76,82,76,87],[76,88,76,93],[76,94,76,99],[76,100,76,105],[76,118,76,123],[75,214,75,220],[76,1,81,4],[76,5,81,21],[76,24,77,27],[76,28,76,33],[76,34,76,39],[76,40,76,45],[76,46,76,51],[76,52,76,57],[76,58,76,62],[75,178,75,183],[75,184,75,189],[75,190,75,195],[75,196,75,201],[75,202,75,207],[75,208,75,212],[75,142,75,147],[75,148,75,153],[75,154,75,159],[75,160,75,165],[75,166,75,171],[75,172,75,177],[75,106,75,111],[75,112,75,117],[75,118,75,123],[75,124,75,129],[75,130,75,135],[75,136,75,141],[75,70,75,75],[75,76,75,80],[75,82,75,87],[75,88,75,93],[75,94,75,99],[75,100,75,105],[74,208,74,212],[74,214,74,220],[75,24,75,27],[75,28,75,33],[75,34,75,39],[75,40,75,45],[75,46,75,51],[75,52,75,57],[75,58,75,63],[75,64,75,69],[74,172,74,177],[74,178,74,183],[74,184,74,189],[74,190,74,195],[74,196,74,201],[74,202,74,207],[74,136,74,141],[74,142,74,147],[74,148,74,153],[74,154,74,159],[74,160,74,165],[74,166,74,171],[74,100,74,105],[74,106,74,111],[74,112,74,117],[74,118,74,123],[74,124,74,129],[74,130,74,135],[74,64,74,69],[74,70,74,75],[74,76,74,80],[74,82,74,87],[74,88,74,93],[74,94,74,99],[73,202,73,207],[73,208,73,212],[73,214,73,220],[74,24,74,27],[74,28,74,33],[74,34,74,39],[74,40,74,45],[74,46,74,51],[74,52,74,57],[74,58,74,63],[73,166,73,171],[73,172,73,177],[73,178,73,183],[73,184,73,189],[73,190,73,195],[73,196,73,201],[73,130,73,135],[73,136,73,141],[73,142,73,147],[73,148,73,153],[73,154,73,159],[73,160,73,165],[73,94,73,99],[73,100,73,105],[73,106,73,111],[73,112,73,117],[73,118,73,123],[73,124,73,129],[73,58,73,63],[73,64,73,69],[73,70,73,75],[73,76,73,81],[73,82,73,87],[73,88,73,93],[72,190,72,195],[72,196,72,201],[72,202,72,207],[72,208,72,212],[73,24,73,27],[73,28,73,33],[73,34,73,39],[73,40,73,45],[73,46,73,51],[73,52,73,57],[72,154,72,159],[72,160,72,165],[72,166,72,171],[72,172,72,177],[72,178,72,183],[72,184,72,189],[72,118,72,123],[72,124,72,129],[72,130,72,135],[72,136,72,141],[72,142,72,147],[72,148,72,153],[72,82,72,87],[72,88,72,93],[72,94,72,99],[72,100,72,105],[72,106,72,111],[72,112,72,117],[72,46,72,51],[72,52,72,57],[72,58,72,63],[72,64,72,69],[72,70,72,75],[72,76,72,80],[71,154,71,159],[71,160,71,165],[71,166,71,171],[71,172,71,177],[71,178,71,183],[71,184,71,189],[71,118,71,123],[71,124,71,129],[71,130,71,135],[71,136,71,141],[71,142,71,147],[71,148,71,153],[71,82,71,87],[71,88,71,93],[71,94,71,99],[71,100,71,105],[71,106,71,111],[71,112,71,117],[70,232,72,232],[71,28,71,33],[71,34,71,39],[71,40,71,45],[71,46,71,51],[71,52,71,57],[71,58,71,63],[71,64,71,69],[71,70,71,75],[71,76,71,80],[70,178,70,183],[70,184,70,189],[70,196,70,201],[70,202,70,207],[70,208,70,212],[70,214,72,220],[71,190,71,195],[71,196,71,201],[71,202,71,207],[71,208,71,213],[70,136,70,141],[70,142,70,147],[70,154,70,159],[70,160,70,165],[70,166,70,171],[70,172,70,177],[70,94,70,99],[70,100,70,105],[70,112,70,117],[70,118,70,123],[70,124,70,129],[70,130,70,135],[70,52,70,57],[70,58,70,63],[70,70,70,75],[70,76,70,80],[70,82,70,87],[70,88,70,93],[70,1,75,4],[70,5,75,21],[70,24,71,27],[70,34,70,39],[70,40,70,45],[70,46,70,51],[72,24,72,27],[72,28,72,33],[72,34,72,39],[72,40,72,45],[69,184,69,189],[69,190,69,195],[69,196,69,201],[69,202,69,207],[69,208,69,213],[69,214,69,220],[69,148,69,153],[69,154,69,159],[69,160,69,165],[69,166,69,171],[69,172,69,177],[69,178,69,183],[69,112,69,117],[69,118,69,123],[69,124,69,129],[69,130,69,135],[69,136,69,141],[69,142,69,147],[69,76,69,81],[69,82,69,87],[69,88,69,93],[69,94,69,99],[69,100,69,105],[69,106,69,111],[68,221,69,228],[69,24,69,27],[69,28,69,33],[69,34,69,39],[69,40,69,45],[69,46,69,51],[69,52,69,57],[69,58,69,63],[69,64,69,69],[69,70,69,75],[68,184,68,189],[68,190,68,195],[68,196,68,201],[68,202,68,207],[68,208,68,213],[68,214,68,220],[68,148,68,153],[68,154,68,159],[68,160,68,165],[68,166,68,171],[68,172,68,177],[68,178,68,183],[68,112,68,117],[68,118,68,123],[68,124,68,129],[68,130,68,135],[68,136,68,141],[68,142,68,147],[68,76,68,81],[68,82,68,87],[68,88,68,93],[68,94,68,99],[68,100,68,105],[68,106,68,111],[67,214,67,220],[68,24,68,27],[68,28,68,33],[68,34,68,39],[68,40,68,45],[68,46,68,51],[68,52,68,57],[68,58,68,63],[68,64,68,69],[68,70,68,75],[67,178,67,183],[67,184,67,189],[67,190,67,195],[67,196,67,201],[67,202,67,207],[67,208,67,213],[67,142,67,147],[67,148,67,153],[67,154,67,159],[67,160,67,165],[67,166,67,171],[67,172,67,177],[67,106,67,111],[67,112,67,117],[67,118,67,123],[67,124,67,129],[67,130,67,135],[67,136,67,141],[67,70,67,75],[67,76,67,81],[67,82,67,87],[67,88,67,93],[67,94,67,99],[67,100,67,105],[66,208,66,213],[66,221,67,228],[67,24,67,27],[67,28,67,33],[67,34,67,39],[67,40,67,45],[67,46,67,51],[67,52,67,57],[67,58,67,63],[67,64,67,69],[66,172,66,177],[66,178,66,183],[66,184,66,189],[66,190,66,195],[66,196,66,201],[66,202,66,207],[66,136,66,141],[66,142,66,147],[66,148,66,153],[66,154,66,159],[66,160,66,165],[66,166,66,171],[66,100,66,105],[66,106,66,111],[66,112,66,117],[66,118,66,123],[66,124,66,129],[66,130,66,135],[66,64,66,69],[66,70,66,75],[66,76,66,81],[66,82,66,87],[66,88,66,93],[66,94,66,99],[66,28,66,33],[66,34,66,39],[66,40,66,45],[66,46,66,51],[66,52,66,57],[66,58,66,63],[65,154,65,159],[65,160,65,165],[65,166,65,171],[65,172,65,177],[65,178,65,183],[65,184,65,189],[65,118,65,123],[65,124,65,129],[65,130,65,135],[65,136,65,141],[65,142,65,147],[65,148,65,153],[65,82,65,87],[65,88,65,93],[65,94,65,99],[65,100,65,105],[65,106,65,111],[65,112,65,117],[65,46,65,51],[65,52,65,57],[65,58,65,63],[65,64,65,69],[65,70,65,75],[65,76,65,81],[64,190,64,195],[64,196,64,201],[64,202,64,207],[64,208,64,213],[64,214,66,220],[64,232,66,232],[65,190,65,195],[65,196,65,201],[65,202,65,207],[65,208,65,213],[64,154,64,159],[64,160,64,165],[64,166,64,171],[64,172,64,177],[64,178,64,183],[64,184,64,189],[64,118,64,123],[64,124,64,129],[64,130,64,135],[64,136,64,141],[64,142,64,147],[64,148,64,153],[64,82,64,87],[64,88,64,93],[64,94,64,99],[64,100,64,105],[64,106,64,111],[64,112,64,117],[64,46,64,51],[64,52,64,57],[64,58,64,63],[64,64,64,69],[64,70,64,75],[64,76,64,81],[64,1,69,4],[64,5,69,21],[64,23,65,27],[64,28,64,33],[64,34,64,39],[64,40,64,45],[65,28,65,33],[65,34,65,39],[65,40,65,45],[66,24,66,27],[63,178,63,183],[63,184,63,189],[63,190,63,195],[63,196,63,201],[63,202,63,207],[63,208,63,213],[63,142,63,147],[63,148,63,153],[63,154,63,159],[63,160,63,165],[63,166,63,171],[63,172,63,177],[63,106,63,111],[63,112,63,117],[63,118,63,123],[63,124,63,129],[63,130,63,135],[63,136,63,141],[63,70,63,75],[63,76,63,81],[63,82,63,87],[63,88,63,93],[63,94,63,99],[63,100,63,105],[62,202,62,207],[62,208,62,213],[62,214,62,220],[63,28,63,33],[63,34,63,39],[63,40,63,45],[63,46,63,51],[63,52,63,57],[63,58,63,61],[63,64,63,69],[62,166,62,171],[62,172,62,177],[62,178,62,183],[62,184,62,189],[62,190,62,195],[62,196,62,201],[62,130,62,135],[62,136,62,141],[62,142,62,147],[62,148,62,153],[62,154,62,159],[62,160,62,165],[62,94,62,99],[62,100,62,105],[62,106,62,111],[62,112,62,117],[62,118,62,123],[62,124,62,129],[62,58,62,63],[62,64,62,69],[62,70,62,75],[62,76,62,81],[62,82,62,87],[62,88,62,93],[61,202,61,207],[61,208,61,213],[61,214,61,220],[61,221,62,228],[62,24,63,27],[62,28,62,33],[62,34,62,39],[62,40,62,45],[62,46,62,51],[62,52,62,57],[61,166,61,171],[61,172,61,177],[61,178,61,183],[61,184,61,189],[61,190,61,195],[61,196,61,201],[61,130,61,135],[61,136,61,141],[61,142,61,147],[61,148,61,153],[61,154,61,159],[61,160,61,165],[61,94,61,99],[61,100,61,105],[61,106,61,111],[61,112,61,117],[61,118,61,123],[61,124,61,129],[61,58,61,63],[61,64,61,69],[61,70,61,75],[61,76,61,81],[61,82,61,87],[61,88,61,93],[61,24,61,27],[61,28,61,33],[61,34,61,39],[61,40,61,45],[61,46,61,51],[61,52,61,57],[60,184,60,189],[60,190,60,195],[60,196,60,201],[60,202,60,207],[60,208,60,213],[60,214,60,220],[60,148,60,153],[60,154,60,159]],"merged_total":2416,"flags":["merged_cut"]}
[null,null,null,null,null,null,null,null,null,null,null,null,null,null,null,null,null,null,null,null,null,null,null,null,null,null,null,null,null,null,null,null,null,null,null,null,null,null,null,null,null,null,null,null,null,null,null,null,null,null,null,null,null,null,null,null,null,null,null,null,null,null,null,null,null,null,null,null,null,null,null,null,null,null,null,null,null,null,null,null,null,null,null,null,null,null,null,null,null,null,null,null,null,null,null,null,null,null,null,null,null,null,null,null,null,null,null,null,null,null,null,null,null,null,null,null,null,null,null,null,null,null,null,null,null,null,null,null,null,null,null,null,null,null,null,null,null,null,null,null,null,null,null,null,null,null,null,null,null,null,null,null,null,null,null,null,null,null,null,null,null,null,null,null,null,null,null,null,null,null,null,null,null,null,null,null,null,null,null,null,null,null,null,null,null,null,null,null,null,null,null,null,null,null,null,null,null,null,null,null,null,null,null,null,null,null,null,null,null,null,null,null,null,null,null,null,null,null,null,null,null,null,null,null,null,null,null,null,null,null,null,null,null,null,null,null,null,null,null,null,null,"СЕГОДНЯ"]
[null,null,null,null,null,null,null,null,null,null,null,null,null,null,null,null,null,null,null,null,null,null,null,null,null,null,null,null,null,null,null,null,null,null,null,null,null,null,null,null,null,null,null,null,null,null,null,null,null,null,null,null,null,null,null,null,null,null,null,null,null,null,null,null,null,null,null,null,null,null,null,null,null,null,null,null,null,null,null,null,null,null,null,null,null,null,null,null,null,null,null,null,null,null,null,null,null,null,null,null,null,null,null,null,null,null,null,null,null,null,null,null,null,null,null,null,null,null,null,null,null,null,null,null,null,null,null,null,null,null,null,null,null,null,null,null,null,null,null,null,null,null,null,null,null,null,null,null,null,null,null,null,null,null,null,null,null,null,null,null,null,null,null,null,null,null,null,null,null,null,null,null,null,null,null,null,null,null,null,null,null,null,null,null,null,null,null,null,null,null,null,null,null,null,null,null,null,null,null,null,null,null,null,null,null,null,null,null,null,null,null,null,null,null,null,null,null,null,null,null,null,null,null,null,null,null,null,null,null,null,null,null,null,null,null,null,null,null,null,null,null,{"$f":"TODAY()","v":"2020-05-28"}]
[null,null,null,null,null,null,null,null,null,null,null,null,null,null,null,null,null,null,null,null,null,null,null,null,null,null,null,null,null,null,null,null,null,null,null,null,null,null,null,null,null,null,null,null,null,null,null,null,null,null,null,null,null,null,null,null,null,null,null,null,null,null,null,null,null,null,null,null,null,null,null,null,null,null,null,null,null,null,null,null,null,null,null,null,null,null,null,null,null,null,null,null,null,null,null,null,null,null,null,null,null,null,null,null,null,null,null,null,null,null,null,null,null,null,null,null,null,null,null,null,null,null,null,null,null,null,null,null,null,null,null,null,null,null,null,null,null,null,null,null,null,null,null,null,null,null,null,null,null,null,null,null,null,null,null,null,null,null,null,null,null,null,null,null,null,null,null,null,null,null,null,null,null,null,null,null,null,null,null,null,null,null,null,null,null,null,null,null,null,null,null,null,null,null,null,null,null,null,null,null,null,null,null,null,null,null,null,null,null,null,null,null,null,null,null,null,null,null,null,null,null,null,null,null,null,null,null,null,null,null,null,null,null,null,null,null,null,null,null,null,null,{"$f":"TEXT(HZ2,\"дддд\")","v":"суббота"}]
[null,null,null,null,null,null,null,null,null,null,null,null,null,null,null,null,null,null,null,null,null,null,null,null,null,null,null,null,null,null,null,null,null,null,null,null,null,null,null,null,null,null,null,null,null,null,null,null,null,null,null,null,null,null,null,null,null,null,null,null,null,null,null,null,null,null,null,null,null,null,null,null,null,null,null,null,null,null,null,null,null,null,null,null,null,null,null,null,null,null,null,null,null,null,null,null,null,null,null,null,null,null,null,null,null,null,null,null,null,null,null,null,null,null,null,null,null,null,null,null,null,null,null,null,null,null,null,null,null,null,null,null,null,null,null,null,null,null,null,null,null,null,null,null,null,null,null,null,null,null,null,null,null,null,null,null,null,null,null,null,null,null,null,null,null,null,null,null,null,null,null,null,null,null,null,null,null,null,null,null,null,null,null,null,null,null,null,null,null,null,null,null,null,null,null,null,null,null,null,null,null,null,null,null,null,null,null,null,null,null,null,null,null,null,null,null,null,null,null,null,null,null,null,null,null,null,null,null,null,null,null,null,null,null,null,null,null,null,null,null,null,{"$f":"WEEKNUM(IH2,2)&\"-ая неделя\"","v":"22-ая неделя"}]
[null,null,null,null,null,null,null,null,{"$f":"IF(OR(#REF!<D3,AND(#REF!<D2,#REF!=D3)),$CN$19,IF(OR(#REF!>D3,AND(#REF!>D2,#REF!=D3)),0,DAY(A2)))","v":{"$error":"#REF!"}},null,null,null,null,null,null,null,null,null,null,null,null,null,null,null,null,null,null,null,null,null,null,null,null,null,null,null,null,null,null,null,null,null,null,null,null,null,null,null,null,null,null,null,null,null,null,null,null,null,null,null,null,null,null,null,null,null,null,null,null,null,null,null,null,null,null,null,null,null,null,null,null,null,null,null,null,null,null,null,null,null,null,null,null,null,null,null,null,null,null,null,null,null,null,null,null,null,null,null,null,null,null,null,null,null,null,null,null,null,null,null,null,null,null,null,null,null,null,null,null,null,null,null,null,null,null,null,null,null,null,null,null,null,null,null,null,null,null,null,null,null,null,null,null,null,null,null,null,null,null,null,null,null,null,null,null,null,null,null,null,null,null,null,null,null,null,null,null,null,null,null,null,null,null,null,null,null,null,null,null,null,null,null,null,null,null,null,null,null,null,null,null,null,null,null,null,null,null,null,null,null,null,null,null,null,null,null,null,null,null,null,null,null,null,null,null,null,null,null,null,null,null,null,null,null,null,null,null,null,null,null,null,{"$f":"IF(OR(#REF!<IC3,AND(#REF!<IC2,#REF!=IC3)),$CN$19,IF(OR(#REF!>IC3,AND(#REF!>IC2,#REF!=IC3)),0,DAY(HZ2)))","v":{"$error":"#REF!"}}]
[null,null,null,null,null,null,null,null,null,null,null,null,null,null,null,null,null,null,null,null,null,null,null,null,null,null,null,null,null,null,null,null,null,null,null,null,null,null,null,null,null,null,null,null,null,null,null,null,null,null,null,null,null,null,null,null,null,null,null,null,null,null,null,null,null,null,null,null,null,null,null,null,null,null,null,null,null,null,null,null,null,null,null,null,null,null,null,null,null,null,null,null,null,null,null,null,null,null,null,null,null,null,null,null,null,null,null,null,null,null,null,null,null,null,null,null,null,null,null,null,null,null,null,null,null,null,null,null,null,null,null,null,null,null,null,null,null,null,null,null,null,null,null,null,null,null,null,null,null,null,null,null,null,null,null,null,null,null,null,null,null,null,null,null,null,null,null,null,null,null,null,null,null,null,null,null,null,null,null,null,null,null,null,null,null,null,null,null,null,null,null,null,null,null,null,null,null,null,null,null,null,null,null,null,null,null,null,null,null,null,null,null,null,null,null,null,null,null,null,null,null,null,null,null,null,null,null,null,null,null,null,null,null,null,null,null,null,null,null,null,"время"]
[null,null,null,null,null,null,null,null,null,null,null,null,null,null,null,null,null,null,null,null,null,null,null,null,null,null,null,null,null,null,null,null,null,null,null,null,null,null,null,null,null,null,null,null,null,null,null,null,null,null,null,null,null,null,null,null,null,null,null,null,null,null,null,null,null,null,null,null,null,null,null,null,null,null,null,null,null,null,null,null,null,null,null,null,null,null,null,null,null,null,null,null,null,null,null,null,null,null,null,null,null,null,null,null,null,null,null,null,null,null,null,null,null,null,null,null,null,null,null,null,null,null,null,null,null,null,null,null,null,null,null,null,null,null,null,null,null,null,null,null,null,null,null,null,null,null,null,null,null,null,null,null,null,null,null,null,null,null,null,null,null,null,null,null,null,null,null,null,null,null,null,null,null,null,null,null,null,null,null,null,null,null,null,null,null,null,null,null,null,null,null,null,null,null,null,null,null,null,null,null,null,null,null,null,null,null,null,null,1,null,null,null,null,null,null,null,null,null,null,null,null,null,null,null,null,null,null,null,null,null,null,null,null,null,null,"количество дней месяца",null,null,{"$f":"VLOOKUP(HY17,'[1]производственный календарь '!B2:F13,5,0)","v":30}]
[null,null,null,null,null,null,null,null,null,null,null,null,null,null,null,null,null,null,null,null,null,null,null,null,null,null,null,null,null,null,null,null,null,null,null,null,null,null,null,null,null,null,null,null,null,null,null,null,null,null,null,null,null,null,null,null,null,null,null,null,null,null,null,null,null,null,null,null,null,null,null,null,null,null,null,null,null,null,null,null,null,null,null,null,null,null,null,null,null,null,null,null,null,null,null,null,null,null,null,null,null,null,null,null,null,null,null,null,null,null,null,null,null,null,null,null,null,null,null,null,null,null,null,null,null,null,null,null,null,null,null,null,null,null,null,null,null,null,null,null,null,null,null,null,null,null,null,null,null,null,null,null,null,null,null,null,null,null,null,null,null,null,null,null,null,null,null,null,null,null,null,null,null,null,null,null,null,null,null,null,null,null,null,null,null,null,null,null,null,null,null,null,null,null,null,null,null,null,null,null,null,null,null,null,null,null,null,null,2,null,null,null,null,null,null,null,null,null,null,null,null,null,null,null,null,null,null,null,null,null,null,null,null,null,null,"месяц",null,null,{"$f":"VLOOKUP(HY17,'[1]производственный календарь '!B2:F13,4,0)","v":11},null,"Столбец1"]
[null,null,null,null,null,null,null,null,null,null,null,null,null,null,null,null,null,null,null,null,null,null,null,null,null,null,null,null,null,null,null,null,null,null,null,null,null,null,null,null,null,null,null,null,null,null,null,null,null,null,null,null,null,null,null,null,null,null,null,null,null,null,null,null,null,null,null,null,null,null,null,null,null,null,null,null,null,null,null,null,null,null,null,null,null,null,null,null,null,null,null,null,null,null,null,null,null,null,null,null,null,null,null,null,null,null,null,null,null,null,null,null,null,null,null,null,null,null,null,null,null,null,null,null,null,null,null,null,null,null,null,null,null,null,null,null,null,null,null,null,null,null,null,null,null,null,null,null,null,null,null,null,null,null,null,null,null,null,null,null,null,null,null,null,null,null,null,null,null,null,null,null,null,null,null,null,null,null,null,null,null,null,null,null,null,null,null,null,null,null,null,null,null,null,null,null,null,null,null,null,null,null,null,null,null,null,null,null,null,null,null,null,null,null,null,null,null,null,null,null,null,null,null,null,null,null,null,null,null,null,null,null,null,null,null,"год",null,null,{"$f":"YEAR(A17)","v":2020},null,0]
[null,null,null,null,null,null,null,null,null,null,null,null,null,null,null,null,null,null,null,null,null,null,null,null,null,null,null,null,null,null,null,null,null,null,null,null,null,null,null,null,null,null,null,null,null,null,null,null,null,null,null,null,null,null,null,null,null,null,null,null,null,null,null,null,null,null,null,null,null,null,null,null,null,null,null,null,null,null,null,null,null,null,null,null,null,null,null,null,null,null,null,null,null,null,null,null,null,null,null,null,null,null,null,null,null,null,null,null,null,null,null,null,null,null,null,null,null,null,null,null,null,null,null,null,null,null,null,null,null,null,null,null,null,null,null,null,null,null,null,null,null,null,null,null,null,null,null,null,null,null,null,null,null,null,null,null,null,null,null,null,null,null,null,null,null,null,null,null,null,null,null,null,null,null,null,null,null,null,null,null,null,null,null,null,null,null,null,null,null,null,"УТВЕРЖДАЮ",null,null,null,null,null,null,null,null,null,null,null,null,null,null,null,null,null,null,null,null,null,null,null,null,null,null,null,null,null,null,null,null,null,null,null,null,null,null,null,null,null,null,null,null,null,null,null,null,null,0.25]
[null,null,null,null,null,null,null,null,null,null,null,null,null,null,null,null,null,null,null,null,null,null,null,null,null,null,null,null,null,null,null,null,null,null,null,null,null,null,null,null,null,null,null,null,null,null,null,null,null,null,null,null,null,null,null,null,null,null,null,null,null,null,null,null,null,null,null,null,null,null,null,null,null,null,null,null,null,null,null,null,null,null,null,null,null,null,null,null,null,null,null,null,null,null,null,null,null,null,null,null,null,null,null,null,null,null,null,null,null,null,null,null,null,null,null,null,null,null,null,null,null,null,null,null,null,null,null,null,null,null,null,null,null,null,null,null,null,null,null,null,null,null,null,null,null,null,null,null,null,null,null,null,null,null,null,null,null,null,null,null,null,null,null,null,null,null,null,null,null,null,null,null,null,null,null,null,null,null,null,null,null,null,null,null,null,null,null,null,null,null," ",null,null,null,null,null,null,null,null,null,null,null,null,null,null,null,null,null,null,null,null,null,null,null,null,null,null,null,null,null,null,null,null,null,null,null,null,null,null,null,null,null,null,null,null,"0бед",null,null,4.1666666666666664E-2,null,0.29166666666666669]
[null,null,null,null,null,null,null,null,null,null,null,null,null,null,null,null,null,null,null,null,null,null,null,null,null,null,null,null,null,null,null,null,null,null,null,null,null,null,null,null,null,null,null,null,null,null,null,null,null,null,null,null,null,null,null,null,null,null,null,null,null,null,null,null,null,null,null,null,null,null,null,null,null,null,null,null,null,null,null,null,null,null,null,null,null,null,null,null,null,null,null,null,null,null,null,null,null,null,null,null,null,null,null,null,null,null,null,null,null,null,null,null,null,null,null,null,null,null,null,null,null,null,null,null,null,null,null,null,null,null,null,null,null,null,null,null,null,null,null,null,null,null,null,null,null,null,null,null,null,null,null,null,null,null,null,null,null,null,null,null,null,null,null,null,null,null,null,null,null,null,null,null,null,null,null,null,null,null,null,null,null,null,null,null,null,null,null,null,null,null,"_______________Л.А.Синченко",null,null,null,null,null,null,null,null,null,null,null,null,null,null,null,null,null,null,null,null,null,null,null,null,null,null,null,null,null,null,null,null,null,null,null,null,null,null,null,null,null,null,null,null,null,null,null,null,null,0.3125]
[null,null,null,null,null,null,null,null,null,null,null,null,null,null,null,null,null,null,null,null,null,null,null,null,null,null,null,null,null,null,null,null,null,null,null,null,null,null,null,null,null,null,null,null,null,null,null,null,null,null,null,null,null,null,null,null,null,null,null,null,null,null,null,null,null,null,null,null,null,null,null,null,null,null,null,null,null,null,null,null,null,null,null,null,null,null,null,null,null,null,null,null,null,null,null,null,null,null,null,null,null,null,null,null,null,null,null,null,null,null,null,null,null,null,null,null,null,null,null,null,null,null,null,null,null,null,null,null,null,null,null,null,null,null,null,null,null,null,null,null,null,null,null,null,null,null,null,null,null,null,null,null,null,null,null,null,null,null,null,null,null,null,null,null,null,null,null,null,null,null,null,null,null,null,null,null,null,null,null,null,null,null,null,null,null,null,null,null,null,"\"__\"________2020",null,null,null,null,null,null,null,null,null,null,null,null,null,null,null,null,null,null,null,null,null,null,null,null,null,null,null,null,null,null,null,null,null,null,null,null,null,null,null,null,null,null,null,null,null,null,null,null,null,null,0.33333333333333331]
[null,null,null,null,null,null,null,null,null,null,null,null,null,null,null,null,null,null,null,null,null,null,null,null,null,null,null,null,null,null,null,null,null,null,null,null,null,null,null,null,null,null,null,null,null,null,null,null,null,null,null,null,null,null,null,null,null,null,null,null,null,null,null,null,null,null,null,null,null,null,null,null,null,null,null,null,null,null,null,null,null,null,null,null,null,null,null,null,null,null,null,null,null,null,null,null,null,null,null,null,null,null,null,null,null,null,null,null,null,null,null,null,null,null,null,null,null,null,null,null,null,null,null,null,null,null,null,null,null,null,null,null,null,null,null,null,null,null,null,null,null,null,null,null,null,null,null,null,null,null,null,null,null,null,null,null,null,null,null,null,null,null,null,null,null,null,null,null,null,null,null,null,null,null,null,null,null,null,null,null,null,null,null,null,null,null,null,null,null,null,null,null,null,null,null,null,null,null,null,null,null,null,null,null,null,null,null,null,null,null,null,null,null,null,null,null,null,null,null,null,null,null,null,null,null,null,null,null,null,null,null,null,null,null,null,null,null,null,null,null,0.375,null,null,"Столбец1","Столбец2","Столбец3","Столбец4","Столбец5",null,1]
["ГРАФИК",null,null,null,null,null,null,null,null,null,null,null,null,null,null,null,null,null,null,null,null,null,null,null,null,null,null,null,null,null,null,null,null,null,null,null,null,null,null,null,null,null,null,null,null,null,null,null,null,null,null,null,null,null,null,null,null,null,null,null,null,null,null,null,null,null,null,null,null,null,null,null,null,null,null,null,null,null,null,null,null,null,null,null,null,null,null,null,null,null,null,null,null,null,null,null,null,null,null,null,null,null,null,null,null,null,null,null,null,null,null,null,null,null,null,null,null,null,null,null,null,null,null,null,null,null,null,null,null,null,null,null,null,null,null,null,null,null,null,null,null,null,null,null,null,null,null,null,null,null,null,null,null,null,null,null,null,null,null,null,null,null,null,null,null,null,null,null,null,null,null,null,null,null,null,null,null,null,null,null,null,null,null,null,null,null,null,null,null,null,null,null,null,null,null,null,null,null,null,null,null,null,null,null,null,null,null,null,null,null,null,null,null,null,null,null,null,null,null,null,null,null,null,null,null,null,null,null,null,null,null,null,null,null,null,null,null,null,null,null,0.41666666666666669,null,null,"Сапожников А.С.,  управляющий участка",null,null,null,null,null,0.5]
["УЧЕТА ИСПОЛЬЗОВАНИЯ РАБОЧЕГО ВРЕМЕНИ ОБСЛУЖИВАЮЩЕГО ПЕРСОНАЛА",null,null,null,null,null,null,null,null,null,null,null,null,null,null,null,null,null,null,null,null,null,null,null,null,null,null,null,null,null,null,null,null,null,null,null,null,null,null,null,null,null,null,null,null,null,null,null,null,null,null,null,null,null,null,null,null,null,null,null,null,null,null,null,null,null,null,null,null,null,null,null,null,null,null,null,null,null,null,null,null,null,null,null,null,null,null,null,null,null,null,null,null,null,null,null,null,null,null,null,null,null,null,null,null,null,null,null,null,null,null,null,null,null,null,null,null,null,null,null,null,null,null,null,null,null,null,null,null,null,null,null,null,null,null,null,null,null,null,null,null,null,null,null,null,null,null,null,null,null,null,null,null,null,null,null,null,null,null,null,null,null,null,null,null,null,null,null,null,null,null,null,null,null,null,null,null,null,null,null,null,null,null,null,null,null,null,null,null,null,null,null,null,null,null,null,null,null,null,null,null,null,null,null,null,null,null,null,null,null,null,null,null,null,null,null,null,null,null,null,null,null,null,null,null,null,null,null,null,null,null,null,null,null,null,null,null,null,null,null,0.45833333333333331,null,null,"Сперанский А.А., слесарь-ремонтник",null,null,null,null,null,0.25]
["2020-11-01",null,null,null,null,null,null,null,null,null,null,null,null,null,null,null,null,null,null,null,null,null,null,null,null,null,null,null,null,null,null,null,null,null,null,null,null,null,null,null,null,null,null,null,null,null,null,null,null,null,null,null,null,null,null,null,null,null,null,null,null,null,null,null,null,null,null,null,null,null,null,null,null,null,null,null,null,null,null,null,null,null,null,null,null,null,null,null,null,null,null,null,null,null,null,null,null,null,null,null,null,null,null,null,null,null,null,null,null,null,null,null,null,null,null,null,null,null,null,null,null,null,null,null,null,null,null,null,null,null,null,null,null,null,null,null,null,null,null,null,null,null,null,null,null,null,null,null,null,null,null,null,null,null,null,null,null,null,null,null,null,null,null,null,null,null,null,null,null,null,null,null,null,null,null,null,null,null,null,null,null,null,null,null,null,null,null,null,null,null,null,null,null,null,null,null,null,null,null,null,null,null,null,null,null,null,null,null,null,null,null,null,null,null,null,null,null,null,null,null,null,null,null,null,null,null,null,null,null,null,null,null,"ноябрь",null,null,null,null,null,null,null,0.5,null,null,"Лагутенко В.А., кассир билетный Ч"]
[null,null,null,null,null,null,null,null,null,null,null,null,null,null,null,null,null,null,null,null,null,null,null,null,null,null,null,null,null,null,null,null,null,null,null,null,null,null,null,null,null,null,null,null,null,null,null,null,null,null,null,null,null,null,null,null,null,null,null,null,null,null,null,null,null,null,null,null,null,null,null,null,null,null,null,null,null,null,null,null,null,null,null,null,null,null,null,null,null,null,null,null,null,null,null,null,null,null,null,null,null,null,null,null,null,null,null,null,null,null,null,null,null,null,null,null,null,null,null,null,null,null,null,null,null,null,null,null,null,null,null,null,null,null,null,null,null,null,null,null,null,null,null,null,null,null,null,null,null,null,null,null,null,null,null,null,null,null,null,null,null,null,null,null,null,null,null,null,null,null,null,null,null,null,null,null,null,null,null,null,null,null,null,null,null,null,null,null,null,null,null,null,null,null,null,null,null,null,null,null,null,null,null,null,null,null,null,null,null,null,null,null,null,null,null,null,null,null,null,null,null,null,null,null,null,null,null,null,null,null,null,null,null,null,null,null,null,null,null,null,0.54166666666666663,null,null,"Купцова Г.И., кассир билетный НЧ"]
["№ п/п",null,null,null,null,"Фамилия Инициалы",null,null,null,null,null,null,null,null,null,null,null,null,null,null,null,null,null,"Ставка",null,null,null,null,"1900-01-01",null,null,null,null,null,2,null,null,null,null,null,"1900-01-03",null,null,null,null,null,4,null,null,null,null,null,5,null,null,null,null,null,6,null,null,null,null,null,7,null,null,null,null,null,8,null,null,null,null,null,9,null,null,null,null,null,10,null,null,null,null,null,11,null,null,null,null,null,12,null,null,null,null,null,13,null,null,null,null,null,14,null,null,null,null,null,15,null,null,null,null,null,16,null,null,null,null,null,17,null,null,null,null,null,18,null,null,null,null,null,19,null,null,null,null,null,20,null,null,null,null,null,21,null,null,null,null,null,22,null,null,null,null,null,23,null,null,null,null,null,24,null,null,null,null,null,25,null,null,null,null,null,26,null,null,null,null,null,27,null,null,null,null,null,28,null,null,null,null,null,{"$f":"IF(29<=$IE$7,29,\"-\")","v":29},null,null,null,null,null,{"$f":"IF(30<=$IE$7,30,\"-\")","v":30},null,null,null,null,null,{"$f":"IF(31<=$IE$7,31,\"-\")","v":"-"},null,null,null,null,null,"ВСЕГО",null,null,null,null,null,null,null,null,null,null,null,null,null,null,null,null,null,null,null,null,null,null,null,null,null,0.58333333333333337,null,null,"Кипкаева Л.А., дворник"]
[null,null,null,null,null,null,null,null,null,null,null,null,null,null,null,null,null,null,null,null,null,null,null,null,null,null,null,null,null,null,null,null,null,null,null,null,null,null,null,null,null,null,null,null,null,null,null,null,null,null,null,null,null,null,null,null,null,null,null,null,null,null,null,null,null,null,null,null,null,null,null,null,null,null,null,null,null,null,null,null,null,null,null,null,null,null,null,null,null,null,null,null,null,null,null,null,null,null,null,null,null,null,null,null,null,null,null,null,null,null,null,null,null,null,null,null,null,null,null,null,null,null,null,null,null,null,null,null,null,null,null,null,null,null,null,null,null,null,null,null,null,null,null,null,null,null,null,null,null,null,null,null,null,null,null,null,null,null,null,null,null,null,null,null,null,null,null,null,null,null,null,null,null,null,null,null,null,null,null,null,null,null,null,null,null,null,null,null,null,null,null,null,null,null,null,null,null,null,null,null,null,null,null,null,null,null,null,null,null,null,null,null,null,null,"дней",null,null,null,null,null,null,null,null,null,null,null,null,null,null,null,null,null,"часов",null,null,null,null,null,null,null,0.625,null,null,"Сапожников А.С.,  управляющий участка"]
[null,null,null,null,null,null,null,null,null,null,null,null,null,null,null,null,null,null,null,null,null,null,null,null,null,null,null,null,{"$f":"IFERROR($A$17+AC19-1,\"-\")","v":"2020-11-01"},null,null,null,null,null,{"$f":"IFERROR($A$17+AI19-1,\"-\")","v":"2020-11-02"},null,null,null,null,null,{"$f":"IFERROR($A$17+AO19-1,\"-\")","v":"2020-11-03"},null,null,null,null,null,{"$f":"IFERROR($A$17+AU19-1,\"-\")","v":"2020-11-04"},null,null,null,null,null,{"$f":"IFERROR($A$17+BA19-1,\"-\")","v":"2020-11-05"},null,null,null,null,null,{"$f":"IFERROR($A$17+BG19-1,\"-\")","v":"2020-11-06"},null,null,null,null,null,{"$f":"IFERROR($A$17+BM19-1,\"-\")","v":"2020-11-07"},null,null,null,null,null,{"$f":"IFERROR($A$17+BS19-1,\"-\")","v":"2020-11-08"},null,null,null,null,null,{"$f":"IFERROR($A$17+BY19-1,\"-\")","v":"2020-11-09"},null,null,null,null,null,{"$f":"IFERROR($A$17+CE19-1,\"-\")","v":"2020-11-10"},null,null,null,null,null,{"$f":"IFERROR($A$17+CK19-1,\"-\")","v":"2020-11-11"},null,null,null,null,null,{"$f":"IFERROR($A$17+CQ19-1,\"-\")","v":"2020-11-12"},null,null,null,null,null,{"$f":"IFERROR($A$17+CW19-1,\"-\")","v":"2020-11-13"},null,null,null,null,null,{"$f":"IFERROR($A$17+DC19-1,\"-\")","v":"2020-11-14"},null,null,null,null,null,{"$f":"IFERROR($A$17+DI19-1,\"-\")","v":"2020-11-15"},null,null,null,null,null,{"$f":"IFERROR($A$17+DO19-1,\"-\")","v":"2020-11-16"},null,null,null,null,null,{"$f":"IFERROR($A$17+DU19-1,\"-\")","v":"2020-11-17"},null,null,null,null,null,{"$f":"IFERROR($A$17+EA19-1,\"-\")","v":"2020-11-18"},null,null,null,null,null,{"$f":"IFERROR($A$17+EG19-1,\"-\")","v":"2020-11-19"},null,null,null,null,null,{"$f":"IFERROR($A$17+EM19-1,\"-\")","v":"2020-11-20"},null,null,null,null,null,{"$f":"IFERROR($A$17+ES19-1,\"-\")","v":"2020-11-21"},null,null,null,null,null,{"$f":"IFERROR($A$17+EY19-1,\"-\")","v":"2020-11-22"},null,null,null,null,null,{"$f":"IFERROR($A$17+FE19-1,\"-\")","v":"2020-11-23"},null,null,null,null,null,{"$f":"IFERROR($A$17+FK19-1,\"-\")","v":"2020-11-24"},null,null,null,null,null,{"$f":"IFERROR($A$17+FQ19-1,\"-\")","v":"2020-11-25"},null,null,null,null,null,{"$f":"IFERROR($A$17+FW19-1,\"-\")","v":"2020-11-26"},null,null,null,null,null,{"$f":"IFERROR($A$17+GC19-1,\"-\")","v":"2020-11-27"},null,null,null,null,null,{"$f":"IFERROR($A$17+GI19-1,\"-\")","v":"2020-11-28"},null,null,null,null,null,{"$f":"IFERROR($A$17+GO19-1,\"-\")","v":"2020-11-29"},null,null,null,null,null,{"$f":"IFERROR($A$17+GU19-1,\"-\")","v":"2020-11-30"},null,null,null,null,null,{"$f":"IFERROR($A$17+HA19-1,\"-\")","v":"-"},null,null,null,null,null,null,null,null,null,null,null,null,null,null,null,null,null,null,null,null,null,null,null,null,null,null,null,null,null,null,null,0.66666666666666663,null,null,"Сперанский А.А., слесарь-ремонтник"]
[null,null,null,null,null,"Сапожников А.С.,  управляющий участка",null,null,null,null,null,null,null,null,null,null,null,null,null,null,null,null,null,1,null,null,null,null,null,null,null,null,null,null,null,null,null,null,null,null,null,null,null,null,null,null,null,null,null,null,null,null,null,null,null,null,null,null,null,null,null,null,null,null,null,null,null,null,null,null,null,null,null,null,null,null,null,null,null,null,null,null,null,null,null,null,null,null,null,null,null,null,null,null,null,null,null,null,null,null,null,null,null,null,null,null,null,null,null,null,null,null,null,null,null,null,null,null,null,null,null,null,null,null,null,null,null,null,null,null,null,null,null,null,null,null,null,null,null,null,null,null,null,null,null,null,null,null,null,null,null,null,null,null,null,null,null,null,null,null,null,null,null,null,null,null,null,null,null,null,null,null,null,null,null,null,null,null,null,null,null,null,null,null,null,null,null,null,null,null,null,null,null,null,null,null,null,null,null,null,null,null,null,null,null,null,null,null,null,null,null,null,null,null,{"$f":"COUNT(AC22:HF22)","v":0},null,null,null,null,null,null,null,null,null,null,null,null,null,null,null,null,null,{"$f":"SUM(IFERROR(AC23:HF23-AC22:HF22-AC24:HF24,0))","v":0},null,{"$f":"VLOOKUP($HY$17,'[1]производственный календарь '!$B2:$F13,2,0)","v":159},null,null,null,null,null,0.70833333333333337,null,null,"Лагутенко В.А., кассир билетный НЧ"]
[null,null,null,null,null,null,null,null,null,null,null,null,null,null,null,null,null,null,null,null,null,null,null,null,null,null,null,null,null,null,null,null,null,null,null,null,null,null,null,null,null,null,null,null,null,null,null,null,null,null,null,null,null,null,null,null,null,null,null,null,null,null,null,null,null,null,null,null,null,null,null,null,null,null,null,null,null,null,null,null,null,null,null,null,null,null,null,null,null,null,null,null,null,null,null,null,null,null,null,null,null,null,null,null,null,null,null,null,null,null,null,null,null,null,null,null,null,null,null,null,null,null,null,null,null,null,null,null,null,null,null,null,null,null,null,null,null,null,null,null,null,null,null,null,null,null,null,null,null,null,null,null,null,null,null,null,null,null,null,null,null,null,null,null,null,null,null,null,null,null,null,null,null,null,null,null,null,null,null,null,null,null,null,null,null,null,null,null,null,null,null,null,null,null,null,null,null,null,null,null,null,null,null,null,null,null,null,null,null,null,null,null,null,null,null,null,null,null,null,null,null,null,null,null,null,null,null,null,null,null,null,null,null,null,null,null,null,null,null,null,0.75,null,null,"Купцова Г.И., кассир билетный НЧ"]
[null,null,null,null,null,null,null,null,null,null,null,null,null,null,null,null,null,null,null,null,null,null,null,"обед","обед",null,null,null,null,null,null,null,null,null,null,null,null,null,null,null,null,null,null,null,null,null,null,null,null,null,null,null,null,null,null,null,null,null,null,null,null,null,null,null,null,null,null,null,null,null,null,null,null,null,null,null,null,null,null,null,null,null,null,null,null,null,null,null,null,null,null,null,null,null,null,null,null,null,null,null,null,null,null,null,null,null,null,null,null,null,null,null,null,null,null,null,null,null,null,null,null,null,null,null,null,null,null,null,null,null,null,null,null,null,null,null,null,null,null,null,null,null,null,null,null,null,null,null,null,null,null,null,null,null,null,null,null,null,null,null,null,null,null,null,null,null,null,null,null,null,null,null,null,null,null,null,null,null,null,null,null,null,null,null,null,null,null,null,null,null,null,null,null,null,null,null,null,null,null,null,null,null,null,null,null,null,null,null,null,null,null,null,null,null,null,null,null,null,null,null,null,null,null,null,null,null,null,null,null,null,null,null,null,null,null,null,null,null,null,null,0.79166666666666663,null,null,"Кипкаева Л.А., дворник"]
[null,null,null,null,null,null,null,null,null,null,null,null,null,null,null,null,null,null,null,null,null,null,null,null,"р.д.",null,null,null,{"$f":"IFERROR(AC23-AC22-AC24,0)","v":0},null,null,null,null,null,{"$f":"IFERROR(AI23-AI22-AI24,0)","v":"00:00:00"},null,null,null,null,null,{"$f":"IFERROR(AO23-AO22-AO24,0)","v":0},null,null,null,null,null,{"$f":"IFERROR(AU23-AU22-AU24,0)","v":0},null,null,null,null,null,{"$f":"IFERROR(BA23-BA22-BA24,0)","v":0},null,null,null,null,null,{"$f":"IFERROR(BG23-BG22-BG24,0)","v":"00:00:00"},null,null,null,null,null,{"$f":"IFERROR(BM23-BM22-BM24,0)","v":0},null,null,null,null,null,{"$f":"IFERROR(BS23-BS22-BS24,0)","v":0},null,null,null,null,null,{"$f":"IFERROR(BY23-BY22-BY24,0)","v":"00:00:00"},null,null,null,null,null,{"$f":"IFERROR(CE23-CE22-CE24,0)","v":0},null,null,null,null,null,{"$f":"IFERROR(CK23-CK22-CK24,0)","v":0},null,null,null,null,null,{"$f":"IFERROR(CQ23-CQ22-CQ24,0)","v":0},null,null,null,null,null,{"$f":"IFERROR(CW23-CW22-CW24,0)","v":"00:00:00"},null,null,null,null,null,{"$f":"IFERROR(DC23-DC22-DC24,0)","v":0},null,null,null,null,null,{"$f":"IFERROR(DI23-DI22-DI24,0)","v":0},null,null,null,null,null,{"$f":"IFERROR(DO23-DO22-DO24,0)","v":"00:00:00"},null,null,null,null,null,{"$f":"IFERROR(DU23-DU22-DU24,0)","v":0},null,null,null,null,null,{"$f":"IFERROR(EA23-EA22-EA24,0)","v":0},null,null,null,null,null,{"$f":"IFERROR(EG23-EG22-EG24,0)","v":0},null,null,null,null,null,{"$f":"IFERROR(EM23-EM22-EM24,0)","v":"00:00:00"},null,null,null,null,null,{"$f":"IFERROR(ES23-ES22-ES24,0)","v":0},null,null,null,null,null,{"$f":"IFERROR(EY23-EY22-EY24,0)","v":0},null,null,null,null,null,{"$f":"IFERROR(FE23-FE22-FE24,0)","v":"00:00:00"},null,null,null,null,null,{"$f":"IFERROR(FK23-FK22-FK24,0)","v":0},null,null,null,null,null,{"$f":"IFERROR(FQ23-FQ22-FQ24,0)","v":0},null,null,null,null,null,{"$f":"IFERROR(FW23-FW22-FW24,0)","v":0},null,null,null,null,null,{"$f":"IFERROR(GC23-GC22-GC24,0)","v":"00:00:00"},null,null,null,null,null,{"$f":"IFERROR(GI23-GI22-GI24,0)","v":0},null,null,null,null,null,{"$f":"IFERROR(GO23-GO22-GO24,0)","v":0},null,null,null,null,null,{"$f":"IFERROR(GU23-GU22-GU24,0)","v":"00:00:00"},null,null,null,null,null,{"$f":"IFERROR(HA23-HA22-HA24,0)","v":0},null,null,null,null,null,null,null,null,null,null,null,null,null,null,null,null,null,null,null,null,null,null,null,{"$f":"SUM(AC25:HF25)","v":0},null,null,null,null,null,null,null,0.83333333333333337,null,null,"Морозова Г.Н., контролёр-посадчик аттракциона НЧ"]
[null,null,null,null,null,null,null,null,null,null,null,null,null,null,null,null,null,null,null,null,null,null,null,"пр","пр",null,null,null,null,null,null,null,null,null,null,null,null,null,null,null,null,null,null,null,null,null,null,null,null,null,null,null,null,null,null,null,null,null,null,null,null,null,null,null,null,null,null,null,null,null,null,null,null,null,null,null,null,null,null,null,null,null,null,null,null,null,null,null,null,null,null,null,null,null,null,null,null,null,null,null,null,null,null,null,null,null,null,null,null,null,null,null,null,null,null,null,null,null,null,null,null,null,null,null,null,null,null,null,null,null,null,null,null,null,null,null,null,null,null,null,null,null,null,null,null,null,null,null,null,null,null,null,null,null,null,null,null,null,null,null,null,null,null,null,null,null,null,null,null,null,null,null,null,null,null,null,null,null,null,null,null,null,null,null,null,null,null,null,null,null,null,null,null,null,null,null,null,null,null,null,null,null,null,null,null,null,null,null,null,null,null,null,null,null,{"$f":"SUM(AC26:HF26)","v":"00:00:00"},null,null,null,null,null,null,null,null,null,null,null,null,null,null,null,null,null,null,null,null,null,null,null,null,null,0.875,null,null,"Нурлиева Е.А., котролёр-посадчик аттракциона Ч"]
[1,null,null,null,null,null,null,null,null,null,null,null,null,null,null,null,null,null,null,null,null,null,null,null,"от",null,null,null,null,null,null,null,null,null,null,null,null,null,null,null,null,null,null,null,null,null,null,null,null,null,null,null,null,null,null,null,null,null,null,null,null,null,null,null,null,null,null,null,null,null,null,null,null,null,null,null,null,null,null,null,null,null,null,null,null,null,null,null,null,null,null,null,null,null,null,null,null,null,null,null,null,null,null,null,null,null,null,null,null,null,null,null,null,null,null,null,null,null,null,null,null,null,null,null,null,null,null,null,null,null,null,null,null,null,null,null,null,null,null,null,null,null,null,null,null,null,null,null,null,null,null,null,null,null,null,null,null,null,null,null,null,null,null,null,null,null,null,null,null,null,null,null,null,null,null,null,null,null,null,null,null,null,null,null,null,null,null,null,null,null,null,null,null,null,null,null,null,null,null,null,null,null,null,null,null,null,null,null,null,null,null,null,null,null,{"$f":"COUNTIF(AC28:HF28,\"=От\")","v":0},null,null,null,null,null,null,null,null,null,null,null,null,null,null,null,null,null,null,null,{"$f":"VLOOKUP($HY$17,'[1]производственный календарь '!$B2:$F$13,2,0)","v":159},null,null,null,null,null,0.91666666666666663,null,null,"Нурлиева Е.А., котролёр-посадчик аттракциона НЧ"]
[null,null,null,null,null,"Сперанский А.А., слесарь-ремонтник",null,null,null,null,null,null,null,null,null,null,null,null,null,null,null,null,null,1,null,null,null,null,null,null,null,null,null,null,null,null,null,null,null,null,null,null,null,null,null,null,null,null,null,null,null,null,null,null,null,null,null,null,null,null,null,null,null,null,null,null,null,null,null,null,null,null,null,null,null,null,null,null,null,null,null,null,null,null,null,null,null,null,null,null,null,null,null,null,null,null,null,null,null,null,null,null,null,null,null,null,null,null,null,null,null,null,null,null,null,null,null,null,null,null,null,null,null,null,null,null,null,null,null,null,null,null,null,null,null,null,null,null,null,null,null,null,null,null,null,null,null,null,null,null,null,null,null,null,null,null,null,null,null,null,null,null,null,null,null,null,null,null,null,null,null,null,null,null,null,null,null,null,null,null,null,null,null,null,null,null,null,null,null,null,null,null,null,null,null,null,null,null,null,null,null,null,null,null,null,null,null,null,null,null,null,null,null,null,{"$f":"COUNT(AC28:HF28)","v":0},null,null,null,null,null,null,null,null,null,null,null,null,null,null,null,null,null,{"$f":"SUM(IFERROR(AC29:HF29-AC28:HF28-AC30:HF30,0))","v":0},null,null,null,null,null,null,null,0.95833333333333337,null,null,"Хомченко Л.Е., контролёр-посадчик аттракциона НЧ"]
[null,null,null,null,null,null,null,null,null,null,null,null,null,null,null,null,null,null,null,null,null,null,null,null,null,null,null,null,null,null,null,null,null,null,null,null,null,null,null,null,null,null,null,null,null,null,null,null,null,null,null,null,null,null,null,null,null,null,null,null,null,null,null,null,null,null,null,null,null,null,null,null,null,null,null,null,null,null,null,null,null,null,null,null,null,null,null,null,null,null,null,null,null,null,null,null,null,null,null,null,null,null,null,null,null,null,null,null,null,null,null,null,null,null,null,null,null,null,null,null,null,null,null,null,null,null,null,null,null,null,null,null,null,null,null,null,null,null,null,null,null,null,null,null,null,null,null,null,null,null,null,null,null,null,null,null,null,null,null,null,null,null,null,null,null,null,null,null,null,null,null,null,null,null,null,null,null,null,null,null,null,null,null,null,null,null,null,null,null,null,null,null,null,null,null,null,null,null,null,null,null,null,null,null,null,null,null,null,null,null,null,null,null,null,null,null,null,null,null,null,null,null,null,null,null,null,null,null,null,null,null,null,null,null,null,null,null,null,null,null,1,null,null,"Кондратюк Н.В., сторож"]
[null,null,null,null,null,null,null,null,null,null,null,null,null,null,null,null,null,null,null,null,null,null,null,"обед","обед",null,null,null,null,null,null,null,null,null,null,null,null,null,null,null,null,null,null,null,null,null,null,null,null,null,null,null,null,null,null,null,null,null,null,null,null,null,null,null,null,null,null,null,null,null,null,null,null,null,null,null,null,null,null,null,null,null,null,null,null,null,null,null,null,null,null,null,null,null,null,null,null,null,null,null,null,null,null,null,null,null,null,null,null,null,null,null,null,null,null,null,null,null,null,null,null,null,null,null,null,null,null,null,null,null,null,null,null,null,null,null,null,null,null,null,null,null,null,null,null,null,null,null,null,null,null,null,null,null,null,null,null,null,null,null,null,null,null,null,null,null,null,null,null,null,null,null,null,null,null,null,null,null,null,null,null,null,null,null,null,null,null,null,null,null,null,null,null,null,null,null,null,null,null,null,null,null,null,null,null,null,null,null,null,null,null,null,null,null,null,null,null,null,null,null,null,null,null,null,null,null,null,null,null,null,null,null,null,null,null,null,null,null,null,null,null,null,null,"Лагутенко В.А., кассир билетный  НЧ"]
[null,null,null,null,null,null,null,null,null,null,null,null,null,null,null,null,null,null,null,null,null,null,null,null,"р.д.",null,null,null,{"$f":"IFERROR(AC29-AC28-AC30,0)","v":"00:00:00"},null,null,null,null,null,{"$f":"IFERROR(AI29-AI28-AI30,0)","v":"00:00:00"},null,null,null,null,null,{"$f":"IFERROR(AO29-AO28-AO30,0)","v":0},null,null,null,null,null,{"$f":"IFERROR(AU29-AU28-AU30,0)","v":0},null,null,null,null,null,{"$f":"IFERROR(BA29-BA28-BA30,0)","v":"00:00:00"},null,null,null,null,null,{"$f":"IFERROR(BG29-BG28-BG30,0)","v":"00:00:00"},null,null,null,null,null,{"$f":"IFERROR(BM29-BM28-BM30,0)","v":"00:00:00"},null,null,null,null,null,{"$f":"IFERROR(BS29-BS28-BS30,0)","v":"00:00:00"},null,null,null,null,null,{"$f":"IFERROR(BY29-BY28-BY30,0)","v":"00:00:00"},null,null,null,null,null,{"$f":"IFERROR(CE29-CE28-CE30,0)","v":0},null,null,null,null,null,{"$f":"IFERROR(CK29-CK28-CK30,0)","v":0},null,null,null,null,null,{"$f":"IFERROR(CQ29-CQ28-CQ30,0)","v":"00:00:00"},null,null,null,null,null,{"$f":"IFERROR(CW29-CW28-CW30,0)","v":"00:00:00"},null,null,null,null,null,{"$f":"IFERROR(DC29-DC28-DC30,0)","v":"00:00:00"},null,null,null,null,null,{"$f":"IFERROR(DI29-DI28-DI30,0)","v":"00:00:00"},null,null,null,null,null,{"$f":"IFERROR(DO29-DO28-DO30,0)","v":"00:00:00"},null,null,null,null,null,{"$f":"IFERROR(DU29-DU28-DU30,0)","v":0},null,null,null,null,null,{"$f":"IFERROR(EA29-EA28-EA30,0)","v":0},null,null,null,null,null,{"$f":"IFERROR(EG29-EG28-EG30,0)","v":"00:00:00"},null,null,null,null,null,{"$f":"IFERROR(EM29-EM28-EM30,0)","v":"00:00:00"},null,null,null,null,null,{"$f":"IFERROR(ES29-ES28-ES30,0)","v":0},null,null,null,null,null,{"$f":"IFERROR(EY29-EY28-EY30,0)","v":0},null,null,null,null,null,{"$f":"IFERROR(FE29-FE28-FE30,0)","v":"00:00:00"},null,null,null,null,null,{"$f":"IFERROR(FK29-FK28-FK30,0)","v":0},null,null,null,null,null,{"$f":"IFERROR(FQ29-FQ28-FQ30,0)","v":0},null,null,null,null,null,{"$f":"IFERROR(FW29-FW28-FW30,0)","v":"00:00:00"},null,null,null,null,null,{"$f":"IFERROR(GC29-GC28-GC30,0)","v":"00:00:00"},null,null,null,null,null,{"$f":"IFERROR(GI29-GI28-GI30,0)","v":"00:00:00"},null,null,null,null,null,{"$f":"IFERROR(GO29-GO28-GO30,0)","v":"00:00:00"},null,null,null,null,null,{"$f":"IFERROR(GU29-GU28-GU30,0)","v":"00:00:00"},null,null,null,null,null,{"$f":"IFERROR(HA29-HA28-HA30,0)","v":0},null,null,null,null,null,null,null,null,null,null,null,null,null,null,null,null,null,null,null,null,null,null,null,{"$f":"SUM(AC31:HF31)","v":0},null,{"$f":"VLOOKUP($HY$17,'[1]производственный календарь '!$B2:$F13,2,0)","v":159},null,null,null,null,null,null,null,null,"Купцова Г.И., кассир билетный Ч"]
[null,null,null,null,null,null,null,null,null,null,null,null,null,null,null,null,null,null,null,null,null,null,null,"пр","пр",null,null,null,null,null,null,null,null,null,null,null,null,null,null,null,null,null,null,null,null,null,null,null,null,null,null,null,null,null,null,null,null,null,null,null,null,null,null,null,null,null,null,null,null,null,null,null,null,null,null,null,null,null,null,null,null,null,null,null,null,null,null,null,null,null,null,null,null,null,null,null,null,null,null,null,null,null,null,null,null,null,null,null,null,null,null,null,null,null,null,null,null,null,null,null,null,null,null,null,null,null,null,null,null,null,null,null,null,null,null,null,null,null,null,null,null,null,null,null,null,null,null,null,null,null,null,null,null,null,null,null,null,null,null,null,null,null,null,null,null,null,null,null,null,null,null,null,null,null,null,null,null,null,null,null,null,null,null,null,null,null,null,null,null,null,null,null,null,null,null,null,null,null,null,null,null,null,null,null,null,null,null,null,null,null,null,null,null,null,{"$f":"SUM(AC32:HF32)","v":"00:00:00"},null,null,null,null,null,null,null,null,null,null,null,null,null,null,null,null,null,null,null,null,null,null,null,null,null,null,null,null,"Морозова Г.Н., контролёр-посадчик аттракциона Ч"]
[2,null,null,null,null,null,null,null,null,null,null,null,null,null,null,null,null,null,null,null,null,null,null,null,"от",null,null,null,null,null,null,null,null,null,null,null,null,null,null,null,null,null,null,null,null,null,null,null,null,null,null,null,null,null,null,null,null,null,null,null,null,null,null,null,null,null,null,null,null,null,null,null,null,null,null,null,null,null,null,null,null,null,null,null,null,null,null,null,null,null,null,null,null,null,null,null,null,null,null,null,null,null,null,null,null,null,null,null,null,null,null,null,null,null,null,null,null,null,null,null,null,null,null,null,null,null,null,null,null,null,null,null,null,null,null,null,null,null,null,null,null,null,null,null,null,null,null,null,null,null,null,null,null,null,null,null,null,null,null,null,null,null,null,null,null,null,null,null,null,null,null,null,null,null,null,null,null,null,null,null,null,null,null,null,null,null,null,null,null,null,null,null,null,null,null,null,null,null,null,null,null,null,null,null,null,null,null,null,null,null,null,null,null,null,{"$f":"COUNTIF(AC34:HF34,\"=От\")","v":0},null,null,null,null,null,null,null,null,null,null,null,null,null,null,null,null,null,null,null,null,null,null,null,null,null,null,null,null,"Хомченко Л.Е., контролёр-посадчик аттракциона Ч"]
[null,null,null,null,null,"Лагутенко В.А., кассир билетный Ч",null,null,null,null,null,null,null,null,null,null,null,null,null,null,null,null,null,1,null,null,null,null,null,null,null,null,null,null,null,null,null,null,null,null,null,null,null,null,null,null,null,null,null,null,null,null,null,null,null,null,null,null,null,null,null,null,null,null,null,null,null,null,null,null,null,null,null,null,null,null,null,null,null,null,null,null,null,null,null,null,null,null,null,null,null,null,null,null,null,null,null,null,null,null,null,null,null,null,null,null,null,null,null,null,null,null,null,null,null,null,null,null,null,null,null,null,null,null,null,null,null,null,null,null,null,null,null,null,null,null,null,null,null,null,null,null,null,null,null,null,null,null,null,null,null,null,null,null,null,null,null,null,null,null,null,null,null,null,null,null,null,null,null,null,null,null,null,null,null,null,null,null,null,null,null,null,null,null,null,null,null,null,null,null,null,null,null,null,null,null,null,null,null,null,null,null,null,null,null,null,null,null,null,null,null,null,null,null,{"$f":"COUNT(AC34:HF34)","v":0},null,null,null,null,null,null,null,null,null,null,null,null,null,null,null,null,null,{"$f":"SUM(IFERROR(AC35:HF35-AC34:HF34-AC36:HF36,0))","v":0},null,null,null,null,null,null,null,null,null,null,"Чижова В.В., контролёр-посадчик аттракциона"]
[null,null,null,null,null,null,null,null,null,null,null,null,null,null,null,null,null,null,null,null,null,null,null,null,null,null,null,null,null,null,null,null,null,null,null,null,null,null,null,null,null,null,null,null,null,null,null,null,null,null,null,null,null,null,null,null,null,null,null,null,null,null,null,null,null,null,null,null,null,null,null,null,null,null,null,null,null,null,null,null,null,null,null,null,null,null,null,null,null,null,null,null,null,null,null,null,null,null,null,null,null,null,null,null,null,null,null,null,null,null,null,null,null,null,null,null,null,null,null,null,null,null,null,null,null,null,null,null,null,null,null,null,null,null,null,null,null,null,null,null,null,null,null,null,null,null,null,null,null,null,null,null,null,null,null,null,null,null,null,null,null,null,null,null,null,null,null,null,null,null,null,null,null,null,null,null,null,null,null,null,null,null,null,null,null,null,null,null,null,null,null,null,null,null,null,null,null,null,null,null,null,null,null,null,null,null,null,null,null,null,null,null,null,null,null,null,null,null,null,null,null,null,null,null,null,null,null,null,null,null,null,null,null,null,null,null,null,null,null,null,null,null,null,"Середка С.Л., контролёр-посадчик аттракциона"]
[null,null,null,null,null,null,null,null,null,null,null,null,null,null,null,null,null,null,null,null,null,null,null,"обед","обед"]
[null,null,null,null,null,null,null,null,null,null,null,null,null,null,null,null,null,null,null,null,null,null,null,null,"р.д.",null,null,null,{"$f":"IFERROR(AC35-AC34-AC36,0)","v":"00:00:00"},null,null,null,null,null,{"$f":"IFERROR(AI35-AI34-AI36,0)","v":"00:00:00"},null,null,null,null,null,{"$f":"IFERROR(AO35-AO34-AO36,0)","v":0},null,null,null,null,null,{"$f":"IFERROR(AU35-AU34-AU36,0)","v":0},null,null,null,null,null,{"$f":"IFERROR(BA35-BA34-BA36,0)","v":0},null,null,null,null,null,{"$f":"IFERROR(BG35-BG34-BG36,0)","v":"00:00:00"},null,null,null,null,null,{"$f":"IFERROR(BM35-BM34-BM36,0)","v":"00:00:00"},null,null,null,null,null,{"$f":"IFERROR(BS35-BS34-BS36,0)","v":"00:00:00"},null,null,null,null,null,{"$f":"IFERROR(BY35-BY34-BY36,0)","v":"00:00:00"},null,null,null,null,null,{"$f":"IFERROR(CE35-CE34-CE36,0)","v":0},null,null,null,null,null,{"$f":"IFERROR(CK35-CK34-CK36,0)","v":0},null,null,null,null,null,{"$f":"IFERROR(CQ35-CQ34-CQ36,0)","v":0},null,null,null,null,null,{"$f":"IFERROR(CW35-CW34-CW36,0)","v":"00:00:00"},null,null,null,null,null,{"$f":"IFERROR(DC35-DC34-DC36,0)","v":"00:00:00"},null,null,null,null,null,{"$f":"IFERROR(DI35-DI34-DI36,0)","v":"00:00:00"},null,null,null,null,null,{"$f":"IFERROR(DO35-DO34-DO36,0)","v":"00:00:00"},null,null,null,null,null,{"$f":"IFERROR(DU35-DU34-DU36,0)","v":0},null,null,null,null,null,{"$f":"IFERROR(EA35-EA34-EA36,0)","v":0},null,null,null,null,null,{"$f":"IFERROR(EG35-EG34-EG36,0)","v":0},null,null,null,null,null,{"$f":"IFERROR(EM35-EM34-EM36,0)","v":"00:00:00"},null,null,null,null,null,{"$f":"IFERROR(ES35-ES34-ES36,0)","v":"00:00:00"},null,null,null,null,null,{"$f":"IFERROR(EY35-EY34-EY36,0)","v":"00:00:00"},null,null,null,null,null,{"$f":"IFERROR(FE35-FE34-FE36,0)","v":"00:00:00"},null,null,null,null,null,{"$f":"IFERROR(FK35-FK34-FK36,0)","v":0},null,null,null,null,null,{"$f":"IFERROR(FQ35-FQ34-FQ36,0)","v":0},null,null,null,null,null,{"$f":"IFERROR(FW35-FW34-FW36,0)","v":0},null,null,null,null,null,{"$f":"IFERROR(GC35-GC34-GC36,0)","v":"00:00:00"},null,null,null,null,null,{"$f":"IFERROR(GI35-GI34-GI36,0)","v":"00:00:00"},null,null,null,null,null,{"$f":"IFERROR(GO35-GO34-GO36,0)","v":"00:00:00"},null,null,null,null,null,{"$f":"IFERROR(GU35-GU34-GU36,0)","v":"00:00:00"},null,null,null,null,null,{"$f":"IFERROR(HA35-HA34-HA36,0)","v":0},null,null,null,null,null,null,null,null,null,null,null,null,null,null,null,null,null,null,null,null,null,null,null,{"$f":"SUM(AC37:HF37)","v":0},null,{"$f":"VLOOKUP($HY$17,'[1]производственный календарь '!$B$2:$F$13,2,0)","v":159}]
[null,null,null,null,null,null,null,null,null,null,null,null,null,null,null,null,null,null,null,null,null,null,null,"пр","пр",null,null,null,null,null,null,null,null,null,null,null,null,null,null,null,null,null,null,null,null,null,null,null,null,null,null,null,null,null,null,null,null,null,null,null,null,null,null,null,null,null,null,null,null,null,null,null,null,null,null,null,null,null,null,null,null,null,null,null,null,null,null,null,null,null,null,null,null,null,null,null,null,null,null,null,null,null,null,null,null,null,null,null,null,null,null,null,null,null,null,null,null,null,null,null,null,null,null,null,null,null,null,null,null,null,null,null,null,null,null,null,null,null,null,null,null,null,null,null,null,null,null,null,null,null,null,null,null,null,null,null,null,null,null,null,null,null,null,null,null,null,null,null,null,null,null,null,null,null,null,null,null,null,null,null,null,null,null,null,null,null,null,null,null,null,null,null,null,null,null,null,null,null,null,null,null,null,null,null,null,null,null,null,null,null,null,null,null,null,{"$f":"SUM(AC38:HF38)","v":"00:00:00"}]
[3,null,null,null,null,null,null,null,null,null,null,null,null,null,null,null,null,null,null,null,null,null,null,null,"от",null,null,null,null,null,null,null,null,null,null,null,null,null,null,null,null,null,null,null,null,null,null,null,null,null,null,null,null,null,null,null,null,null,null,null,null,null,null,null,null,null,null,null,null,null,null,null,null,null,null,null,null,null,null,null,null,null,null,null,null,null,null,null,null,null,null,null,null,null,null,null,null,null,null,null,null,null,null,null,null,null,null,null,null,null,null,null,null,null,null,null,null,null,null,null,null,null,null,null,null,null,null,null,null,null,null,null,null,null,null,null,null,null,null,null,null,null,null,null,null,null,null,null,null,null,null,null,null,null,null,null,null,null,null,null,null,null,null,null,null,null,null,null,null,null,null,null,null,null,null,null,null,null,null,null,null,null,null,null,null,null,null,null,null,null,null,null,null,null,null,null,null,null,null,null,null,null,null,null,null,null,null,null,null,null,null,null,null,null,{"$f":"COUNTIF(AC40:HF40,\"=От\")","v":0}]
[null,null,null,null,null,"Купцова Г.И., кассир билетный НЧ",null,null,null,null,null,null,null,null,null,null,null,null,null,null,null,null,null,1,null,null,null,null,null,null,null,null,null,null,null,null,null,null,null,null,null,null,null,null,null,null,null,null,null,null,null,null,null,null,null,null,null,null,null,null,null,null,null,null,null,null,null,null,null,null,null,null,null,null,null,null,null,null,null,null,null,null,null,null,null,null,null,null,null,null,null,null,null,null,null,null,null,null,null,null,null,null,null,null,null,null,null,null,null,null,null,null,null,null,null,null,null,null,null,null,null,null,null,null,null,null,null,null,null,null,null,null,null,null,null,null,null,null,null,null,null,null,null,null,null,null,null,null,null,null,null,null,null,null,null,null,null,null,null,null,null,null,null,null,null,null,null,null,null,null,null,null,null,null,null,null,null,null,null,null,null,null,null,null,null,null,null,null,null,null,null,null,null,null,null,null,null,null,null,null,null,null,null,null,null,null,null,null,null,null,null,null,null,null,{"$f":"COUNT(AC40:HF40)","v":0},null,null,null,null,null,null,null,null,null,null,null,null,null,null,null,null,null,{"$f":"SUM(IFERROR(AC41:HF41-AC40:HF40-AC42:HF42,0))","v":0}]
[]
[null,null,null,null,null,null,null,null,null,null,null,null,null,null,null,null,null,null,null,null,null,null,null,"обед","обед"]
[null,null,null,null,null,null,null,null,null,null,null,null,null,null,null,null,null,null,null,null,null,null,null,null,"р.д.",null,null,null,{"$f":"IFERROR(AC41-AC40-AC42,0)","v":0},null,null,null,null,null,{"$f":"IFERROR(AI41-AI40-AI42,0)","v":"00:00:00"},null,null,null,null,null,{"$f":"IFERROR(AO41-AO40-AO42,0)","v":0},null,null,null,null,null,{"$f":"IFERROR(AU41-AU40-AU42,0)","v":0},null,null,null,null,null,{"$f":"IFERROR(BA41-BA40-BA42,0)","v":0},null,null,null,null,null,{"$f":"IFERROR(BG41-BG40-BG42,0)","v":"00:00:00"},null,null,null,null,null,{"$f":"IFERROR(BM41-BM40-BM42,0)","v":0},null,null,null,null,null,{"$f":"IFERROR(BS41-BS40-BS42,0)","v":0},null,null,null,null,null,{"$f":"IFERROR(BY41-BY40-BY42,0)","v":"00:00:00"},null,null,null,null,null,{"$f":"IFERROR(CE41-CE40-CE42,0)","v":0},null,null,null,null,null,{"$f":"IFERROR(CK41-CK40-CK42,0)","v":0},null,null,null,null,null,{"$f":"IFERROR(CQ41-CQ40-CQ42,0)","v":0},null,null,null,null,null,{"$f":"IFERROR(CW41-CW40-CW42,0)","v":"00:00:00"},null,null,null,null,null,{"$f":"IFERROR(DC41-DC40-DC42,0)","v":0},null,null,null,null,null,{"$f":"IFERROR(DI41-DI40-DI42,0)","v":0},null,null,null,null,null,{"$f":"IFERROR(DO41-DO40-DO42,0)","v":"00:00:00"},null,null,null,null,null,{"$f":"IFERROR(DU41-DU40-DU42,0)","v":0},null,null,null,null,null,{"$f":"IFERROR(EA41-EA40-EA42,0)","v":0},null,null,null,null,null,{"$f":"IFERROR(EG41-EG40-EG42,0)","v":0},null,null,null,null,null,{"$f":"IFERROR(EM41-EM40-EM42,0)","v":"00:00:00"},null,null,null,null,null,{"$f":"IFERROR(ES41-ES40-ES42,0)","v":0},null,null,null,null,null,{"$f":"IFERROR(EY41-EY40-EY42,0)","v":0},null,null,null,null,null,{"$f":"IFERROR(FE41-FE40-FE42,0)","v":"00:00:00"},null,null,null,null,null,{"$f":"IFERROR(FK41-FK40-FK42,0)","v":0},null,null,null,null,null,{"$f":"IFERROR(FQ41-FQ40-FQ42,0)","v":0},null,null,null,null,null,{"$f":"IFERROR(FW41-FW40-FW42,0)","v":0},null,null,null,null,null,{"$f":"IFERROR(GC41-GC40-GC42,0)","v":"00:00:00"},null,null,null,null,null,{"$f":"IFERROR(GI41-GI40-GI42,0)","v":0},null,null,null,null,null,{"$f":"IFERROR(GO41-GO40-GO42,0)","v":0},null,null,null,null,null,{"$f":"IFERROR(GU41-GU40-GU42,0)","v":"00:00:00"},null,null,null,null,null,{"$f":"IFERROR(HA41-HA40-HA42,0)","v":0},null,null,null,null,null,null,null,null,null,null,null,null,null,null,null,null,null,null,null,null,null,null,null,{"$f":"SUM(AC43:GZ43)","v":0},null,{"$f":"VLOOKUP($HY$17,'[1]производственный календарь '!$B$2:$F$13,2,0)","v":159}]
[null,null,null,null,null,null,null,null,null,null,null,null,null,null,null,null,null,null,null,null,null,null,null,"пр","пр",null,null,null,null,null,null,null,null,null,null,null,null,null,null,null,null,null,null,null,null,null,null,null,null,null,null,null,null,null,null,null,null,null,null,null,null,null,null,null,null,null,null,null,null,null,null,null,null,null,null,null,null,null,null,null,null,null,null,null,null,null,null,null,null,null,null,null,null,null,null,null,null,null,null,null,null,null,null,null,null,null,null,null,null,null,null,null,null,null,null,null,null,null,null,null,null,null,null,null,null,null,null,null,null,null,null,null,null,null,null,null,null,null,null,null,null,null,null,null,null,null,null,null,null,null,null,null,null,null,null,null,null,null,null,null,null,null,null,null,null,null,null,null,null,null,null,null,null,null,null,null,null,null,null,null,null,null,null,null,null,null,null,null,null,null,null,null,null,null,null,null,null,null,null,null,null,null,null,null,null,null,null,null,null,null,null,null,null,null,{"$f":"SUM(AC44:HF44)","v":"00:00:00"},null,null,null,null,null,null,null,null,null,null,null,null,null,null,null,null,null,{"$f":"SUM(AG44:HQ45)","v":"00:00:00"}]
[4,null,null,null,null,null,null,null,null,null,null,null,null,null,null,null,null,null,null,null,null,null,null,null,"от",null,null,null,null,null,null,null,null,null,null,null,null,null,null,null,null,null,null,null,null,null,null,null,null,null,null,null,null,null,null,null,null,null,null,null,null,null,null,null,null,null,null,null,null,null,null,null,null,null,null,null,null,null,null,null,null,null,null,null,null,null,null,null,null,null,null,null,null,null,null,null,null,null,null,null,null,null,null,null,null,null,null,null,null,null,null,null,null,null,null,null,null,null,null,null,null,null,null,null,null,null,null,null,null,null,null,null,null,null,null,null,null,null,null,null,null,null,null,null,null,null,null,null,null,null,null,null,null,null,null,null,null,null,null,null,null,null,null,null,null,null,null,null,null,null,null,null,null,null,null,null,null,null,null,null,null,null,null,null,null,null,null,null,null,null,null,null,null,null,null,null,null,null,null,null,null,null,null,null,null,null,null,null,null,null,null,null,null,null,{"$f":"COUNTIF(AC46:HF46,\"=От\")","v":0}]
[null,null,null,null,null,"Кипкаева Л.А., дворник",null,null,null,null,null,null,null,null,null,null,null,null,null,null,null,null,null,1,null,null,null,null,null,null,null,null,null,null,null,null,null,null,null,null,null,null,null,null,null,null,null,null,null,null,null,null,null,null,null,null,null,null,null,null,null,null,null,null,null,null,null,null,null,null,null,null,null,null,null,null,null,null,null,null,null,null,null,null,null,null,null,null,null,null,null,null,null,null,null,null,null,null,null,null,null,null,null,null,null,null,null,null,null,null,null,null,null,null,null,null,null,null,null,null,null,null,null,null,null,null,null,null,null,null,null,null,null,null,null,null,null,null,null,null,null,null,null,null,null,null,null,null,null,null,null,null,null,null,null,null,null,null,null,null,null,null,null,null,null,null,null,null,null,null,null,null,null,null,null,null,null,null,null,null,null,null,null,null,null,null,null,null,null,null,null,null,null,null,null,null,null,null,null,null,null,null,null,null,null,null,null,null,null,null,null,null,null,null,{"$f":"COUNT(AC46:HF46)","v":0},null,null,null,null,null,null,null,null,null,null,null,null,null,null,null,null,null,{"$f":"SUM(IFERROR(AC47:HF47-AC46:HF46-AC48:HF48,0))","v":0}]
[]
[null,null,null,null,null,null,null,null,null,null,null,null,null,null,null,null,null,null,null,null,null,null,null,"обед","обед"]
[null,null,null,null,null,null,null,null,null,null,null,null,null,null,null,null,null,null,null,null,null,null,null,null,"р.д.",null,null,null,{"$f":"IFERROR(AC47-AC46-AC48,0)","v":0},null,null,null,null,null,{"$f":"IFERROR(AI47-AI46-AI48,0)","v":"00:00:00"},null,null,null,null,null,{"$f":"IFERROR(AO47-AO46-AO48,0)","v":0},null,null,null,null,null,{"$f":"IFERROR(AU47-AU46-AU48,0)","v":0},null,null,null,null,null,{"$f":"IFERROR(BA47-BA46-BA48,0)","v":0},null,null,null,null,null,{"$f":"IFERROR(BG47-BG46-BG48,0)","v":"00:00:00"},null,null,null,null,null,{"$f":"IFERROR(BM47-BM46-BM48,0)","v":0},null,null,null,null,null,{"$f":"IFERROR(BS47-BS46-BS48,0)","v":0},null,null,null,null,null,{"$f":"IFERROR(BY47-BY46-BY48,0)","v":"00:00:00"},null,null,null,null,null,{"$f":"IFERROR(CE47-CE46-CE48,0)","v":0},null,null,null,null,null,{"$f":"IFERROR(CK47-CK46-CK48,0)","v":0},null,null,null,null,null,{"$f":"IFERROR(CQ47-CQ46-CQ48,0)","v":0},null,null,null,null,null,{"$f":"IFERROR(CW47-CW46-CW48,0)","v":"00:00:00"},null,null,null,null,null,{"$f":"IFERROR(DC47-DC46-DC48,0)","v":0},null,null,null,null,null,{"$f":"IFERROR(DI47-DI46-DI48,0)","v":0},null,null,null,null,null,{"$f":"IFERROR(DO47-DO46-DO48,0)","v":"00:00:00"},null,null,null,null,null,{"$f":"IFERROR(DU47-DU46-DU48,0)","v":0},null,null,null,null,null,{"$f":"IFERROR(EA47-EA46-EA48,0)","v":0},null,null,null,null,null,{"$f":"IFERROR(EG47-EG46-EG48,0)","v":0},null,null,null,null,null,{"$f":"IFERROR(EM47-EM46-EM48,0)","v":"00:00:00"},null,null,null,null,null,{"$f":"IFERROR(ES47-ES46-ES48,0)","v":0},null,null,null,null,null,{"$f":"IFERROR(EY47-EY46-EY48,0)","v":0},null,null,null,null,null,{"$f":"IFERROR(FE47-FE46-FE48,0)","v":"00:00:00"},null,null,null,null,null,{"$f":"IFERROR(FK47-FK46-FK48,0)","v":0},null,null,null,null,null,{"$f":"IFERROR(FQ47-FQ46-FQ48,0)","v":0},null,null,null,null,null,{"$f":"IFERROR(FW47-FW46-FW48,0)","v":0},null,null,null,null,null,{"$f":"IFERROR(GC47-GC46-GC48,0)","v":"00:00:00"},null,null,null,null,null,{"$f":"IFERROR(GI47-GI46-GI48,0)","v":0},null,null,null,null,null,{"$f":"IFERROR(GO47-GO46-GO48,0)","v":0},null,null,null,null,null,{"$f":"IFERROR(GU47-GU46-GU48,0)","v":"00:00:00"},null,null,null,null,null,{"$f":"IFERROR(HA47-HA46-HA48,0)","v":0},null,null,null,null,null,null,null,null,null,null,null,null,null,null,null,null,null,null,null,null,null,null,null,{"$f":"SUM(AC49:GZ49)","v":0},null,{"$f":"VLOOKUP($HY$17,'[1]производственный календарь '!$B$2:$F$13,2,0)","v":159}]
[null,null,null,null,null,null,null,null,null,null,null,null,null,null,null,null,null,null,null,null,null,null,null,"пр","пр",null,null,null,null,null,null,null,null,null,null,null,null,null,null,null,null,null,null,null,null,null,null,null,null,null,null,null,null,null,null,null,null,null,null,null,null,null,null,null,null,null,null,null,null,null,null,null,null,null,null,null,null,null,null,null,null,null,null,null,null,null,null,null,null,null,null,null,null,null,null,null,null,null,null,null,null,null,null,null,null,null,null,null,null,null,null,null,null,null,null,null,null,null,null,null,null,null,null,null,null,null,null,null,null,null,null,null,null,null,null,null,null,null,null,null,null,null,null,null,null,null,null,null,null,null,null,null,null,null,null,null,null,null,null,null,null,null,null,null,null,null,null,null,null,null,null,null,null,null,null,null,null,null,null,null,null,null,null,null,null,null,null,null,null,null,null,null,null,null,null,null,null,null,null,null,null,null,null,null,null,null,null,null,null,null,null,null,null,null,{"$f":"SUM(AC50:HF50)","v":"00:00:00"}]
[5,null,null,null,null,null,null,null,null,null,null,null,null,null,null,null,null,null,null,null,null,null,null,null,"от",null,null,null,null,null,null,null,null,null,null,null,null,null,null,null,null,null,null,null,null,null,null,null,null,null,null,null,null,null,null,null,null,null,null,null,null,null,null,null,null,null,null,null,null,null,null,null,null,null,null,null,null,null,null,null,null,null,null,null,null,null,null,null,null,null,null,null,null,null,null,null,null,null,null,null,null,null,null,null,null,null,null,null,null,null,null,null,null,null,null,null,null,null,null,null,null,null,null,null,null,null,null,null,null,null,null,null,null,null,null,null,null,null,null,null,null,null,null,null,null,null,null,null,null,null,null,null,null,null,null,null,null,null,null,null,null,null,null,null,null,null,null,null,null,null,null,null,null,null,null,null,null,null,null,null,null,null,null,null,null,null,null,null,null,null,null,null,null,null,null,null,null,null,null,null,null,null,null,null,null,null,null,null,null,null,null,null,null,null,{"$f":"COUNTIF(AC52:HF52,\"=От\")","v":0}]
[null,null,null,null,null,"Морозова Г.Н., контролёр-посадчик аттракциона Ч",null,null,null,null,null,null,null,null,null,null,null,null,null,null,null,null,null,1,null,null,null,null,null,null,null,null,null,null,null,null,null,null,null,null,null,null,null,null,null,null,null,null,null,null,null,null,null,null,null,null,null,null,null,null,null,null,null,null,null,null,null,null,null,null,null,null,null,null,null,null,null,null,null,null,null,null,null,null,null,null,null,null,null,null,null,null,null,null,null,null,null,null,null,null,null,null,null,null,null,null,null,null,null,null,null,null,null,null,null,null,null,null,null,null,null,null,null,null,null,null,null,null,null,null,null,null,null,null,null,null,null,null,null,null,null,null,null,null,null,null,null,null,null,null,null,null,null,null,null,null,null,null,null,null,null,null,null,null,null,null,null,null,null,null,null,null,null,null,null,null,null,null,null,null,null,null,null,null,null,null,null,null,null,null,null,null,null,null,null,null,null,null,null,null,null,null,null,null,null,null,null,null,null,null,null,null,null,null,{"$f":"COUNT(AC52:HF52)","v":0},null,null,null,null,null,null,null,null,null,null,null,null,null,null,null,null,null,{"$f":"SUM(IFERROR(AC53:HF53-AC52:HF52-AC54:HF54,0))","v":0}]
[]
[null,null,null,null,null,null,null,null,null,null,null,null,null,null,null,null,null,null,null,null,null,null,null,"обед","обед"]
[null,null,null,null,null,null,null,null,null,null,null,null,null,null,null,null,null,null,null,null,null,null,null,null,"р.д.",null,null,null,{"$f":"IFERROR(AC53-AC52-AC54,0)","v":"00:00:00"},null,null,null,null,null,{"$f":"IFERROR(AI53-AI52-AI54,0)","v":"00:00:00"},null,null,null,null,null,{"$f":"IFERROR(AO53-AO52-AO54,0)","v":0},null,null,null,null,null,{"$f":"IFERROR(AU53-AU52-AU54,0)","v":0},null,null,null,null,null,{"$f":"IFERROR(BA53-BA52-BA54,0)","v":"00:00:00"},null,null,null,null,null,{"$f":"IFERROR(BG53-BG52-BG54,0)","v":"00:00:00"},null,null,null,null,null,{"$f":"IFERROR(BM53-BM52-BM54,0)","v":"00:00:00"},null,null,null,null,null,{"$f":"IFERROR(BS53-BS52-BS54,0)","v":"00:00:00"},null,null,null,null,null,{"$f":"IFERROR(BY53-BY52-BY54,0)","v":"00:00:00"},null,null,null,null,null,{"$f":"IFERROR(CE53-CE52-CE54,0)","v":0},null,null,null,null,null,{"$f":"IFERROR(CK53-CK52-CK54,0)","v":0},null,null,null,null,null,{"$f":"IFERROR(CQ53-CQ52-CQ54,0)","v":"00:00:00"},null,null,null,null,null,{"$f":"IFERROR(CW53-CW52-CW54,0)","v":"00:00:00"},null,null,null,null,null,{"$f":"IFERROR(DC53-DC52-DC54,0)","v":"00:00:00"},null,null,null,null,null,{"$f":"IFERROR(DI53-DI52-DI54,0)","v":"00:00:00"},null,null,null,null,null,{"$f":"IFERROR(DO53-DO52-DO54,0)","v":"00:00:00"},null,null,null,null,null,{"$f":"IFERROR(DU53-DU52-DU54,0)","v":0},null,null,null,null,null,{"$f":"IFERROR(EA53-EA52-EA54,0)","v":0},null,null,null,null,null,{"$f":"IFERROR(EG53-EG52-EG54,0)","v":"00:00:00"},null,null,null,null,null,{"$f":"IFERROR(EM53-EM52-EM54,0)","v":"00:00:00"},null,null,null,null,null,{"$f":"IFERROR(ES53-ES52-ES54,0)","v":"00:00:00"},null,null,null,null,null,{"$f":"IFERROR(EY53-EY52-EY54,0)","v":"00:00:00"},null,null,null,null,null,{"$f":"IFERROR(FE53-FE52-FE54,0)","v":"00:00:00"},null,null,null,null,null,{"$f":"IFERROR(FK53-FK52-FK54,0)","v":0},null,null,null,null,null,{"$f":"IFERROR(FQ53-FQ52-FQ54,0)","v":0},null,null,null,null,null,{"$f":"IFERROR(FW53-FW52-FW54,0)","v":"00:00:00"},null,null,null,null,null,{"$f":"IFERROR(GC53-GC52-GC54,0)","v":"00:00:00"},null,null,null,null,null,{"$f":"IFERROR(GI53-GI52-GI54,0)","v":"00:00:00"},null,null,null,null,null,{"$f":"IFERROR(GO53-GO52-GO54,0)","v":"00:00:00"},null,null,null,null,null,{"$f":"IFERROR(GU53-GU52-GU54,0)","v":"00:00:00"},null,null,null,null,null,{"$f":"IFERROR(HA53-HA52-HA54,0)","v":0},null,null,null,null,null,null,null,null,null,null,null,null,null,null,null,null,null,null,null,null,null,null,null,{"$f":"SUM(AC55:HF55)","v":0},null,{"$f":"VLOOKUP($HY$17,'[1]производственный календарь '!$B$2:$F$13,2,0)","v":159}]
[null,null,null,null,null,null,null,null,null,null,null,null,null,null,null,null,null,null,null,null,null,null,null,"пр","пр",null,null,null,null,null,null,null,null,null,null,null,null,null,null,null,null,null,null,null,null,null,null,null,null,null,null,null,null,null,null,null,null,null,null,null,null,null,null,null,null,null,null,null,null,null,null,null,null,null,null,null,null,null,null,null,null,null,null,null,null,null,null,null,null,null,null,null,null,null,null,null,null,null,null,null,null,null,null,null,null,null,null,null,null,null,null,null,null,null,null,null,null,null,null,null,null,null,null,null,null,null,null,null,null,null,null,null,null,null,null,null,null,null,null,null,null,null,null,null,null,null,null,null,null,null,null,null,null,null,null,null,null,null,null,null,null,null,null,null,null,null,null,null,null,null,null,null,null,null,null,null,null,null,null,null,null,null,null,null,null,null,null,null,null,null,null,null,null,null,null,null,null,null,null,null,null,null,null,null,null,null,null,null,null,null,null,null,null,null,{"$f":"SUM(AC56:HF56)","v":"00:00:00"}]
[6,null,null,null,null,null,null,null,null,null,null,null,null,null,null,null,null,null,null,null,null,null,null,null,"от",null,null,null,null,null,null,null,null,null,null,null,null,null,null,null,null,null,null,null,null,null,null,null,null,null,null,null,null,null,null,null,null,null,null,null,null,null,null,null,null,null,null,null,null,null,null,null,null,null,null,null,null,null,null,null,null,null,null,null,null,null,null,null,null,null,null,null,null,null,null,null,null,null,null,null,null,null,null,null,null,null,null,null,null,null,null,null,null,null,null,null,null,null,null,null,null,null,null,null,null,null,null,null,null,null,null,null,null,null,null,null,null,null,null,null,null,null,null,null,null,null,null,null,null,null,null,null,null,null,null,null,null,null,null,null,null,null,null,null,null,null,null,null,null,null,null,null,null,null,null,null,null,null,null,null,null,null,null,null,null,null,null,null,null,null,null,null,null,null,null,null,null,null,null,null,null,null,null,null,null,null,null,null,null,null,null,null,null,null,{"$f":"COUNTIF(AC58:HF58,\"=От\")","v":14},null,null,null,null,null,null,null,null,null,null,null,null,null,null,null,null,null,null,null,null,null,null,null,null,null,"В"]
[null,null,null,null,null,"Нурлиева Е.А., котролёр-посадчик аттракциона НЧ",null,null,null,null,null,null,null,null,null,null,null,null,null,null,null,null,null,1,null,null,null,null,0.33333333333333331,null,null,null,null,null,null,null,null,null,null,null,0.33333333333333331,null,null,null,null,null,null,null,null,null,null,null,0.33333333333333331,null,null,null,null,null,null,null,null,null,null,null,0.33333333333333331,null,null,null,null,null,null,null,null,null,null,null,0.33333333333333331,null,null,null,null,null,null,null,null,null,null,null,0.33333333333333331,null,null,null,null,null,null,null,null,null,null,null,0.33333333333333331,null,null,null,null,null,null,null,null,null,null,null,0.33333333333333331,null,null,null,null,null,null,null,null,null,null,null,"ОТ",null,null,null,null,null,"ОТ",null,null,null,null,null,"ОТ",null,null,null,null,null,"ОТ",null,null,null,null,null,"ОТ",null,null,null,null,null,"ОТ",null,null,null,null,null,"ОТ",null,null,null,null,null,"ОТ",null,null,null,null,null,"ОТ",null,null,null,null,null,"ОТ",null,null,null,null,null,"ОТ",null,null,null,null,null,"ОТ",null,null,null,null,null,"ОТ",null,null,null,null,null,"ОТ",null,null,null,null,null,null,null,null,null,null,null,{"$f":"COUNT(AC58:HF58)","v":8},null,null,null,null,null,null,null,null,null,null,null,null,null,null,null,null,null,{"$f":"SUM(IFERROR(AC59:HF59-AC58:HF58-AC60:HF60,0))","v":3.666666666666667},null,null,null,null,null,null,null,"Б"]
[null,null,null,null,null,null,null,null,null,null,null,null,null,null,null,null,null,null,null,null,null,null,null,null,null,null,null,null,0.83333333333333337,null,null,null,null,null,null,null,null,null,null,null,0.83333333333333337,null,null,null,null,null,null,null,null,null,null,null,0.83333333333333337,null,null,null,null,null,null,null,null,null,null,null,0.83333333333333337,null,null,null,null,null,null,null,null,null,null,null,0.83333333333333337,null,null,null,null,null,null,null,null,null,null,null,0.83333333333333337,null,null,null,null,null,null,null,null,null,null,null,0.83333333333333337,null,null,null,null,null,null,null,null,null,null,null,0.83333333333333337,null,null,null,null,null,null,null,null,null,null,null,"ОТ",null,null,null,null,null,"ОТ",null,null,null,null,null,"ОТ",null,null,null,null,null,"ОТ",null,null,null,null,null,"ОТ",null,null,null,null,null,"ОТ",null,null,null,null,null,"ОТ",null,null,null,null,null,"ОТ",null,null,null,null,null,"ОТ",null,null,null,null,null,"ОТ",null,null,null,null,null,"ОТ",null,null,null,null,null,"ОТ",null,null,null,null,null,"ОТ",null,null,null,null,null,"ОТ",null,null,null,null,null,null,null,null,null,null,null,null,null,null,null,null,null,null,null,null,null,null,null,null,null,null,null,null,null,null,null,null,null,null,null,null,null,"К"]
[null,null,null,null,null,null,null,null,null,null,null,null,null,null,null,null,null,null,null,null,null,null,null,"обед","обед",null,null,null,"01:00:00",null,null,null,null,null,null,null,null,null,null,null,"01:00:00",null,null,null,null,null,null,null,null,null,null,null,"01:00:00",null,null,null,null,null,null,null,null,null,null,null,"01:00:00",null,null,null,null,null,null,null,null,null,null,null,"01:00:00",null,null,null,null,null,null,null,null,null,null,null,"01:00:00",null,null,null,null,null,null,null,null,null,null,null,"01:00:00",null,null,null,null,null,null,null,null,null,null,null,"01:00:00",null,null,null,null,null,null,null,null,null,null,null,null,null,null,null,null,null,null,null,null,null,null,null,null,null,null,null,null,null,null,null,null,null,null,null,null,null,null,null,null,null,null,null,null,null,null,null,null,null,null,null,null,null,null,null,null,null,null,null,null,null,null,null,null,null,null,null,null,null,null,null,null,null,null,null,null,null,null,null,null,null,null,null,null,null,null,null,null,null,null,null,null,null,null,null,null,null,null,null,null,null,null,null,null,null,null,null,null,null,null,null,null,null,null,null,null,null,null,null,null,null,null,null,null,null,null,null,"О"]
[null,null,null,null,null,null,null,null,null,null,null,null,null,null,null,null,null,null,null,null,null,null,null,null,"р.д.",null,null,null,{"$f":"IFERROR(AC59-AC58-AC60,0)","v":"11:00:00"},null,null,null,null,null,{"$f":"IFERROR(AI59-AI58-AI60,0)","v":"00:00:00"},null,null,null,null,null,{"$f":"IFERROR(AO59-AO58-AO60,0)","v":0.45833333333333331},null,null,null,null,null,{"$f":"IFERROR(AU59-AU58-AU60,0)","v":0},null,null,null,null,null,{"$f":"IFERROR(BA59-BA58-BA60,0)","v":"11:00:00"},null,null,null,null,null,{"$f":"IFERROR(BG59-BG58-BG60,0)","v":"00:00:00"},null,null,null,null,null,{"$f":"IFERROR(BM59-BM58-BM60,0)","v":"11:00:00"},null,null,null,null,null,{"$f":"IFERROR(BS59-BS58-BS60,0)","v":"00:00:00"},null,null,null,null,null,{"$f":"IFERROR(BY59-BY58-BY60,0)","v":"11:00:00"},null,null,null,null,null,{"$f":"IFERROR(CE59-CE58-CE60,0)","v":0},null,null,null,null,null,{"$f":"IFERROR(CK59-CK58-CK60,0)","v":0.45833333333333331},null,null,null,null,null,{"$f":"IFERROR(CQ59-CQ58-CQ60,0)","v":"00:00:00"},null,null,null,null,null,{"$f":"IFERROR(CW59-CW58-CW60,0)","v":"11:00:00"},null,null,null,null,null,{"$f":"IFERROR(DC59-DC58-DC60,0)","v":"00:00:00"},null,null,null,null,null,{"$f":"IFERROR(DI59-DI58-DI60,0)","v":"11:00:00"},null,null,null,null,null,{"$f":"IFERROR(DO59-DO58-DO60,0)","v":"00:00:00"},null,null,null,null,null,{"$f":"IFERROR(DU59-DU58-DU60,0)","v":0},null,null,null,null,null,{"$f":"IFERROR(EA59-EA58-EA60,0)","v":0},null,null,null,null,null,{"$f":"IFERROR(EG59-EG58-EG60,0)","v":"00:00:00"},null,null,null,null,null,{"$f":"IFERROR(EM59-EM58-EM60,0)","v":"00:00:00"},null,null,null,null,null,{"$f":"IFERROR(ES59-ES58-ES60,0)","v":"00:00:00"},null,null,null,null,null,{"$f":"IFERROR(EY59-EY58-EY60,0)","v":"00:00:00"},null,null,null,null,null,{"$f":"IFERROR(FE59-FE58-FE60,0)","v":"00:00:00"},null,null,null,null,null,{"$f":"IFERROR(FK59-FK58-FK60,0)","v":0},null,null,null,null,null,{"$f":"IFERROR(FQ59-FQ58-FQ60,0)","v":0},null,null,null,null,null,{"$f":"IFERROR(FW59-FW58-FW60,0)","v":"00:00:00"},null,null,null,null,null,{"$f":"IFERROR(GC59-GC58-GC60,0)","v":"00:00:00"},null,null,null,null,null,{"$f":"IFERROR(GI59-GI58-GI60,0)","v":"00:00:00"},null,null,null,null,null,{"$f":"IFERROR(GO59-GO58-GO60,0)","v":"00:00:00"},null,null,null,null,null,{"$f":"IFERROR(GU59-GU58-GU60,0)","v":"00:00:00"},null,null,null,null,null,{"$f":"IFERROR(HA59-HA58-HA60,0)","v":0},null,null,null,null,null,null,null,null,null,null,null,null,null,null,null,null,null,null,null,null,null,null,null,{"$f":"SUM(AC61:GZ61)","v":3.666666666666667},null,{"$f":"VLOOKUP($HY$17,'[1]производственный календарь '!$B$2:$F$13,2,0)","v":159},null,null,null,null,null,"П"]
[null,null,null,null,null,null,null,null,null,null,null,null,null,null,null,null,null,null,null,null,null,null,null,"пр","пр",null,null,null,null,null,null,null,null,null,null,null,null,null,null,null,null,null,null,null,null,null,null,null,null,null,null,null,null,null,null,null,null,null,null,null,null,null,null,null,null,null,null,null,null,null,null,null,null,null,null,null,null,null,null,null,null,null,null,null,null,null,null,null,null,null,null,null,null,null,null,null,null,null,null,null,null,null,null,null,null,null,null,null,null,null,null,null,null,null,null,null,null,null,null,null,null,null,null,null,null,null,null,null,null,null,null,null,null,null,null,null,null,null,null,null,null,null,null,null,null,null,null,null,null,null,null,null,null,null,null,null,null,null,null,null,null,null,null,null,null,null,null,null,null,null,null,null,null,null,null,null,null,null,null,null,null,null,null,null,null,null,null,null,null,null,null,null,null,null,null,null,null,null,null,null,null,null,null,null,null,null,null,null,null,null,null,null,null,null,{"$f":"SUM(AC62:HF62)","v":"00:00:00"},null,null,null,null,null,null,null,null,null,null,null,null,null,null,null,null,null,null,null,null,null,null,null,null,null,"ОТ"]
[7,null,null,null,null,null,null,null,null,null,null,null,null,null,null,null,null,null,null,null,null,null,null,null,"от",null,null,null,null,null,null,null,null,null,null,null,null,null,null,null,null,null,null,null,null,null,null,null,null,null,null,null,null,null,null,null,null,null,null,null,null,null,null,null,null,null,null,null,null,null,null,null,null,null,null,null,null,null,null,null,null,null,null,null,null,null,null,null,null,null,null,null,null,null,null,null,null,null,null,null,null,null,null,null,null,null,null,null,null,null,null,null,null,null,null,null,null,null,null,null,null,null,null,null,null,null,null,null,null,null,null,null,null,null,null,null,null,null,null,null,null,null,null,null,null,null,null,null,null,null,null,null,null,null,null,null,null,null,null,null,null,null,null,null,null,null,null,null,null,null,null,null,null,null,null,null,null,null,null,null,null,null,null,null,null,null,null,null,null,null,null,null,null,null,null,null,null,null,null,null,null,null,null,null,null,null,null,null,null,null,null,null,null,null,{"$f":"COUNTIF(AC63:HF63,\"=От\")","v":0},null,null,null,null,null,null,null,null,null,null,null,null,null,null,null,null,null,null,null,null,null,null,null,null,null,"С"]
[null,null,null,null,null,null,null,null,null,null,null,null,null,null,null,null,null,null,null,null,null,null,null,null,null,null,null,null,null,null,null,null,null,null,null,null,null,null,null,null,null,null,null,null,null,null,null,null,null,null,null,null,null,null,null,null,null,null,null,null,null,null,null,null,null,null,null,null,null,null,null,null,null,null,null,null,null,null,null,null,null,null,null,null,null,null,null,null,null,null,null,null,null,null,null,null,null,null,null,null,null,null,null,null,null,null,null,null,null,null,null,null,null,null,null,null,null,null,"ОТ",null,null,null,null,null,0.45833333333333331,null,null,null,null,null,"ОТ",null,null,null,null,null,0.41666666666666669,null,null,null,null,null,"ОТ",null,null,null,null,null,0.41666666666666669,null,null,null,null,null,"ОТ",null,null,null,null,null,0.41666666666666669,null,null,null,null,null,"ОТ",null,null,null,null,null,0.41666666666666669,null,null,null,null,null,"ОТ",null,null,null,null,null,0.41666666666666669,null,null,null,null,null,"ОТ",null,null,null,null,null,0.41666666666666669,null,null,null,null,null,"ОТ",null,null,null,null,null,null,null,null,null,null,null,null,null,null,null,null,null,null,null,null,null,null,null,null,null,null,null,null,null,{"$f":"SUM(AC64:HF64)","v":2.958333333333333}]
[null,null,null,null,null,"Хомченко Л.Е., контролёр-посадчик аттракциона Ч",null,null,null,null,null,null,null,null,null,null,null,null,null,null,null,null,null,1,null,null,null,null,null,null,null,null,null,null,0.33333333333333331,null,null,null,null,null,null,null,null,null,null,null,0.33333333333333331,null,null,null,null,null,null,null,null,null,null,null,0.33333333333333331,null,null,null,null,null,null,null,null,null,null,null,0.33333333333333331,null,null,null,null,null,null,null,null,null,null,null,0.33333333333333331,null,null,null,null,null,null,null,null,null,null,null,0.33333333333333331,null,null,null,null,null,null,null,null,null,null,null,0.33333333333333331,null,null,null,null,null,null,null,null,null,null,null,0.33333333333333331,null,null,null,null,null,null,null,null,null,null,null,0.33333333333333331,null,null,null,null,null,null,null,null,null,null,null,0.33333333333333331,null,null,null,null,null,null,null,null,null,null,null,0.33333333333333331,null,null,null,null,null,null,null,null,null,null,null,0.33333333333333331,null,null,null,null,null,null,null,null,null,null,null,0.33333333333333331,null,null,null,null,null,null,null,null,null,null,null,0.33333333333333331,null,null,null,null,null,null,null,null,null,null,null,0.33333333333333331,null,null,null,null,null,null,null,null,null,null,null,{"$f":"COUNT(AC65:HF65)","v":15},null,null,null,null,null,null,null,null,null,null,null,null,null,null,null,null,null,{"$f":"SUM(IFERROR(AC66:HF66-AC65:HF65-AC67:HF67,0))","v":6.6250000000000018},null,null,null,null,null,null,null,"Р"]
[null,null,null,null,null,null,null,null,null,null,null,null,null,null,null,null,null,null,null,null,null,null,null,null,null,null,null,null,null,null,null,null,null,null,0.83333333333333337,null,null,null,null,null,null,null,null,null,null,null,0.83333333333333337,null,null,null,null,null,null,null,null,null,null,null,0.83333333333333337,null,null,null,null,null,null,null,null,null,null,null,0.83333333333333337,null,null,null,null,null,null,null,null,null,null,null,0.83333333333333337,null,null,null,null,null,null,null,null,null,null,null,0.83333333333333337,null,null,null,null,null,null,null,null,null,null,null,0.83333333333333337,null,null,null,null,null,null,null,null,null,null,null,0.83333333333333337,null,null,null,null,null,null,null,null,null,null,null,0.83333333333333337,null,null,null,null,null,null,null,null,null,null,null,0.79166666666666663,null,null,null,null,null,null,null,null,null,null,null,0.79166666666666663,null,null,null,null,null,null,null,null,null,null,null,0.79166666666666663,null,null,null,null,null,null,null,null,null,null,null,0.79166666666666663,null,null,null,null,null,null,null,null,null,null,null,0.79166666666666663,null,null,null,null,null,null,null,null,null,null,null,0.79166666666666663]
[null,null,null,null,null,null,null,null,null,null,null,null,null,null,null,null,null,null,null,null,null,null,null,"обед","обед",null,null,null,null,null,null,null,null,null,"01:00:00",null,null,null,null,null,null,null,null,null,null,null,"01:00:00",null,null,null,null,null,null,null,null,null,null,null,"01:00:00",null,null,null,null,null,null,null,null,null,null,null,"01:00:00",null,null,null,null,null,null,null,null,null,null,null,"01:00:00",null,null,null,null,null,null,null,null,null,null,null,"01:00:00",null,null,null,null,null,null,null,null,null,null,null,"01:00:00",null,null,null,null,null,null,null,null,null,null,null,"01:00:00",null,null,null,null,null,null,null,null,null,null,null,"01:00:00",null,null,null,null,null,null,null,null,null,null,null,"01:00:00",null,null,null,null,null,null,null,null,null,null,null,"01:00:00",null,null,null,null,null,null,null,null,null,null,null,"01:00:00",null,null,null,null,null,null,null,null,null,null,null,"01:00:00",null,null,null,null,null,null,null,null,null,null,null,"01:00:00",null,null,null,null,null,null,null,null,null,null,null,"01:00:00"]
[null,null,null,null,null,null,null,null,null,null,null,null,null,null,null,null,null,null,null,null,null,null,null,null,"р.д.",null,null,null,{"$f":"IFERROR(AC66-AC65-AC67,0)","v":"00:00:00"},null,null,null,null,null,{"$f":"IFERROR(AI66-AI65-AI67,0)","v":"11:00:00"},null,null,null,null,null,{"$f":"IFERROR(AO66-AO65-AO67,0)","v":0},null,null,null,null,null,{"$f":"IFERROR(AU66-AU65-AU67,0)","v":0.45833333333333331},null,null,null,null,null,{"$f":"IFERROR(BA66-BA65-BA67,0)","v":"00:00:00"},null,null,null,null,null,{"$f":"IFERROR(BG66-BG65-BG67,0)","v":"11:00:00"},null,null,null,null,null,{"$f":"IFERROR(BM66-BM65-BM67,0)","v":"00:00:00"},null,null,null,null,null,{"$f":"IFERROR(BS66-BS65-BS67,0)","v":"11:00:00"},null,null,null,null,null,{"$f":"IFERROR(BY66-BY65-BY67,0)","v":"00:00:00"},null,null,null,null,null,{"$f":"IFERROR(CE66-CE65-CE67,0)","v":0.45833333333333331},null,null,null,null,null,{"$f":"IFERROR(CK66-CK65-CK67,0)","v":0},null,null,null,null,null,{"$f":"IFERROR(CQ66-CQ65-CQ67,0)","v":"11:00:00"},null,null,null,null,null,{"$f":"IFERROR(CW66-CW65-CW67,0)","v":"00:00:00"},null,null,null,null,null,{"$f":"IFERROR(DC66-DC65-DC67,0)","v":"11:00:00"},null,null,null,null,null,{"$f":"IFERROR(DI66-DI65-DI67,0)","v":"00:00:00"},null,null,null,null,null,{"$f":"IFERROR(DO66-DO65-DO67,0)","v":"11:00:00"},null,null,null,null,null,{"$f":"IFERROR(DU66-DU65-DU67,0)","v":0},null,null,null,null,null,{"$f":"IFERROR(EA66-EA65-EA67,0)","v":0.45833333333333331},null,null,null,null,null,{"$f":"IFERROR(EG66-EG65-EG67,0)","v":"00:00:00"},null,null,null,null,null,{"$f":"IFERROR(EM66-EM65-EM67,0)","v":"10:00:00"},null,null,null,null,null,{"$f":"IFERROR(ES66-ES65-ES67,0)","v":"00:00:00"},null,null,null,null,null,{"$f":"IFERROR(EY66-EY65-EY67,0)","v":"10:00:00"},null,null,null,null,null,{"$f":"IFERROR(FE66-FE65-FE67,0)","v":"00:00:00"},null,null,null,null,null,{"$f":"IFERROR(FK66-FK65-FK67,0)","v":0.41666666666666663},null,null,null,null,null,{"$f":"IFERROR(FQ66-FQ65-FQ67,0)","v":0},null,null,null,null,null,{"$f":"IFERROR(FW66-FW65-FW67,0)","v":"10:00:00"},null,null,null,null,null,{"$f":"IFERROR(GC66-GC65-GC67,0)","v":"00:00:00"},null,null,null,null,null,{"$f":"IFERROR(GI66-GI65-GI67,0)","v":"10:00:00"},null,null,null,null,null,{"$f":"IFERROR(GO66-GO65-GO67,0)","v":"00:00:00"},null,null,null,null,null,{"$f":"IFERROR(GU66-GU65-GU67,0)","v":"10:00:00"},null,null,null,null,null,{"$f":"IFERROR(HA66-HA65-HA67,0)","v":0},null,null,null,null,null,null,null,null,null,null,null,null,null,null,null,null,null,null,null,null,null,null,null,{"$f":"SUM(AC68:HF68)","v":6.6250000000000018},null,{"$f":"VLOOKUP($HY$17,'[1]производственный календарь '!$B$2:$F$13,2,0)","v":159}]
[null,null,null,null,null,null,null,null,null,null,null,null,null,null,null,null,null,null,null,null,null,null,null,"пр","пр",null,null,null,null,null,null,null,null,null,null,null,null,null,null,null,null,null,null,null,null,null,null,null,null,null,null,null,null,null,null,null,null,null,null,null,null,null,null,null,null,null,null,null,null,null,null,null,null,null,null,null,null,null,null,null,null,null,null,null,null,null,null,null,null,null,null,null,null,null,null,null,null,null,null,null,null,null,null,null,null,null,null,null,null,null,null,null,null,null,null,null,null,null,null,null,null,null,null,null,null,null,null,null,null,null,null,null,null,null,null,null,null,null,null,null,null,null,null,null,null,null,null,null,null,null,null,null,null,null,null,null,null,null,null,null,null,null,null,null,null,null,null,null,null,null,null,null,null,null,null,null,null,null,null,null,null,null,null,null,null,null,null,null,null,null,null,null,null,null,null,null,null,null,null,null,null,null,null,null,null,null,null,null,null,null,null,null,null,null,{"$f":"SUM(AC69:HF69)","v":"00:00:00"}]
[8,null,null,null,null,null,null,null,null,null,null,null,null,null,null,null,null,null,null,null,null,null,null,null,"от",null,null,null,null,null,null,null,null,null,null,null,null,null,null,null,null,null,null,null,null,null,null,null,null,null,null,null,null,null,null,null,null,null,null,null,null,null,null,null,null,null,null,null,null,null,null,null,null,null,null,null,null,null,null,null,null,null,null,null,null,null,null,null,null,null,null,null,null,null,null,null,null,null,null,null,null,null,null,null,null,null,null,null,null,null,null,null,null,null,null,null,null,null,"ОТ",null,null,null,null,null,"ОТ",null,null,null,null,null,"ОТ",null,null,null,null,null,"ОТ",null,null,null,null,null,"ОТ",null,null,null,null,null,"ОТ",null,null,null,null,null,"ОТ",null,null,null,null,null,"ОТ",null,null,null,null,null,"ОТ",null,null,null,null,null,"ОТ",null,null,null,null,null,"ОТ",null,null,null,null,null,"ОТ",null,null,null,null,null,"ОТ",null,null,null,null,null,"ОТ",null,null,null,null,null,"ОТ",null,null,null,null,null,null,null,null,null,null,null,{"$f":"COUNTIF(AC70:HF70,\"=От\")","v":15},null,null,null,null,null,null,null,null,null,null,null,null,null,null,null,null,null,null,null,{"$f":"VLOOKUP($HY$17,'[1]производственный календарь '!$B$2:$F$13,2,0)","v":159}]
[null,null,null,null,null,"Чижова В.В., контролёр-посадчик аттракциона",null,null,null,null,null,null,null,null,null,null,null,null,null,null,null,null,null,null,0.5,null,null,null,null,null,null,null,null,null,null,null,null,null,null,null,null,null,null,null,null,null,null,null,null,null,null,null,null,null,null,null,null,null,null,null,null,null,null,null,null,null,null,null,null,null,null,null,null,null,null,null,null,null,null,null,null,null,null,null,null,null,null,null,null,null,null,null,null,null,null,null,null,null,null,null,null,null,null,null,null,null,null,null,null,null,null,null,null,null,null,null,null,null,null,null,null,null,null,null,null,null,null,null,null,null,null,null,null,null,null,null,null,null,null,null,null,null,null,null,null,null,null,null,null,null,null,null,null,null,null,null,null,null,null,null,null,null,null,null,null,null,null,null,null,null,null,null,null,null,null,null,null,null,null,null,null,null,null,null,null,null,null,null,null,null,null,null,null,null,null,null,null,null,null,null,null,null,null,null,null,null,null,null,null,null,null,null,null,null,{"$f":"COUNT(AC71:HF71)","v":0},null,null,null,null,null,null,null,null,null,null,null,null,null,null,null,null,null,{"$f":"SUM(IFERROR(AC72:HF72-AC71:HF71-AC73:HF73,0))","v":0},null,{"$f":"VLOOKUP($HY$17,'[1]производственный календарь '!$B$2:$F$13,2,0)","v":159}]
[null,null,null,null,null,null,null,null,null,null,null,null,null,null,null,null,null,null,null,null,null,null,null,null,null,null,null,null,null,null,null,null,null,null,null,null,null,null,null,null,null,null,null,null,null,null,null,null,null,null,null,null,null,null,null,null,null,null,null,null,null,null,null,null,null,null,null,null,null,null,null,null,null,null,null,null,null,null,null,null,null,null,null,null,null,null,null,null,null,null,null,null,null,null,null,null,null,null,null,null,null,null,null,null,null,null,null,null,null,null,null,null,null,null,null,null,null,null,null,null,null,null,null,null,null,null,null,null,null,null,null,null,null,null,null,null,null,null,null,null,null,null,null,null,null,null,null,null,null,null,null,null,null,null,null,null,null,null,null,null,null,null,null,null,null,null,null,null,null,null,null,null,null,null,null,null,null,null,null,null,null,null,null,null,null,null,null,null,null,null,null,null,null,null,null,null,null,null,null,null,null,null,null,null,null,null,null,null,null,null,null,null,null,null,null,null,null,null,null,null,null,null,null,null,null,null,null,null,null,null,null,null,null,null,88]
[null,null,null,null,null,null,null,null,null,null,null,null,null,null,null,null,null,null,null,null,null,null,null,null,"обед"]
[null,null,null,null,null,null,null,null,null,null,null,null,null,null,null,null,null,null,null,null,null,null,null,null,"р.д.",null,null,null,{"$f":"IFERROR(AC72-AC71-AC73,0)","v":"00:00:00"},null,null,null,null,null,{"$f":"IFERROR(AI72-AI71-AI73,0)","v":"00:00:00"},null,null,null,null,null,"00:00:00",null,null,null,null,null,"00:00:00",null,null,null,null,null,{"$f":"IFERROR(BA72-BA71-BA73,0)","v":"00:00:00"},null,null,null,null,null,"00:00:00",null,null,null,null,null,"00:00:00",null,null,null,null,null,"00:00:00",null,null,null,null,null,"00:00:00",null,null,null,null,null,"00:00:00",null,null,null,null,null,"00:00:00",null,null,null,null,null,{"$f":"IFERROR(CQ72-CQ71-CQ73,0)","v":"00:00:00"},null,null,null,null,null,"00:00:00",null,null,null,null,null,"00:00:00",null,null,null,null,null,"00:00:00",null,null,null,null,null,"00:00:00",null,null,null,null,null,"00:00:00",null,null,null,null,null,"00:00:00",null,null,null,null,null,"00:00:00",null,null,null,null,null,"00:00:00",null,null,null,null,null,{"$f":"IFERROR(ES72-ES71-ES73,0)","v":"00:00:00"},null,null,null,null,null,{"$f":"IFERROR(EY72-EY71-EY73,0)","v":"00:00:00"},null,null,null,null,null,{"$f":"IFERROR(FE72-FE71-FE73,0)","v":"00:00:00"},null,null,null,null,null,"00:00:00",null,null,null,null,null,{"$f":"IFERROR(FQ72-FQ71-FQ73,0)","v":"00:00:00"},null,null,null,null,null,"00:00:00",null,null,null,null,null,{"$f":"IFERROR(GC72-GC71-GC73,0)","v":"00:00:00"},null,null,null,null,null,"00:00:00",null,null,null,null,null,{"$f":"IFERROR(GO72-GO71-GO73,0)","v":"00:00:00"},null,null,null,null,null,{"$f":"IFERROR(GU72-GU71-GU73,0)","v":"00:00:00"},null,null,null,null,null,0,null,null,null,null,null,null,null,null,null,null,null,null,null,null,null,null,null,null,null,null,null,null,null,{"$f":"SUM(AC74:HF74)","v":0},null,{"$f":"VLOOKUP($HY$17,'[1]производственный календарь '!$B$2:$F$13,2,0)","v":159}]
[null,null,null,null,null,null,null,null,null,null,null,null,null,null,null,null,null,null,null,null,null,null,null,null,"пр"]
[null,null,null,null,null,null,null,null,null,null,null,null,null,null,null,null,null,null,null,null,null,null,null,null,"от"]
[null,null,null,null,null,"Середка С.Л., контролёр-посадчик аттракциона",null,null,null,null,null,null,null,null,null,null,null,null,null,null,null,null,null,null,0.5,null,null,null,null,null,null,null,null,null,null,null,null,null,null,null,null,null,null,null,null,null,null,null,null,null,null,null,null,null,null,null,null,null,null,null,null,null,null,null,null,null,null,null,null,null,null,null,null,null,null,null,null,null,null,null,null,null,null,null,null,null,null,null,null,null,null,null,null,null,null,null,null,null,null,null,null,null,null,null,null,null,null,null,null,null,null,null,null,null,null,null,null,null,null,null,null,null,null,null,null,null,null,null,null,null,null,null,null,null,null,null,null,null,null,null,null,null,null,null,null,null,null,null,null,null,null,null,null,null,null,null,null,null,null,null,null,null,null,null,null,null,null,null,null,null,null,null,null,null,null,null,null,null,null,null,null,null,null,null,null,null,null,null,null,null,null,null,null,null,null,null,null,null,null,null,null,null,null,null,null,null,null,null,null,null,null,null,null,null,{"$f":"COUNT(AC77:HF77)","v":0},null,null,null,null,null,null,null,null,null,null,null,null,null,null,null,null,null,{"$f":"SUM(IFERROR(AC78:HF78-AC77:HF77-AC79:HF79,0))","v":0},null,{"$f":"VLOOKUP($HY$17,'[1]производственный календарь '!$B$2:$F$13,2,0)","v":159}]
[]
[null,null,null,null,null,null,null,null,null,null,null,null,null,null,null,null,null,null,null,null,null,null,null,null,"обед"]
[null,null,null,null,null,null,null,null,null,null,null,null,null,null,null,null,null,null,null,null,null,null,null,null,"р.д.",null,null,null,{"$f":"IFERROR(AC78-AC77-AC79,0)","v":0},null,null,null,null,null,{"$f":"IFERROR(AI78-AI77-AI79,0)","v":"00:00:00"},null,null,null,null,null,"00:00:00",null,null,null,null,null,"00:00:00",null,null,null,null,null,{"$f":"IFERROR(BA78-BA77-BA79,0)","v":"00:00:00"},null,null,null,null,null,{"$f":"IFERROR(BG78-BG77-BG79,0)","v":"00:00:00"},null,null,null,null,null,0,null,null,null,null,null,0,null,null,null,null,null,"00:00:00",null,null,null,null,null,"00:00:00",null,null,null,null,null,{"$f":"IFERROR(CK78-CK77-CK79,0)","v":"00:00:00"},null,null,null,null,null,"00:00:00",null,null,null,null,null,"00:00:00",null,null,null,null,null,0,null,null,null,null,null,0,null,null,null,null,null,{"$f":"IFERROR(DO78-DO77-DO79,0)","v":"00:00:00"},null,null,null,null,null,"00:00:00",null,null,null,null,null,"00:00:00",null,null,null,null,null,"00:00:00",null,null,null,null,null,"00:00:00",null,null,null,null,null,0,null,null,null,null,null,{"$f":"IFERROR(EY78-EY77-EY79,0)","v":0},null,null,null,null,null,"00:00:00",null,null,null,null,null,"00:00:00",null,null,null,null,null,"00:00:00",null,null,null,null,null,"00:00:00",null,null,null,null,null,"00:00:00",null,null,null,null,null,{"$f":"IFERROR(GI78-GI77-GI79,0)","v":0},null,null,null,null,null,{"$f":"IFERROR(GO78-GO77-GO79,0)","v":0},null,null,null,null,null,"00:00:00",null,null,null,null,null,0,null,null,null,null,null,null,null,null,null,null,null,null,null,null,null,null,null,null,null,null,null,null,null,{"$f":"SUM(AC80:HF80)","v":0}]
[null,null,null,null,null,null,null,null,null,null,null,null,null,null,null,null,null,null,null,null,null,null,null,null,"пр"]
[null,null,null,null,null,null,null,null,null,null,null,null,null,null,null,null,null,null,null,null,null,null,null,null,"от"]
[null,null,null,null,null,"Кондратюк Н.В., сторож",null,null,null,null,null,null,null,null,null,null,null,null,null,null,null,null,null,1,null,null,null,null,0,null,null,null,null,null,null,null,null,null,null,null,0.70833333333333337,null,null,null,null,null,0,null,null,null,null,null,null,null,null,null,null,null,0.70833333333333337,null,null,null,null,null,0,null,null,null,null,null,null,null,null,null,null,null,0.70833333333333337,null,null,null,null,null,0,null,null,null,null,null,null,null,null,null,null,null,0.70833333333333337,null,null,null,null,null,0,null,null,null,null,null,null,null,null,null,null,null,0.70833333333333337,null,null,null,null,null,0,null,null,null,null,null,null,null,null,null,null,null,0.70833333333333337,null,null,null,null,null,0,null,null,null,null,null,null,null,null,null,null,null,0.70833333333333337,null,null,null,null,null,0,null,null,null,null,null,null,null,null,null,null,null,0.70833333333333337,null,null,null,null,null,0,null,null,null,null,null,null,null,null,null,null,null,0.70833333333333337,null,null,null,null,null,0,null,null,null,null,null,null,null,null,null,null,null,0.75,null,null,null,null,null,null,null,null,null,null,null,{"$f":"COUNT(AC83:HF83)","v":20},null,null,null,null,null,null,null,null,null,null,null,null,null,null,null,null,null,{"$f":"SUM(IF(ISNUMBER(AC83:HF83),AC84:HF84-AC83:HF83+(AC84:HF84<AC83:HF83),))*24","v":159}]
[null,null,null,null,null,null,null,null,null,null,null,null,null,null,null,null,null,null,null,null,null,null,null,null,null,null,null,null,0.375,null,null,null,null,null,null,null,null,null,null,null,1,null,null,null,null,null,0.375,null,null,null,null,null,null,null,null,null,null,null,1,null,null,null,null,null,0.375,null,null,null,null,null,null,null,null,null,null,null,1,null,null,null,null,null,0.375,null,null,null,null,null,null,null,null,null,null,null,1,null,null,null,null,null,0.375,null,null,null,null,null,null,null,null,null,null,null,1,null,null,null,null,null,0.375,null,null,null,null,null,null,null,null,null,null,null,1,null,null,null,null,null,0.375,null,null,null,null,null,null,null,null,null,null,null,1,null,null,null,null,null,0.375,null,null,null,null,null,null,null,null,null,null,null,1,null,null,null,null,null,0.375,null,null,null,null,null,null,null,null,null,null,null,1,null,null,null,null,null,0.375,null,null,null,null,null,null,null,null,null,null,null,1]
[null,null,null,null,null,null,null,null,null,null,null,null,null,null,null,null,null,null,null,null,null,null,null,null,null,null,null,null,{"$f":"IFERROR(AC84-AC83,0)","v":0.375},null,null,null,null,null,{"$f":"IFERROR(AI84-AI83,0)","v":0},null,null,null,null,null,0.29166666666666663,null,null,null,null,null,0.375,null,null,null,null,null,0,null,null,null,null,null,0.29166666666666663,null,null,null,null,null,0.375,null,null,null,null,null,0,null,null,null,null,null,0.29166666666666663,null,null,null,null,null,0.375,null,null,null,null,null,0,null,null,null,null,null,0.29166666666666663,null,null,null,null,null,{"$f":"IFERROR(CW84-CW83,0)","v":0.375},null,null,null,null,null,0,null,null,null,null,null,0.29166666666666663,null,null,null,null,null,0.375,null,null,null,null,null,0,null,null,null,null,null,0.29166666666666663,null,null,null,null,null,0.375,null,null,null,null,null,0,null,null,null,null,null,0.29166666666666663,null,null,null,null,null,0.375,null,null,null,null,null,0,null,null,null,null,null,{"$f":"IFERROR(FK84-FK83,0)","v":0.29166666666666663},null,null,null,null,null,0.375,null,null,null,null,null,0,null,null,null,null,null,0.29166666666666663,null,null,null,null,null,0.375,null,null,null,null,null,0,null,null,null,null,null,0.25,null,null,null,null,null,0,null,null,null,null,null,null,null,null,null,null,null,null,null,null,null,null,null,null,null,null,null,null,null,{"$f":"SUM(AC85:HF85)","v":6.625}]
[]
[null,null,null,null,null,null,null,null,null,null,null,null,null,null,null,null,null,null,null,null,null,null,null,"НОЧЬ",null,null,null,null,{"$f":"(MIN(AC84,6/24)-MIN(AC83,6/24)+MAX(AC84,22/24)-MAX(AC83,22/24))*24+(AC84<AC83)*8","v":5.9999999999999973},null,null,null,null,null,{"$f":"(MIN(AI84,6/24)-MIN(AI83,6/24)+MAX(AI84,22/24)-MAX(AI83,22/24))*24+(AI84<AI83)*8","v":0},null,null,null,null,null,{"$f":"(MIN(AO84,6/24)-MIN(AO83,6/24)+MAX(AO84,22/24)-MAX(AO83,22/24))*24+(AO84<AO83)*8","v":2.0000000000000009},null,null,null,null,null,{"$f":"(MIN(AU84,6/24)-MIN(AU83,6/24)+MAX(AU84,22/24)-MAX(AU83,22/24))*24+(AU84<AU83)*8","v":5.9999999999999973},null,null,null,null,null,{"$f":"(MIN(BA84,6/24)-MIN(BA83,6/24)+MAX(BA84,22/24)-MAX(BA83,22/24))*24+(BA84<BA83)*8","v":0},null,null,null,null,null,{"$f":"(MIN(BG84,6/24)-MIN(BG83,6/24)+MAX(BG84,22/24)-MAX(BG83,22/24))*24+(BG84<BG83)*8","v":2.0000000000000009},null,null,null,null,null,{"$f":"(MIN(BM84,6/24)-MIN(BM83,6/24)+MAX(BM84,22/24)-MAX(BM83,22/24))*24+(BM84<BM83)*8","v":5.9999999999999973},null,null,null,null,null,{"$f":"(MIN(BS84,6/24)-MIN(BS83,6/24)+MAX(BS84,22/24)-MAX(BS83,22/24))*24+(BS84<BS83)*8","v":0},null,null,null,null,null,{"$f":"(MIN(BY84,6/24)-MIN(BY83,6/24)+MAX(BY84,22/24)-MAX(BY83,22/24))*24+(BY84<BY83)*8","v":2.0000000000000009},null,null,null,null,null,{"$f":"(MIN(CE84,6/24)-MIN(CE83,6/24)+MAX(CE84,22/24)-MAX(CE83,22/24))*24+(CE84<CE83)*8","v":5.9999999999999973},null,null,null,null,null,{"$f":"(MIN(CK84,6/24)-MIN(CK83,6/24)+MAX(CK84,22/24)-MAX(CK83,22/24))*24+(CK84<CK83)*8","v":0},null,null,null,null,null,{"$f":"(MIN(CQ84,6/24)-MIN(CQ83,6/24)+MAX(CQ84,22/24)-MAX(CQ83,22/24))*24+(CQ84<CQ83)*8","v":2.0000000000000009},null,null,null,null,null,{"$f":"(MIN(CW84,6/24)-MIN(CW83,6/24)+MAX(CW84,22/24)-MAX(CW83,22/24))*24+(CW84<CW83)*8","v":5.9999999999999973},null,null,null,null,null,{"$f":"(MIN(DC84,6/24)-MIN(DC83,6/24)+MAX(DC84,22/24)-MAX(DC83,22/24))*24+(DC84<DC83)*8","v":0},null,null,null,null,null,{"$f":"(MIN(DI84,6/24)-MIN(DI83,6/24)+MAX(DI84,22/24)-MAX(DI83,22/24))*24+(DI84<DI83)*8","v":2.0000000000000009},null,null,null,null,null,{"$f":"(MIN(DO84,6/24)-MIN(DO83,6/24)+MAX(DO84,22/24)-MAX(DO83,22/24))*24+(DO84<DO83)*8","v":5.9999999999999973},null,null,null,null,null,{"$f":"(MIN(DU84,6/24)-MIN(DU83,6/24)+MAX(DU84,22/24)-MAX(DU83,22/24))*24+(DU84<DU83)*8","v":0},null,null,null,null,null,{"$f":"(MIN(EA84,6/24)-MIN(EA83,6/24)+MAX(EA84,22/24)-MAX(EA83,22/24))*24+(EA84<EA83)*8","v":2.0000000000000009},null,null,null,null,null,{"$f":"(MIN(EG84,6/24)-MIN(EG83,6/24)+MAX(EG84,22/24)-MAX(EG83,22/24))*24+(EG84<EG83)*8","v":5.9999999999999973},null,null,null,null,null,{"$f":"(MIN(EM84,6/24)-MIN(EM83,6/24)+MAX(EM84,22/24)-MAX(EM83,22/24))*24+(EM84<EM83)*8","v":0},null,null,null,null,null,{"$f":"(MIN(ES84,6/24)-MIN(ES83,6/24)+MAX(ES84,22/24)-MAX(ES83,22/24))*24+(ES84<ES83)*8","v":2.0000000000000009},null,null,null,null,null,{"$f":"(MIN(EY84,6/24)-MIN(EY83,6/24)+MAX(EY84,22/24)-MAX(EY83,22/24))*24+(EY84<EY83)*8","v":5.9999999999999973},null,null,null,null,null,{"$f":"(MIN(FE84,6/24)-MIN(FE83,6/24)+MAX(FE84,22/24)-MAX(FE83,22/24))*24+(FE84<FE83)*8","v":0},null,null,null,null,null,{"$f":"(MIN(FK84,6/24)-MIN(FK83,6/24)+MAX(FK84,22/24)-MAX(FK83,22/24))*24+(FK84<FK83)*8","v":2.0000000000000009},null,null,null,null,null,{"$f":"(MIN(FQ84,6/24)-MIN(FQ83,6/24)+MAX(FQ84,22/24)-MAX(FQ83,22/24))*24+(FQ84<FQ83)*8","v":5.9999999999999973},null,null,null,null,null,{"$f":"(MIN(FW84,6/24)-MIN(FW83,6/24)+MAX(FW84,22/24)-MAX(FW83,22/24))*24+(FW84<FW83)*8","v":0},null,null,null,null,null,{"$f":"(MIN(GC84,6/24)-MIN(GC83,6/24)+MAX(GC84,22/24)-MAX(GC83,22/24))*24+(GC84<GC83)*8","v":2.0000000000000009},null,null,null,null,null,{"$f":"(MIN(GI84,6/24)-MIN(GI83,6/24)+MAX(GI84,22/24)-MAX(GI83,22/24))*24+(GI84<GI83)*8","v":5.9999999999999973},null,null,null,null,null,{"$f":"(MIN(GO84,6/24)-MIN(GO83,6/24)+MAX(GO84,22/24)-MAX(GO83,22/24))*24+(GO84<GO83)*8","v":0},null,null,null,null,null,{"$f":"(MIN(GU84,6/24)-MIN(GU83,6/24)+MAX(GU84,22/24)-MAX(GU83,22/24))*24+(GU84<GU83)*8","v":2.0000000000000009},null,null,null,null,null,{"$f":"(MIN(HA84,6/24)-MIN(HA83,6/24)+MAX(HA84,22/24)-MAX(HA83,22/24))*24+(HA84<HA83)*8","v":0},null,null,null,null,null,null,null,null,null,null,null,null,null,null,null,null,null,null,null,null,null,null,null,{"$f":"SUM(AC87:HF87)","v":79.999999999999986}]
[9]
[null,null,null,null,null,null,null,null,null,null,null,null,null,null,null,null,null,null,null,null,null,null,null,"пр","пр",null,null,null,null,null,null,null,null,null,null,null,null,null,null,null,null,null,null,null,null,null,0.375,null,null,null,null,null,null,null,null,null,null,null,null,null,null,null,null,null,null,null,null,null,null,null,null,null,null,null,null,null,null,null,null,null,null,null,null,null,null,null,null,null,null,null,null,null,null,null,null,null,null,null,null,null,null,null,null,null,null,null,null,null,null,null,null,null,null,null,null,null,null,null,null,null,null,null,null,null,null,null,null,null,null,null,null,null,null,null,null,null,null,null,null,null,null,null,null,null,null,null,null,null,null,null,null,null,null,null,null,null,null,null,null,null,null,null,null,null,null,null,null,null,null,null,null,null,null,null,null,null,null,null,null,null,null,null,null,null,null,null,null,null,null,null,null,null,null,null,null,null,null,null,null,null,null,null,null,null,null,null,null,null,null,null,null,null,null,null,{"$f":"COUNT(AC89:HF89)","v":1},null,null,null,null,null,null,null,null,null,null,null,null,null,null,null,null,null,{"$f":"SUM(AC89:HF89)","v":0.375},null,{"$f":"VLOOKUP($HY$17,'[1]производственный календарь '!$B$2:$F$13,2,0)","v":159}]
[null,null,null,null,null,null,null,null,null,null,null,null,null,null,null,null,null,null,null,null,null,null,null,null,"от",null,null,null,null,null,null,null,null,null,null,null,null,null,null,null,null,null,null,null,null,null,null,null,null,null,null,null,null,null,null,null,null,null,null,null,null,null,null,null,null,null,null,null,null,null,null,null,null,null,null,null,null,null,null,null,null,null,null,null,null,null,null,null,null,null,null,null,null,null,null,null,null,null,null,null,null,null,null,null,null,null,null,null,null,null,null,null,null,null,null,null,null,null,null,null,null,null,null,null,null,null,null,null,null,null,null,null,null,null,null,null,null,null,null,null,null,null,null,null,null,null,null,null,null,null,null,null,null,null,null,null,null,null,null,null,null,null,null,null,null,null,null,null,null,null,null,null,null,null,null,null,null,null,null,null,null,null,null,null,null,null,null,null,null,null,null,null,null,null,null,null,null,null,null,null,null,null,null,null,null,null,null,null,null,null,null,null,null,null,0]
[]
[]
[null,null,null,null,null,"С графиком ознакомлен(а):"]
[]
[null,null,null,null,null,1,null,null,null,null,null,null,null,null,null,null,null,null,null,null,null,null,null,null,null,null,null,null,null,null,null,null,null,null,null,null,null,null,null,null,null,null,null,null,null,null,null,null,null,null,null,null,null,null,null,null,null,null,null,null,null,null,null,"\"___\"______________2020"]
[null,null,null,null,null,2,null,null,null,null,null,null,null,null,null,null,null,null,null,null,null,null,null,null,null,null,null,null,null,null,null,null,null,null,null,null,null,null,null,null,null,null,null,null,null,null,null,null,null,null,null,null,null,null,null,null,null,null,null,null,null,null,null,"\"___\"______________2020"]
[null,null,null,null,null,3,null,null,null,null,null,null,null,null,null,null,null,null,null,null,null,null,null,null,null,null,null,null,null,null,null,null,null,null,null,null,null,null,null,null,null,null,null,null,null,null,null,null,null,null,null,null,null,null,null,null,null,null,null,null,null,null,null,"\"___\"______________2020"]
[null,null,null,null,null,4,null,null,null,null,null,null,null,null,null,null,null,null,null,null,null,null,null,null,null,null,null,null,null,null,null,null,null,null,null,null,null,null,null,null,null,null,null,null,null,null,null,null,null,null,null,null,null,null,null,null,null,null,null,null,null,null,null,"\"___\"______________2020"]
[null,null,null,null,null,5,null,null,null,null,null,null,null,null,null,null,null,null,null,null,null,null,null,null,null,null,null,null,null,null,null,null,null,null,null,null,null,null,null,null,null,null,null,null,null,null,null,null,null,null,null,null,null,null,null,null,null,null,null,null,null,null,null,"\"___\"______________2020"]
[null,null,null,null,null,6,null,null,null,null,null,null,null,null,null,null,null,null,null,null,null,null,null,null,null,null,null,null,null,null,null,null,null,null,null,null,null,null,null,null,null,null,null,null,null,null,null,null,null,null,null,null,null,null,null,null,null,null,null,null,null,null,null,"\"___\"______________2020"]
[null,null,null,null,null,7,null,null,null,null,null,null,null,null,null,null,null,null,null,null,null,null,null,null,null,null,null,null,null,null,null,null,null,null,null,null,null,null,null,null,null,null,null,null,null,null,null,null,null,null,null,null,null,null,null,null,null,null,null,null,null,null,null,"\"___\"______________2020"]
[null,null,null,null,null,8,null,null,null,null,null,null,null,null,null,null,null,null,null,null,null,null,null,null,null,null,null,null,null,null,null,null,null,null,null,null,null,null,null,null,null,null,null,null,null,null,null,null,null,null,null,null,null,null,null,null,null,null,null,null,null,null,null,"\"___\"______________2020"]
[null,null,null,null,null,9,null,null,null,null,null,null,null,null,null,null,null,null,null,null,null,null,null,null,null,null,null,null,null,null,null,null,null,null,null,null,null,null,null,null,null,null,null,null,null,null,null,null,null,null,null,null,null,null,null,null,null,null,null,null,null,null,null,"\"___\"______________2020"]
[null,null,null,null,null,10,null,null,null,null,null,null,null,null,null,null,null,null,null,null,null,null,null,null,null,null,null,null,null,null,null,null,null,null,null,null,null,null,null,null,null,null,null,null,null,null,null,null,null,null,null,null,null,null,null,null,null,null,null,null,null,null,null,"\"___\"______________2020"]
[null,null,null,null,null,11,null,null,null,null,null,null,null,null,null,null,null,null,null,null,null,null,null,null,null,null,null,null,null,null,null,null,null,null,null,null,null,null,null,null,null,null,null,null,null,null,null,null,null,null,null,null,null,null,null,null,null,null,null,null,null,null,null,"\"___\"______________2020"]
[null,null,null,null,null,12,null,null,null,null,null,null,null,null,null,null,null,null,null,null,null,null,null,null,null,null,null,null,null,null,null,null,null,null,null,null,null,null,null,null,null,null,null,null,null,null,null,null,null,null,null,null,null,null,null,null,null,null,null,null,null,null,null,"\"___\"______________2020"]

{"sheet":"ТАБЕЛЬ  И.Б. НОЯБРЬ","index":1,"n_rows":69,"n_cols":60,"rows_kept":69,"cut":false,"hidden":false,"merged":[[43,3,43,48],[44,5,44,48],[45,26,48,53],[42,30,42,53],[40,0,40,6],[40,8,40,13],[40,15,40,17],[40,19,40,23],[41,8,41,13],[41,15,41,17],[41,19,41,23],[35,53,36,53],[35,54,36,54],[35,55,36,55],[35,56,36,56],[39,8,39,13],[39,15,39,17],[39,19,39,23],[35,47,36,47],[35,48,36,48],[35,49,36,49],[35,50,36,50],[35,51,36,51],[35,52,36,52],[35,41,36,41],[35,42,36,42],[35,43,36,43],[35,44,36,44],[35,45,36,45],[35,46,36,46],[33,53,34,53],[33,54,34,54],[33,55,34,55],[33,56,34,56],[35,2,36,2],[35,3,36,3],[35,37,36,37],[35,38,36,38],[35,39,36,39],[35,40,36,40],[33,47,34,47],[33,48,34,48],[33,49,34,49],[33,50,34,50],[33,51,34,51],[33,52,34,52],[33,41,34,41],[33,42,34,42],[33,43,34,43],[33,44,34,44],[33,45,34,45],[33,46,34,46],[33,2,34,2],[33,3,34,3],[33,37,34,37],[33,38,34,38],[33,39,34,39],[33,40,34,40],[30,53,32,53],[30,54,32,54],[30,55,32,55],[30,56,32,56],[31,2,32,2],[31,3,32,3],[31,37,32,37],[31,38,32,38],[30,47,32,47],[30,48,32,48],[30,49,32,49],[30,50,32,50],[30,51,32,51],[30,52,32,52],[30,41,32,41],[30,42,32,42],[30,43,32,43],[30,44,32,44],[30,45,32,45],[30,46,32,46],[27,53,29,53],[27,54,29,54],[27,55,29,55],[27,56,29,56],[29,2,30,2],[29,3,30,3],[29,37,30,37],[29,38,30,38],[30,39,32,39],[30,40,32,40],[27,47,29,47],[27,48,29,48],[27,49,29,49],[27,50,29,50],[27,51,29,51],[27,52,29,52],[27,41,29,41],[27,42,29,42],[27,43,29,43],[27,44,29,44],[27,45,29,45],[27,46,29,46],[27,2,28,2],[27,3,28,3],[27,37,28,37],[27,38,28,38],[27,39,29,39],[27,40,29,40],[24,52,26,52],[24,53,26,53],[24,54,26,54],[24,55,26,55],[24,56,26,56],[25,2,26,2],[25,3,26,3],[25,37,26,37],[25,38,26,38],[24,46,26,46],[24,47,26,47],[24,48,26,48],[24,49,26,49],[24,50,26,50],[24,51,26,51],[24,40,26,40],[24,41,26,41],[24,42,26,42],[24,43,26,43],[24,44,26,44],[24,45,26,45],[21,52,23,52],[21,53,23,53],[21,54,23,54],[21,55,23,55],[21,56,23,56],[23,2,24,2],[23,3,24,3],[23,37,24,37],[23,38,24,38],[24,39,26,39],[21,46,23,46],[21,47,23,47],[21,48,23,48],[21,49,23,49],[21,50,23,50],[21,51,23,51],[21,40,23,40],[21,41,23,41],[21,42,23,42],[21,43,23,43],[21,44,23,44],[21,45,23,45],[18,56,20,56],[19,2,20,2],[19,3,20,3],[19,37,20,37],[19,38,20,38],[21,2,22,2],[21,3,22,3],[21,37,22,37],[21,38,22,38],[21,39,23,39],[18,50,20,50],[18,51,20,51],[18,52,20,52],[18,53,20,53],[18,54,20,54],[18,55,20,55],[18,44,20,44],[18,45,20,45],[18,46,20,46],[18,47,20,47],[18,48,20,48],[18,49,20,49],[15,56,17,56],[17,2,18,2],[17,3,18,3],[17,37,18,37],[17,38,18,38],[18,39,20,39],[18,40,20,40],[18,41,20,41],[18,42,20,42],[18,43,20,43],[15,50,17,50],[15,51,17,51],[15,52,17,52],[15,53,17,53],[15,54,17,54],[15,55,17,55],[15,44,17,44],[15,45,17,45],[15,46,17,46],[15,47,17,47],[15,48,17,48],[15,49,17,49],[13,46,13,55],[15,2,16,2],[15,3,16,3],[15,37,16,37],[15,38,16,38],[15,39,17,39],[15,40,17,40],[15,41,17,41],[15,42,17,42],[15,43,17,43],[9,51,11,51],[9,52,11,52],[9,53,11,53],[9,54,11,54],[9,55,11,55],[10,39,11,39],[10,40,10,45],[9,38,11,38],[9,39,9,45],[9,47,11,47],[9,48,11,48],[9,49,11,49],[9,50,11,50],[9,32,11,32],[9,33,11,33],[9,34,11,34],[9,35,11,35],[9,36,11,36],[9,37,11,37],[9,26,11,26],[9,27,11,27],[9,28,11,28],[9,29,11,29],[9,30,11,30],[9,31,11,31],[9,20,11,20],[9,21,11,21],[9,22,11,22],[9,23,11,23],[9,24,11,24],[9,25,11,25],[9,14,11,14],[9,15,11,15],[9,16,11,16],[9,17,11,17],[9,18,11,18],[9,19,11,19],[8,38,8,45],[8,46,11,46],[8,47,8,55],[8,56,11,56],[9,5,11,5],[9,6,11,6],[9,7,11,7],[9,8,11,8],[9,9,11,9],[9,10,11,10],[7,17,7,22],[8,0,11,0],[8,1,11,1],[8,2,11,2],[8,3,11,3],[8,4,11,4],[8,5,8,36],[9,11,11,11],[9,12,11,12],[9,13,11,13],[6,4,6,16],[6,17,6,22],[6,23,6,25],[6,38,6,42],[6,43,6,46],[6,48,6,56],[3,51,3,56],[4,0,4,6],[5,8,5,20],[5,38,5,41],[5,44,5,46],[5,48,5,53],[1,0,1,6],[1,44,1,48],[2,2,2,12],[2,24,2,26],[2,27,2,29],[3,0,3,2],[3,38,3,42]]}
[]
[]
[]
[]
["название структурного подразделения"]
[null,null,null,null,null,null,null,null,"ГРАФИК РАБОТЫ",null,null,null,null,null,null,null,null,null,null,null,null,null,null,null,null,null,null,null,null,null,null,null,null,null,null,null,null,null,null,null,null,null,"с",null,null,null,null,"по","2020-05-31"]
[null,null,null,null,"обслуживающего персонала на",null,null,null,null,null,null,null,null,null,null,null,null,{"$f":"IF(DAY(D48)>=28,EDATE(D48,1),D48)","v":"2020-11-01"},null,null,null,null,null,"года",null,null,null,null,null,null,null,null,null,null,null,null,null,null,null,null,null,null,null,"Рабочих дней",null,null,null,{"$f":"VLOOKUP(AM8,'[1]производственный календарь '!$B$2:$D$13,3,0)","v":20},"Рабочих часов",null,null,null,null,null,null,null,null,{"$f":"VLOOKUP(AM8,'[1]производственный календарь '!$B$2:D13,2,0)","v":159}]
[null,null,null,null,null,null,null,null,null,null,null,null,null,null,null,null,null,"МАРТ",null,null,null,null,null,null,null,null,null,null,null,null,null,null,null,null,null,null,null,null,"ноябрь"]
["№ п/п","Табельний номер","Фамилия, и., о.","Профессия,\nдолжность","номер","Отметки о явках и неявках на работу по числам месяца (часов)",null,null,null,null,null,null,null,null,null,null,null,null,null,null,null,null,null,null,null,null,null,null,null,null,null,null,null,null,null,null,null," ","отработано за месяц",null,null,null,null,null,null,null,"Всего неявок","Дни неявок",null,null,null,null,null,null,null,null,"Выходные дни"]
[null,null,null,null,null,1,2,3,4,5,6,7,8,9,10,11,12,13,14,15,"X",16,17,18,19,20,21,22,23,24,25,26,27,28,29,30,31,"дни явок","всего отработано","часов",null,null,null,null,null,null,null,"Очередной отпуск","Больничные","Бесплатный отпуск (А)","Отпуск родовой","Учеьный отпуск","Отпуск ЧАЭС","Прогул","Отпуск женский","Командировка"]
[null,null,null,null,null,null,null,null,null,null,null,null,null,null,null,null,null,null,null,null,null,null,null,null,null,null,null,null,null,null,null,null,null,null,null,null,null,null,null,"всего отработано","из них"]
[null,null,null,null,null,null," "," ",null,null,null,null,null," ",null,null,null,null,null,null,null,null,null,null,null,null,null,null,null,null,null,null,null,null,null,null,null,null,null,null,"Ночные","Вечерние","Праздничные","Сверхурочные","Работы в выходной","Переработка"]
[null,null,null,null,null,null,null,null,null,null,null,null,null,null,null,null,null,null,null,null,"Х"]
[1,"2","3","4","5",null,null,null,null,null,null,null,null,null,null,null,null,null,null,null,"6",null,null,null,null,null,null,null,null,null,null,null,null,null,null,null,null,"7",null,"9",null,null,null,null,null,null,"10",null,null,null,null,null,null,null,null,null,"11",null,null,"Столбец1"]
[null,null,null,null,null,null,null,null,null,null,null,null,null,null,null,null,null,null,null,null,null,null,null,null,null,null,null,null,null,null,null,null,null,null,null,null,null,null,null,null,null,null,null,null,null,null,null,null,null,null,null,null,null,null,null,null,null,null,null,"управляющий участка"]
[null,null,null,"управляющий участка",null,{"$f":"IFERROR(INDEX('[1]ГРАФИК И.Б.НОЯБРЬ '!$AC25:$HF25,1,MATCH(F$10,'[1]ГРАФИК И.Б.НОЯБРЬ '!$AC$19:$HF$19,0)),\"\")","v":"06:00:00"},{"$f":"IFERROR(INDEX('[1]ГРАФИК И.Б.НОЯБРЬ '!$AC25:$HF25,1,MATCH(G$10,'[1]ГРАФИК И.Б.НОЯБРЬ '!$AC$19:$HF$19,0)),\"\")","v":"06:00:00"},{"$f":"IFERROR(INDEX('[1]ГРАФИК И.Б.НОЯБРЬ '!$AC25:$HF25,1,MATCH(H$10,'[1]ГРАФИК И.Б.НОЯБРЬ '!$AC$19:$HF$19,0)),\"\")","v":"05:00:00"},{"$f":"IFERROR(INDEX('[1]ГРАФИК И.Б.НОЯБРЬ '!$AC25:$HF25,1,MATCH(I$10,'[1]ГРАФИК И.Б.НОЯБРЬ '!$AC$19:$HF$19,0)),\"\")","v":"00:00:00"},{"$f":"IFERROR(INDEX('[1]ГРАФИК И.Б.НОЯБРЬ '!$AC25:$HF25,1,MATCH(J$10,'[1]ГРАФИК И.Б.НОЯБРЬ '!$AC$19:$HF$19,0)),\"\")","v":"06:00:00"},{"$f":"IFERROR(INDEX('[1]ГРАФИК И.Б.НОЯБРЬ '!$AC25:$HF25,1,MATCH(K$10,'[1]ГРАФИК И.Б.НОЯБРЬ '!$AC$19:$HF$19,0)),\"\")","v":"06:00:00"},{"$f":"IFERROR(INDEX('[1]ГРАФИК И.Б.НОЯБРЬ '!$AC25:$HF25,1,MATCH(L$10,'[1]ГРАФИК И.Б.НОЯБРЬ '!$AC$19:$HF$19,0)),\"\")","v":"06:00:00"},{"$f":"IFERROR(INDEX('[1]ГРАФИК И.Б.НОЯБРЬ '!$AC25:$HF25,1,MATCH(M$10,'[1]ГРАФИК И.Б.НОЯБРЬ '!$AC$19:$HF$19,0)),\"\")","v":"03:00:00"},{"$f":"IFERROR(INDEX('[1]ГРАФИК И.Б.НОЯБРЬ '!$AC25:$HF25,1,MATCH(N$10,'[1]ГРАФИК И.Б.НОЯБРЬ '!$AC$19:$HF$19,0)),\"\")","v":"03:00:00"},{"$f":"IFERROR(INDEX('[1]ГРАФИК И.Б.НОЯБРЬ '!$AC25:$HF25,1,MATCH(O$10,'[1]ГРАФИК И.Б.НОЯБРЬ '!$AC$19:$HF$19,0)),\"\")","v":"05:00:00"},{"$f":"IFERROR(INDEX('[1]ГРАФИК И.Б.НОЯБРЬ '!$AC25:$HF25,1,MATCH(P$10,'[1]ГРАФИК И.Б.НОЯБРЬ '!$AC$19:$HF$19,0)),\"\")","v":"00:00:00"},{"$f":"IFERROR(INDEX('[1]ГРАФИК И.Б.НОЯБРЬ '!$AC25:$HF25,1,MATCH(Q$10,'[1]ГРАФИК И.Б.НОЯБРЬ '!$AC$19:$HF$19,0)),\"\")","v":"06:00:00"},{"$f":"IFERROR(INDEX('[1]ГРАФИК И.Б.НОЯБРЬ '!$AC25:$HF25,1,MATCH(R$10,'[1]ГРАФИК И.Б.НОЯБРЬ '!$AC$19:$HF$19,0)),\"\")","v":"06:00:00"},{"$f":"IFERROR(INDEX('[1]ГРАФИК И.Б.НОЯБРЬ '!$AC25:$HF25,1,MATCH(S$10,'[1]ГРАФИК И.Б.НОЯБРЬ '!$AC$19:$HF$19,0)),\"\")","v":"07:00:00"},{"$f":"IFERROR(INDEX('[1]ГРАФИК И.Б.НОЯБРЬ '!$AC25:$HF25,1,MATCH(T$10,'[1]ГРАФИК И.Б.НОЯБРЬ '!$AC$19:$HF$19,0)),\"\")","v":"07:00:00"},{"$f":"IFERROR(INDEX('[1]ГРАФИК И.Б.НОЯБРЬ '!$AC25:$HF25,1,MATCH(U$10,'[1]ГРАФИК И.Б.НОЯБРЬ '!$AC$19:$HF$19,0)),\"\")","v":""},{"$f":"IFERROR(INDEX('[1]ГРАФИК И.Б.НОЯБРЬ '!$AC25:$HF25,1,MATCH(V$10,'[1]ГРАФИК И.Б.НОЯБРЬ '!$AC$19:$HF$19,0)),\"\")","v":"07:00:00"},{"$f":"IFERROR(INDEX('[1]ГРАФИК И.Б.НОЯБРЬ '!$AC25:$HF25,1,MATCH(W$10,'[1]ГРАФИК И.Б.НОЯБРЬ '!$AC$19:$HF$19,0)),\"\")","v":"05:00:00"},{"$f":"IFERROR(INDEX('[1]ГРАФИК И.Б.НОЯБРЬ '!$AC25:$HF25,1,MATCH(X$10,'[1]ГРАФИК И.Б.НОЯБРЬ '!$AC$19:$HF$19,0)),\"\")","v":"00:00:00"},{"$f":"IFERROR(INDEX('[1]ГРАФИК И.Б.НОЯБРЬ '!$AC25:$HF25,1,MATCH(Y$10,'[1]ГРАФИК И.Б.НОЯБРЬ '!$AC$19:$HF$19,0)),\"\")","v":"07:00:00"},{"$f":"IFERROR(INDEX('[1]ГРАФИК И.Б.НОЯБРЬ '!$AC25:$HF25,1,MATCH(Z$10,'[1]ГРАФИК И.Б.НОЯБРЬ '!$AC$19:$HF$19,0)),\"\")","v":"07:00:00"},{"$f":"IFERROR(INDEX('[1]ГРАФИК И.Б.НОЯБРЬ '!$AC25:$HF25,1,MATCH(AA$10,'[1]ГРАФИК И.Б.НОЯБРЬ '!$AC$19:$HF$19,0)),\"\")","v":"07:00:00"},{"$f":"IFERROR(INDEX('[1]ГРАФИК И.Б.НОЯБРЬ '!$AC25:$HF25,1,MATCH(AB$10,'[1]ГРАФИК И.Б.НОЯБРЬ '!$AC$19:$HF$19,0)),\"\")","v":"07:00:00"},{"$f":"IFERROR(INDEX('[1]ГРАФИК И.Б.НОЯБРЬ '!$AC25:$HF25,1,MATCH(AC$10,'[1]ГРАФИК И.Б.НОЯБРЬ '!$AC$19:$HF$19,0)),\"\")","v":"07:00:00"},{"$f":"IFERROR(INDEX('[1]ГРАФИК И.Б.НОЯБРЬ '!$AC25:$HF25,1,MATCH(AD$10,'[1]ГРАФИК И.Б.НОЯБРЬ '!$AC$19:$HF$19,0)),\"\")","v":"05:00:00"},{"$f":"IFERROR(INDEX('[1]ГРАФИК И.Б.НОЯБРЬ '!$AC25:$HF25,1,MATCH(AE$10,'[1]ГРАФИК И.Б.НОЯБРЬ '!$AC$19:$HF$19,0)),\"\")","v":"00:00:00"},{"$f":"IFERROR(INDEX('[1]ГРАФИК И.Б.НОЯБРЬ '!$AC25:$HF25,1,MATCH(AF$10,'[1]ГРАФИК И.Б.НОЯБРЬ '!$AC$19:$HF$19,0)),\"\")","v":"07:00:00"},{"$f":"IFERROR(INDEX('[1]ГРАФИК И.Б.НОЯБРЬ '!$AC25:$HF25,1,MATCH(AG$10,'[1]ГРАФИК И.Б.НОЯБРЬ '!$AC$19:$HF$19,0)),\"\")","v":"07:00:00"},{"$f":"IFERROR(INDEX('[1]ГРАФИК И.Б.НОЯБРЬ '!$AC25:$HF25,1,MATCH(AH$10,'[1]ГРАФИК И.Б.НОЯБРЬ '!$AC$19:$HF$19,0)),\"\")","v":"07:00:00"},{"$f":"IFERROR(INDEX('[1]ГРАФИК И.Б.НОЯБРЬ '!$AC25:$HF25,1,MATCH(AI$10,'[1]ГРАФИК И.Б.НОЯБРЬ '!$AC$19:$HF$19,0)),\"\")","v":"07:00:00"},{"$f":"IFERROR(INDEX('[1]ГРАФИК И.Б.НОЯБРЬ '!$AC25:$HF25,1,MATCH(AJ$10,'[1]ГРАФИК И.Б.НОЯБРЬ '!$AC$19:$HF$19,0)),\"\")","v":"07:00:00"},{"$f":"IFERROR(INDEX('[1]ГРАФИК И.Б.НОЯБРЬ '!$AC25:$HF25,1,MATCH(AK$10,'[1]ГРАФИК И.Б.НОЯБРЬ '!$AC$19:$HF$19,0)),\"\")","v":""},{"$f":"COUNTIF($F16:$AK16,\">0\")","v":26},{"$f":"SUM($F$16:$AK$16)","v":6.6250000000000018},null,null,null,null,null,null,null,null,{"$f":"COUNTIF($F17:$AK17,\"=От\")","v":0},null,null,null,null,null,null,null,null,{"$f":"COUNTIF(F17:AK17,\"В\")","v":4},null,null,"слесарь-ремонтник"]
[null,null,null,null,null,{"$f":"IF('[1]ГРАФИК И.Б.НОЯБРЬ '!AC22=\"ОТ\",\"ОТ\",IF(F16=0,\"В\",\"Я\"))","v":"Я"},{"$f":"IF('[1]ГРАФИК И.Б.НОЯБРЬ '!AD22=\"ОТ\",\"ОТ\",IF(G16=0,\"В\",\"Я\"))","v":"Я"},{"$f":"IF('[1]ГРАФИК И.Б.НОЯБРЬ '!AE22=\"ОТ\",\"ОТ\",IF(H16=0,\"В\",\"Я\"))","v":"Я"},{"$f":"IF('[1]ГРАФИК И.Б.НОЯБРЬ '!AF22=\"ОТ\",\"ОТ\",IF(I16=0,\"В\",\"Я\"))","v":"В"},{"$f":"IF('[1]ГРАФИК И.Б.НОЯБРЬ '!AG22=\"ОТ\",\"ОТ\",IF(J16=0,\"В\",\"Я\"))","v":"Я"},{"$f":"IF('[1]ГРАФИК И.Б.НОЯБРЬ '!AH22=\"ОТ\",\"ОТ\",IF(K16=0,\"В\",\"Я\"))","v":"Я"},{"$f":"IF('[1]ГРАФИК И.Б.НОЯБРЬ '!AI22=\"ОТ\",\"ОТ\",IF(L16=0,\"В\",\"Я\"))","v":"Я"},{"$f":"IF('[1]ГРАФИК И.Б.НОЯБРЬ '!AJ22=\"ОТ\",\"ОТ\",IF(M16=0,\"В\",\"Я\"))","v":"Я"},{"$f":"IF('[1]ГРАФИК И.Б.НОЯБРЬ '!AK22=\"ОТ\",\"ОТ\",IF(N16=0,\"В\",\"Я\"))","v":"Я"},{"$f":"IF('[1]ГРАФИК И.Б.НОЯБРЬ '!AL22=\"ОТ\",\"ОТ\",IF(O16=0,\"В\",\"Я\"))","v":"Я"},{"$f":"IF('[1]ГРАФИК И.Б.НОЯБРЬ '!AM22=\"ОТ\",\"ОТ\",IF(P16=0,\"В\",\"Я\"))","v":"В"},{"$f":"IF('[1]ГРАФИК И.Б.НОЯБРЬ '!AN22=\"ОТ\",\"ОТ\",IF(Q16=0,\"В\",\"Я\"))","v":"Я"},{"$f":"IF('[1]ГРАФИК И.Б.НОЯБРЬ '!AO22=\"ОТ\",\"ОТ\",IF(R16=0,\"В\",\"Я\"))","v":"Я"},{"$f":"IF('[1]ГРАФИК И.Б.НОЯБРЬ '!AP22=\"ОТ\",\"ОТ\",IF(S16=0,\"В\",\"Я\"))","v":"Я"},{"$f":"IF('[1]ГРАФИК И.Б.НОЯБРЬ '!AQ22=\"ОТ\",\"ОТ\",IF(T16=0,\"В\",\"Я\"))","v":"Я"}," ",{"$f":"IF('[1]ГРАФИК И.Б.НОЯБРЬ '!AS22=\"ОТ\",\"ОТ\",IF(V16=0,\"В\",\"Я\"))","v":"Я"},{"$f":"IF('[1]ГРАФИК И.Б.НОЯБРЬ '!AT22=\"ОТ\",\"ОТ\",IF(W16=0,\"В\",\"Я\"))","v":"Я"},{"$f":"IF('[1]ГРАФИК И.Б.НОЯБРЬ '!AU22=\"ОТ\",\"ОТ\",IF(X16=0,\"В\",\"Я\"))","v":"В"},{"$f":"IF('[1]ГРАФИК И.Б.НОЯБРЬ '!AV22=\"ОТ\",\"ОТ\",IF(Y16=0,\"В\",\"Я\"))","v":"Я"},{"$f":"IF('[1]ГРАФИК И.Б.НОЯБРЬ '!AW22=\"ОТ\",\"ОТ\",IF(Z16=0,\"В\",\"Я\"))","v":"Я"},{"$f":"IF('[1]ГРАФИК И.Б.НОЯБРЬ '!AX22=\"ОТ\",\"ОТ\",IF(AA16=0,\"В\",\"Я\"))","v":"Я"},{"$f":"IF('[1]ГРАФИК И.Б.НОЯБРЬ '!AY22=\"ОТ\",\"ОТ\",IF(AB16=0,\"В\",\"Я\"))","v":"Я"},{"$f":"IF('[1]ГРАФИК И.Б.НОЯБРЬ '!AZ22=\"ОТ\",\"ОТ\",IF(AC16=0,\"В\",\"Я\"))","v":"Я"},{"$f":"IF('[1]ГРАФИК И.Б.НОЯБРЬ '!BA22=\"ОТ\",\"ОТ\",IF(AD16=0,\"В\",\"Я\"))","v":"Я"},{"$f":"IF('[1]ГРАФИК И.Б.НОЯБРЬ '!BB22=\"ОТ\",\"ОТ\",IF(AE16=0,\"В\",\"Я\"))","v":"В"},{"$f":"IF('[1]ГРАФИК И.Б.НОЯБРЬ '!BC22=\"ОТ\",\"ОТ\",IF(AF16=0,\"В\",\"Я\"))","v":"Я"},{"$f":"IF('[1]ГРАФИК И.Б.НОЯБРЬ '!BD22=\"ОТ\",\"ОТ\",IF(AG16=0,\"В\",\"Я\"))","v":"Я"},{"$f":"IF('[1]ГРАФИК И.Б.НОЯБРЬ '!BE22=\"ОТ\",\"ОТ\",IF(AH16=0,\"В\",\"Я\"))","v":"Я"},{"$f":"IF('[1]ГРАФИК И.Б.НОЯБРЬ '!BF22=\"ОТ\",\"ОТ\",IF(AI16=0,\"В\",\"Я\"))","v":"Я"},{"$f":"IF('[1]ГРАФИК И.Б.НОЯБРЬ '!BG22=\"ОТ\",\"ОТ\",IF(AJ16=0,\"В\",\"Я\"))","v":"Я"},null,null,null,null,null,null,null,null,null,null,null,null,null,null,null,null,null,null,null,null,null,null,null,"кассир билетный"]
[null,null,null,"слесарь-ремонтник",null,{"$f":"IFERROR(INDEX('[1]ГРАФИК И.Б.НОЯБРЬ '!$AC31:$HF31,1,MATCH(F$10,'[1]ГРАФИК И.Б.НОЯБРЬ '!$AC$19:$HF$19,0)),\"\")","v":"00:00:00"},{"$f":"IFERROR(INDEX('[1]ГРАФИК И.Б.НОЯБРЬ '!$AC31:$HF31,1,MATCH(G$10,'[1]ГРАФИК И.Б.НОЯБРЬ '!$AC$19:$HF$19,0)),\"\")","v":"00:00:00"},{"$f":"IFERROR(INDEX('[1]ГРАФИК И.Б.НОЯБРЬ '!$AC31:$HF31,1,MATCH(H$10,'[1]ГРАФИК И.Б.НОЯБРЬ '!$AC$19:$HF$19,0)),\"\")","v":"09:00:00"},{"$f":"IFERROR(INDEX('[1]ГРАФИК И.Б.НОЯБРЬ '!$AC31:$HF31,1,MATCH(I$10,'[1]ГРАФИК И.Б.НОЯБРЬ '!$AC$19:$HF$19,0)),\"\")","v":"00:00:00"},{"$f":"IFERROR(INDEX('[1]ГРАФИК И.Б.НОЯБРЬ '!$AC31:$HF31,1,MATCH(J$10,'[1]ГРАФИК И.Б.НОЯБРЬ '!$AC$19:$HF$19,0)),\"\")","v":"09:00:00"},{"$f":"IFERROR(INDEX('[1]ГРАФИК И.Б.НОЯБРЬ '!$AC31:$HF31,1,MATCH(K$10,'[1]ГРАФИК И.Б.НОЯБРЬ '!$AC$19:$HF$19,0)),\"\")","v":"09:00:00"},{"$f":"IFERROR(INDEX('[1]ГРАФИК И.Б.НОЯБРЬ '!$AC31:$HF31,1,MATCH(L$10,'[1]ГРАФИК И.Б.НОЯБРЬ '!$AC$19:$HF$19,0)),\"\")","v":"09:00:00"},{"$f":"IFERROR(INDEX('[1]ГРАФИК И.Б.НОЯБРЬ '!$AC31:$HF31,1,MATCH(M$10,'[1]ГРАФИК И.Б.НОЯБРЬ '!$AC$19:$HF$19,0)),\"\")","v":"00:00:00"},{"$f":"IFERROR(INDEX('[1]ГРАФИК И.Б.НОЯБРЬ '!$AC31:$HF31,1,MATCH(N$10,'[1]ГРАФИК И.Б.НОЯБРЬ '!$AC$19:$HF$19,0)),\"\")","v":"00:00:00"},{"$f":"IFERROR(INDEX('[1]ГРАФИК И.Б.НОЯБРЬ '!$AC31:$HF31,1,MATCH(O$10,'[1]ГРАФИК И.Б.НОЯБРЬ '!$AC$19:$HF$19,0)),\"\")","v":"09:00:00"},{"$f":"IFERROR(INDEX('[1]ГРАФИК И.Б.НОЯБРЬ '!$AC31:$HF31,1,MATCH(P$10,'[1]ГРАФИК И.Б.НОЯБРЬ '!$AC$19:$HF$19,0)),\"\")","v":"09:00:00"},{"$f":"IFERROR(INDEX('[1]ГРАФИК И.Б.НОЯБРЬ '!$AC31:$HF31,1,MATCH(Q$10,'[1]ГРАФИК И.Б.НОЯБРЬ '!$AC$19:$HF$19,0)),\"\")","v":"09:00:00"},{"$f":"IFERROR(INDEX('[1]ГРАФИК И.Б.НОЯБРЬ '!$AC31:$HF31,1,MATCH(R$10,'[1]ГРАФИК И.Б.НОЯБРЬ '!$AC$19:$HF$19,0)),\"\")","v":"08:00:00"},{"$f":"IFERROR(INDEX('[1]ГРАФИК И.Б.НОЯБРЬ '!$AC31:$HF31,1,MATCH(S$10,'[1]ГРАФИК И.Б.НОЯБРЬ '!$AC$19:$HF$19,0)),\"\")","v":"08:00:00"},{"$f":"IFERROR(INDEX('[1]ГРАФИК И.Б.НОЯБРЬ '!$AC31:$HF31,1,MATCH(T$10,'[1]ГРАФИК И.Б.НОЯБРЬ '!$AC$19:$HF$19,0)),\"\")","v":"00:00:00"},{"$f":"IFERROR(INDEX('[1]ГРАФИК И.Б.НОЯБРЬ '!$AC31:$HF31,1,MATCH(U$10,'[1]ГРАФИК И.Б.НОЯБРЬ '!$AC$19:$HF$19,0)),\"\")","v":""},{"$f":"IFERROR(INDEX('[1]ГРАФИК И.Б.НОЯБРЬ '!$AC31:$HF31,1,MATCH(V$10,'[1]ГРАФИК И.Б.НОЯБРЬ '!$AC$19:$HF$19,0)),\"\")","v":"00:00:00"},{"$f":"IFERROR(INDEX('[1]ГРАФИК И.Б.НОЯБРЬ '!$AC31:$HF31,1,MATCH(W$10,'[1]ГРАФИК И.Б.НОЯБРЬ '!$AC$19:$HF$19,0)),\"\")","v":"08:00:00"},{"$f":"IFERROR(INDEX('[1]ГРАФИК И.Б.НОЯБРЬ '!$AC31:$HF31,1,MATCH(X$10,'[1]ГРАФИК И.Б.НОЯБРЬ '!$AC$19:$HF$19,0)),\"\")","v":"08:00:00"},{"$f":"IFERROR(INDEX('[1]ГРАФИК И.Б.НОЯБРЬ '!$AC31:$HF31,1,MATCH(Y$10,'[1]ГРАФИК И.Б.НОЯБРЬ '!$AC$19:$HF$19,0)),\"\")","v":"08:00:00"},{"$f":"IFERROR(INDEX('[1]ГРАФИК И.Б.НОЯБРЬ '!$AC31:$HF31,1,MATCH(Z$10,'[1]ГРАФИК И.Б.НОЯБРЬ '!$AC$19:$HF$19,0)),\"\")","v":"08:00:00"},{"$f":"IFERROR(INDEX('[1]ГРАФИК И.Б.НОЯБРЬ '!$AC31:$HF31,1,MATCH(AA$10,'[1]ГРАФИК И.Б.НОЯБРЬ '!$AC$19:$HF$19,0)),\"\")","v":"08:00:00"},{"$f":"IFERROR(INDEX('[1]ГРАФИК И.Б.НОЯБРЬ '!$AC31:$HF31,1,MATCH(AB$10,'[1]ГРАФИК И.Б.НОЯБРЬ '!$AC$19:$HF$19,0)),\"\")","v":"00:00:00"},{"$f":"IFERROR(INDEX('[1]ГРАФИК И.Б.НОЯБРЬ '!$AC31:$HF31,1,MATCH(AC$10,'[1]ГРАФИК И.Б.НОЯБРЬ '!$AC$19:$HF$19,0)),\"\")","v":"00:00:00"},{"$f":"IFERROR(INDEX('[1]ГРАФИК И.Б.НОЯБРЬ '!$AC31:$HF31,1,MATCH(AD$10,'[1]ГРАФИК И.Б.НОЯБРЬ '!$AC$19:$HF$19,0)),\"\")","v":"08:00:00"},{"$f":"IFERROR(INDEX('[1]ГРАФИК И.Б.НОЯБРЬ '!$AC31:$HF31,1,MATCH(AE$10,'[1]ГРАФИК И.Б.НОЯБРЬ '!$AC$19:$HF$19,0)),\"\")","v":"08:00:00"},{"$f":"IFERROR(INDEX('[1]ГРАФИК И.Б.НОЯБРЬ '!$AC31:$HF31,1,MATCH(AF$10,'[1]ГРАФИК И.Б.НОЯБРЬ '!$AC$19:$HF$19,0)),\"\")","v":"08:00:00"},{"$f":"IFERROR(INDEX('[1]ГРАФИК И.Б.НОЯБРЬ '!$AC31:$HF31,1,MATCH(AG$10,'[1]ГРАФИК И.Б.НОЯБРЬ '!$AC$19:$HF$19,0)),\"\")","v":"08:00:00"},{"$f":"IFERROR(INDEX('[1]ГРАФИК И.Б.НОЯБРЬ '!$AC31:$HF31,1,MATCH(AH$10,'[1]ГРАФИК И.Б.НОЯБРЬ '!$AC$19:$HF$19,0)),\"\")","v":"08:00:00"},{"$f":"IFERROR(INDEX('[1]ГРАФИК И.Б.НОЯБРЬ '!$AC31:$HF31,1,MATCH(AI$10,'[1]ГРАФИК И.Б.НОЯБРЬ '!$AC$19:$HF$19,0)),\"\")","v":"00:00:00"},{"$f":"IFERROR(INDEX('[1]ГРАФИК И.Б.НОЯБРЬ '!$AC31:$HF31,1,MATCH(AJ$10,'[1]ГРАФИК И.Б.НОЯБРЬ '!$AC$19:$HF$19,0)),\"\")","v":"00:00:00"},{"$f":"IFERROR(INDEX('[1]ГРАФИК И.Б.НОЯБРЬ '!$AC31:$HF31,1,MATCH(AK$10,'[1]ГРАФИК И.Б.НОЯБРЬ '!$AC$19:$HF$19,0)),\"\")","v":""},{"$f":"COUNTIF($F18:$AK18,\">0\")","v":19},{"$f":"SUM($F$18:$AK$18)","v":6.6249999999999982},null,null,null,null,null,null,null,null,null,null,null,null,null,null,null,null,null,{"$f":"COUNTIF(F19:AK19,\"В\")","v":11},null,null,"контролёр-посадчик аттракциона"]
[null,null,null,null,null,{"$f":"IF('[1]ГРАФИК И.Б.НОЯБРЬ '!AC28=\"ОТ\",\"ОТ\",IF(F18=0,\"В\",\"Я\"))","v":"В"},{"$f":"IF('[1]ГРАФИК И.Б.НОЯБРЬ '!AD28=\"ОТ\",\"ОТ\",IF(G18=0,\"В\",\"Я\"))","v":"В"},{"$f":"IF('[1]ГРАФИК И.Б.НОЯБРЬ '!AE28=\"ОТ\",\"ОТ\",IF(H18=0,\"В\",\"Я\"))","v":"Я"},{"$f":"IF('[1]ГРАФИК И.Б.НОЯБРЬ '!AF28=\"ОТ\",\"ОТ\",IF(I18=0,\"В\",\"Я\"))","v":"В"},{"$f":"IF('[1]ГРАФИК И.Б.НОЯБРЬ '!AG28=\"ОТ\",\"ОТ\",IF(J18=0,\"В\",\"Я\"))","v":"Я"},{"$f":"IF('[1]ГРАФИК И.Б.НОЯБРЬ '!AH28=\"ОТ\",\"ОТ\",IF(K18=0,\"В\",\"Я\"))","v":"Я"},{"$f":"IF('[1]ГРАФИК И.Б.НОЯБРЬ '!AI28=\"ОТ\",\"ОТ\",IF(L18=0,\"В\",\"Я\"))","v":"Я"},{"$f":"IF('[1]ГРАФИК И.Б.НОЯБРЬ '!AJ28=\"ОТ\",\"ОТ\",IF(M18=0,\"В\",\"Я\"))","v":"В"},{"$f":"IF('[1]ГРАФИК И.Б.НОЯБРЬ '!AK28=\"ОТ\",\"ОТ\",IF(N18=0,\"В\",\"Я\"))","v":"В"},{"$f":"IF('[1]ГРАФИК И.Б.НОЯБРЬ '!AL28=\"ОТ\",\"ОТ\",IF(O18=0,\"В\",\"Я\"))","v":"Я"},{"$f":"IF('[1]ГРАФИК И.Б.НОЯБРЬ '!AM28=\"ОТ\",\"ОТ\",IF(P18=0,\"В\",\"Я\"))","v":"Я"},{"$f":"IF('[1]ГРАФИК И.Б.НОЯБРЬ '!AN28=\"ОТ\",\"ОТ\",IF(Q18=0,\"В\",\"Я\"))","v":"Я"},{"$f":"IF('[1]ГРАФИК И.Б.НОЯБРЬ '!AO28=\"ОТ\",\"ОТ\",IF(R18=0,\"В\",\"Я\"))","v":"Я"},{"$f":"IF('[1]ГРАФИК И.Б.НОЯБРЬ '!AP28=\"ОТ\",\"ОТ\",IF(S18=0,\"В\",\"Я\"))","v":"Я"},{"$f":"IF('[1]ГРАФИК И.Б.НОЯБРЬ '!AQ28=\"ОТ\",\"ОТ\",IF(T18=0,\"В\",\"Я\"))","v":"В"}," ",{"$f":"IF('[1]ГРАФИК И.Б.НОЯБРЬ '!AS28=\"ОТ\",\"ОТ\",IF(V18=0,\"В\",\"Я\"))","v":"В"},{"$f":"IF('[1]ГРАФИК И.Б.НОЯБРЬ '!AT28=\"ОТ\",\"ОТ\",IF(W18=0,\"В\",\"Я\"))","v":"Я"},{"$f":"IF('[1]ГРАФИК И.Б.НОЯБРЬ '!AU28=\"ОТ\",\"ОТ\",IF(X18=0,\"В\",\"Я\"))","v":"Я"},{"$f":"IF('[1]ГРАФИК И.Б.НОЯБРЬ '!AV28=\"ОТ\",\"ОТ\",IF(Y18=0,\"В\",\"Я\"))","v":"Я"},{"$f":"IF('[1]ГРАФИК И.Б.НОЯБРЬ '!AW28=\"ОТ\",\"ОТ\",IF(Z18=0,\"В\",\"Я\"))","v":"Я"},{"$f":"IF('[1]ГРАФИК И.Б.НОЯБРЬ '!AX28=\"ОТ\",\"ОТ\",IF(AA18=0,\"В\",\"Я\"))","v":"Я"},{"$f":"IF('[1]ГРАФИК И.Б.НОЯБРЬ '!AY28=\"ОТ\",\"ОТ\",IF(AB18=0,\"В\",\"Я\"))","v":"В"},{"$f":"IF('[1]ГРАФИК И.Б.НОЯБРЬ '!AZ28=\"ОТ\",\"ОТ\",IF(AC18=0,\"В\",\"Я\"))","v":"В"},{"$f":"IF('[1]ГРАФИК И.Б.НОЯБРЬ '!BA28=\"ОТ\",\"ОТ\",IF(AD18=0,\"В\",\"Я\"))","v":"Я"},{"$f":"IF('[1]ГРАФИК И.Б.НОЯБРЬ '!BB28=\"ОТ\",\"ОТ\",IF(AE18=0,\"В\",\"Я\"))","v":"Я"},{"$f":"IF('[1]ГРАФИК И.Б.НОЯБРЬ '!BC28=\"ОТ\",\"ОТ\",IF(AF18=0,\"В\",\"Я\"))","v":"Я"},{"$f":"IF('[1]ГРАФИК И.Б.НОЯБРЬ '!BD28=\"ОТ\",\"ОТ\",IF(AG18=0,\"В\",\"Я\"))","v":"Я"},{"$f":"IF('[1]ГРАФИК И.Б.НОЯБРЬ '!BE28=\"ОТ\",\"ОТ\",IF(AH18=0,\"В\",\"Я\"))","v":"Я"},{"$f":"IF('[1]ГРАФИК И.Б.НОЯБРЬ '!BF28=\"ОТ\",\"ОТ\",IF(AI18=0,\"В\",\"Я\"))","v":"В"},{"$f":"IF('[1]ГРАФИК И.Б.НОЯБРЬ '!BG28=\"ОТ\",\"ОТ\",IF(AJ18=0,\"В\",\"Я\"))","v":"В"},null,null,null,null,null,null,null,null,null,null,null,null,null,null,null,null,null,null,null,null,null,null,null,"сторож"]
[null,null,null,"кассир билетный",null,{"$f":"INDEX('[1]ГРАФИК И.Б.НОЯБРЬ '!$AC37:$HF37,1,MATCH(F$10,'[1]ГРАФИК И.Б.НОЯБРЬ '!$AC$19:$HF$19,0))","v":"00:00:00"},{"$f":"INDEX('[1]ГРАФИК И.Б.НОЯБРЬ '!$AC37:$HF37,1,MATCH(G$10,'[1]ГРАФИК И.Б.НОЯБРЬ '!$AC$19:$HF$19,0))","v":"11:00:00"},{"$f":"INDEX('[1]ГРАФИК И.Б.НОЯБРЬ '!$AC37:$HF37,1,MATCH(H$10,'[1]ГРАФИК И.Б.НОЯБРЬ '!$AC$19:$HF$19,0))","v":"00:00:00"},{"$f":"INDEX('[1]ГРАФИК И.Б.НОЯБРЬ '!$AC37:$HF37,1,MATCH(I$10,'[1]ГРАФИК И.Б.НОЯБРЬ '!$AC$19:$HF$19,0))","v":"11:00:00"},{"$f":"INDEX('[1]ГРАФИК И.Б.НОЯБРЬ '!$AC37:$HF37,1,MATCH(J$10,'[1]ГРАФИК И.Б.НОЯБРЬ '!$AC$19:$HF$19,0))","v":"00:00:00"},{"$f":"INDEX('[1]ГРАФИК И.Б.НОЯБРЬ '!$AC37:$HF37,1,MATCH(K$10,'[1]ГРАФИК И.Б.НОЯБРЬ '!$AC$19:$HF$19,0))","v":"11:00:00"},{"$f":"INDEX('[1]ГРАФИК И.Б.НОЯБРЬ '!$AC37:$HF37,1,MATCH(L$10,'[1]ГРАФИК И.Б.НОЯБРЬ '!$AC$19:$HF$19,0))","v":"00:00:00"},{"$f":"INDEX('[1]ГРАФИК И.Б.НОЯБРЬ '!$AC37:$HF37,1,MATCH(M$10,'[1]ГРАФИК И.Б.НОЯБРЬ '!$AC$19:$HF$19,0))","v":"11:00:00"},{"$f":"INDEX('[1]ГРАФИК И.Б.НОЯБРЬ '!$AC37:$HF37,1,MATCH(N$10,'[1]ГРАФИК И.Б.НОЯБРЬ '!$AC$19:$HF$19,0))","v":"00:00:00"},{"$f":"INDEX('[1]ГРАФИК И.Б.НОЯБРЬ '!$AC37:$HF37,1,MATCH(O$10,'[1]ГРАФИК И.Б.НОЯБРЬ '!$AC$19:$HF$19,0))","v":"11:00:00"},{"$f":"INDEX('[1]ГРАФИК И.Б.НОЯБРЬ '!$AC37:$HF37,1,MATCH(P$10,'[1]ГРАФИК И.Б.НОЯБРЬ '!$AC$19:$HF$19,0))","v":"00:00:00"},{"$f":"INDEX('[1]ГРАФИК И.Б.НОЯБРЬ '!$AC37:$HF37,1,MATCH(Q$10,'[1]ГРАФИК И.Б.НОЯБРЬ '!$AC$19:$HF$19,0))","v":"11:00:00"},{"$f":"INDEX('[1]ГРАФИК И.Б.НОЯБРЬ '!$AC37:$HF37,1,MATCH(R$10,'[1]ГРАФИК И.Б.НОЯБРЬ '!$AC$19:$HF$19,0))","v":"00:00:00"},{"$f":"INDEX('[1]ГРАФИК И.Б.НОЯБРЬ '!$AC37:$HF37,1,MATCH(S$10,'[1]ГРАФИК И.Б.НОЯБРЬ '!$AC$19:$HF$19,0))","v":"11:00:00"},{"$f":"INDEX('[1]ГРАФИК И.Б.НОЯБРЬ '!$AC37:$HF37,1,MATCH(T$10,'[1]ГРАФИК И.Б.НОЯБРЬ '!$AC$19:$HF$19,0))","v":"00:00:00"},null,{"$f":"INDEX('[1]ГРАФИК И.Б.НОЯБРЬ '!$AC37:$HF37,1,MATCH(V$10,'[1]ГРАФИК И.Б.НОЯБРЬ '!$AC$19:$HF$19,0))","v":"11:00:00"},{"$f":"INDEX('[1]ГРАФИК И.Б.НОЯБРЬ '!$AC37:$HF37,1,MATCH(W$10,'[1]ГРАФИК И.Б.НОЯБРЬ '!$AC$19:$HF$19,0))","v":"00:00:00"},{"$f":"INDEX('[1]ГРАФИК И.Б.НОЯБРЬ '!$AC37:$HF37,1,MATCH(X$10,'[1]ГРАФИК И.Б.НОЯБРЬ '!$AC$19:$HF$19,0))","v":"11:00:00"},{"$f":"INDEX('[1]ГРАФИК И.Б.НОЯБРЬ '!$AC37:$HF37,1,MATCH(Y$10,'[1]ГРАФИК И.Б.НОЯБРЬ '!$AC$19:$HF$19,0))","v":"00:00:00"},{"$f":"INDEX('[1]ГРАФИК И.Б.НОЯБРЬ '!$AC37:$HF37,1,MATCH(Z$10,'[1]ГРАФИК И.Б.НОЯБРЬ '!$AC$19:$HF$19,0))","v":"10:00:00"},{"$f":"INDEX('[1]ГРАФИК И.Б.НОЯБРЬ '!$AC37:$HF37,1,MATCH(AA$10,'[1]ГРАФИК И.Б.НОЯБРЬ '!$AC$19:$HF$19,0))","v":"00:00:00"},{"$f":"INDEX('[1]ГРАФИК И.Б.НОЯБРЬ '!$AC37:$HF37,1,MATCH(AB$10,'[1]ГРАФИК И.Б.НОЯБРЬ '!$AC$19:$HF$19,0))","v":"10:00:00"},{"$f":"INDEX('[1]ГРАФИК И.Б.НОЯБРЬ '!$AC37:$HF37,1,MATCH(AC$10,'[1]ГРАФИК И.Б.НОЯБРЬ '!$AC$19:$HF$19,0))","v":"00:00:00"},{"$f":"INDEX('[1]ГРАФИК И.Б.НОЯБРЬ '!$AC37:$HF37,1,MATCH(AD$10,'[1]ГРАФИК И.Б.НОЯБРЬ '!$AC$19:$HF$19,0))","v":"10:00:00"},{"$f":"INDEX('[1]ГРАФИК И.Б.НОЯБРЬ '!$AC37:$HF37,1,MATCH(AE$10,'[1]ГРАФИК И.Б.НОЯБРЬ '!$AC$19:$HF$19,0))","v":"00:00:00"},{"$f":"INDEX('[1]ГРАФИК И.Б.НОЯБРЬ '!$AC37:$HF37,1,MATCH(AF$10,'[1]ГРАФИК И.Б.НОЯБРЬ '!$AC$19:$HF$19,0))","v":"10:00:00"},{"$f":"INDEX('[1]ГРАФИК И.Б.НОЯБРЬ '!$AC37:$HF37,1,MATCH(AG$10,'[1]ГРАФИК И.Б.НОЯБРЬ '!$AC$19:$HF$19,0))","v":"00:00:00"},{"$f":"INDEX('[1]ГРАФИК И.Б.НОЯБРЬ '!$AC37:$HF37,1,MATCH(AH$10,'[1]ГРАФИК И.Б.НОЯБРЬ '!$AC$19:$HF$19,0))","v":"10:00:00"},{"$f":"INDEX('[1]ГРАФИК И.Б.НОЯБРЬ '!$AC37:$HF37,1,MATCH(AI$10,'[1]ГРАФИК И.Б.НОЯБРЬ '!$AC$19:$HF$19,0))","v":"00:00:00"},{"$f":"INDEX('[1]ГРАФИК И.Б.НОЯБРЬ '!$AC37:$HF37,1,MATCH(AJ$10,'[1]ГРАФИК И.Б.НОЯБРЬ '!$AC$19:$HF$19,0))","v":"10:00:00"},null,{"$f":"COUNTIF($F20:$AK20,\">0\")","v":15},{"$f":"SUM($F$20:$AK$20)","v":6.6250000000000018},null,null,null,null,null,null,null,null,null,null,null,null,null,null,null,null,null,{"$f":"COUNTIF(F21:AK21,\"В\")","v":15},null,null,"дворник"]
[null,null,null,null,null,{"$f":"IF('[1]ГРАФИК И.Б.НОЯБРЬ '!AC34=\"ОТ\",\"ОТ\",IF(F20=0,\"В\",\"Я\"))","v":"В"},{"$f":"IF('[1]ГРАФИК И.Б.НОЯБРЬ '!AD34=\"ОТ\",\"ОТ\",IF(G20=0,\"В\",\"Я\"))","v":"Я"},{"$f":"IF('[1]ГРАФИК И.Б.НОЯБРЬ '!AE34=\"ОТ\",\"ОТ\",IF(H20=0,\"В\",\"Я\"))","v":"В"},{"$f":"IF('[1]ГРАФИК И.Б.НОЯБРЬ '!AF34=\"ОТ\",\"ОТ\",IF(I20=0,\"В\",\"Я\"))","v":"Я"},{"$f":"IF('[1]ГРАФИК И.Б.НОЯБРЬ '!AG34=\"ОТ\",\"ОТ\",IF(J20=0,\"В\",\"Я\"))","v":"В"},{"$f":"IF('[1]ГРАФИК И.Б.НОЯБРЬ '!AH34=\"ОТ\",\"ОТ\",IF(K20=0,\"В\",\"Я\"))","v":"Я"},{"$f":"IF('[1]ГРАФИК И.Б.НОЯБРЬ '!AI34=\"ОТ\",\"ОТ\",IF(L20=0,\"В\",\"Я\"))","v":"В"},{"$f":"IF('[1]ГРАФИК И.Б.НОЯБРЬ '!AJ34=\"ОТ\",\"ОТ\",IF(M20=0,\"В\",\"Я\"))","v":"Я"},{"$f":"IF('[1]ГРАФИК И.Б.НОЯБРЬ '!AK34=\"ОТ\",\"ОТ\",IF(N20=0,\"В\",\"Я\"))","v":"В"},{"$f":"IF('[1]ГРАФИК И.Б.НОЯБРЬ '!AL34=\"ОТ\",\"ОТ\",IF(O20=0,\"В\",\"Я\"))","v":"Я"},{"$f":"IF('[1]ГРАФИК И.Б.НОЯБРЬ '!AM34=\"ОТ\",\"ОТ\",IF(P20=0,\"В\",\"Я\"))","v":"В"},{"$f":"IF('[1]ГРАФИК И.Б.НОЯБРЬ '!AN34=\"ОТ\",\"ОТ\",IF(Q20=0,\"В\",\"Я\"))","v":"Я"},{"$f":"IF('[1]ГРАФИК И.Б.НОЯБРЬ '!AO34=\"ОТ\",\"ОТ\",IF(R20=0,\"В\",\"Я\"))","v":"В"},{"$f":"IF('[1]ГРАФИК И.Б.НОЯБРЬ '!AP34=\"ОТ\",\"ОТ\",IF(S20=0,\"В\",\"Я\"))","v":"Я"},{"$f":"IF('[1]ГРАФИК И.Б.НОЯБРЬ '!AQ34=\"ОТ\",\"ОТ\",IF(T20=0,\"В\",\"Я\"))","v":"В"}," ",{"$f":"IF('[1]ГРАФИК И.Б.НОЯБРЬ '!AS34=\"ОТ\",\"ОТ\",IF(V20=0,\"В\",\"Я\"))","v":"Я"},{"$f":"IF('[1]ГРАФИК И.Б.НОЯБРЬ '!AT34=\"ОТ\",\"ОТ\",IF(W20=0,\"В\",\"Я\"))","v":"В"},{"$f":"IF('[1]ГРАФИК И.Б.НОЯБРЬ '!AU34=\"ОТ\",\"ОТ\",IF(X20=0,\"В\",\"Я\"))","v":"Я"},{"$f":"IF('[1]ГРАФИК И.Б.НОЯБРЬ '!AV34=\"ОТ\",\"ОТ\",IF(Y20=0,\"В\",\"Я\"))","v":"В"},{"$f":"IF('[1]ГРАФИК И.Б.НОЯБРЬ '!AW34=\"ОТ\",\"ОТ\",IF(Z20=0,\"В\",\"Я\"))","v":"Я"},{"$f":"IF('[1]ГРАФИК И.Б.НОЯБРЬ '!AX34=\"ОТ\",\"ОТ\",IF(AA20=0,\"В\",\"Я\"))","v":"В"},{"$f":"IF('[1]ГРАФИК И.Б.НОЯБРЬ '!AY34=\"ОТ\",\"ОТ\",IF(AB20=0,\"В\",\"Я\"))","v":"Я"},{"$f":"IF('[1]ГРАФИК И.Б.НОЯБРЬ '!AZ34=\"ОТ\",\"ОТ\",IF(AC20=0,\"В\",\"Я\"))","v":"В"},{"$f":"IF('[1]ГРАФИК И.Б.НОЯБРЬ '!BA34=\"ОТ\",\"ОТ\",IF(AD20=0,\"В\",\"Я\"))","v":"Я"},{"$f":"IF('[1]ГРАФИК И.Б.НОЯБРЬ '!BB34=\"ОТ\",\"ОТ\",IF(AE20=0,\"В\",\"Я\"))","v":"В"},{"$f":"IF('[1]ГРАФИК И.Б.НОЯБРЬ '!BC34=\"ОТ\",\"ОТ\",IF(AF20=0,\"В\",\"Я\"))","v":"Я"},{"$f":"IF('[1]ГРАФИК И.Б.НОЯБРЬ '!BD34=\"ОТ\",\"ОТ\",IF(AG20=0,\"В\",\"Я\"))","v":"В"},{"$f":"IF('[1]ГРАФИК И.Б.НОЯБРЬ '!BE34=\"ОТ\",\"ОТ\",IF(AH20=0,\"В\",\"Я\"))","v":"Я"},{"$f":"IF('[1]ГРАФИК И.Б.НОЯБРЬ '!BF34=\"ОТ\",\"ОТ\",IF(AI20=0,\"В\",\"Я\"))","v":"В"},{"$f":"IF('[1]ГРАФИК И.Б.НОЯБРЬ '!BG34=\"ОТ\",\"ОТ\",IF(AJ20=0,\"В\",\"Я\"))","v":"Я"}]
[null,null,null,"кассир билетный",null,{"$f":"IFERROR(INDEX('[1]ГРАФИК И.Б.НОЯБРЬ '!$AC43:$HF43,1,MATCH(F$10,'[1]ГРАФИК И.Б.НОЯБРЬ '!$AC$19:$HF$19,0)),\"\")","v":"11:00:00"},{"$f":"IFERROR(INDEX('[1]ГРАФИК И.Б.НОЯБРЬ '!$AC43:$HF43,1,MATCH(G$10,'[1]ГРАФИК И.Б.НОЯБРЬ '!$AC$19:$HF$19,0)),\"\")","v":"00:00:00"},{"$f":"IFERROR(INDEX('[1]ГРАФИК И.Б.НОЯБРЬ '!$AC43:$HF43,1,MATCH(H$10,'[1]ГРАФИК И.Б.НОЯБРЬ '!$AC$19:$HF$19,0)),\"\")","v":"11:00:00"},{"$f":"IFERROR(INDEX('[1]ГРАФИК И.Б.НОЯБРЬ '!$AC43:$HF43,1,MATCH(I$10,'[1]ГРАФИК И.Б.НОЯБРЬ '!$AC$19:$HF$19,0)),\"\")","v":"00:00:00"},{"$f":"IFERROR(INDEX('[1]ГРАФИК И.Б.НОЯБРЬ '!$AC43:$HF43,1,MATCH(J$10,'[1]ГРАФИК И.Б.НОЯБРЬ '!$AC$19:$HF$19,0)),\"\")","v":"11:00:00"},{"$f":"IFERROR(INDEX('[1]ГРАФИК И.Б.НОЯБРЬ '!$AC43:$HF43,1,MATCH(K$10,'[1]ГРАФИК И.Б.НОЯБРЬ '!$AC$19:$HF$19,0)),\"\")","v":"00:00:00"},{"$f":"IFERROR(INDEX('[1]ГРАФИК И.Б.НОЯБРЬ '!$AC43:$HF43,1,MATCH(L$10,'[1]ГРАФИК И.Б.НОЯБРЬ '!$AC$19:$HF$19,0)),\"\")","v":"11:00:00"},{"$f":"IFERROR(INDEX('[1]ГРАФИК И.Б.НОЯБРЬ '!$AC43:$HF43,1,MATCH(M$10,'[1]ГРАФИК И.Б.НОЯБРЬ '!$AC$19:$HF$19,0)),\"\")","v":"00:00:00"},{"$f":"IFERROR(INDEX('[1]ГРАФИК И.Б.НОЯБРЬ '!$AC43:$HF43,1,MATCH(N$10,'[1]ГРАФИК И.Б.НОЯБРЬ '!$AC$19:$HF$19,0)),\"\")","v":"11:00:00"},{"$f":"IFERROR(INDEX('[1]ГРАФИК И.Б.НОЯБРЬ '!$AC43:$HF43,1,MATCH(O$10,'[1]ГРАФИК И.Б.НОЯБРЬ '!$AC$19:$HF$19,0)),\"\")","v":"00:00:00"},{"$f":"IFERROR(INDEX('[1]ГРАФИК И.Б.НОЯБРЬ '!$AC43:$HF43,1,MATCH(P$10,'[1]ГРАФИК И.Б.НОЯБРЬ '!$AC$19:$HF$19,0)),\"\")","v":"11:00:00"},{"$f":"IFERROR(INDEX('[1]ГРАФИК И.Б.НОЯБРЬ '!$AC43:$HF43,1,MATCH(Q$10,'[1]ГРАФИК И.Б.НОЯБРЬ '!$AC$19:$HF$19,0)),\"\")","v":"00:00:00"},{"$f":"IFERROR(INDEX('[1]ГРАФИК И.Б.НОЯБРЬ '!$AC43:$HF43,1,MATCH(R$10,'[1]ГРАФИК И.Б.НОЯБРЬ '!$AC$19:$HF$19,0)),\"\")","v":"11:00:00"},{"$f":"IFERROR(INDEX('[1]ГРАФИК И.Б.НОЯБРЬ '!$AC43:$HF43,1,MATCH(S$10,'[1]ГРАФИК И.Б.НОЯБРЬ '!$AC$19:$HF$19,0)),\"\")","v":"00:00:00"},{"$f":"IFERROR(INDEX('[1]ГРАФИК И.Б.НОЯБРЬ '!$AC43:$HF43,1,MATCH(T$10,'[1]ГРАФИК И.Б.НОЯБРЬ '!$AC$19:$HF$19,0)),\"\")","v":"11:00:00"},{"$f":"IFERROR(INDEX('[1]ГРАФИК И.Б.НОЯБРЬ '!$AC43:$HF43,1,MATCH(U$10,'[1]ГРАФИК И.Б.НОЯБРЬ '!$AC$19:$HF$19,0)),\"\")","v":""},{"$f":"IFERROR(INDEX('[1]ГРАФИК И.Б.НОЯБРЬ '!$AC43:$HF43,1,MATCH(V$10,'[1]ГРАФИК И.Б.НОЯБРЬ '!$AC$19:$HF$19,0)),\"\")","v":"00:00:00"},{"$f":"IFERROR(INDEX('[1]ГРАФИК И.Б.НОЯБРЬ '!$AC43:$HF43,1,MATCH(W$10,'[1]ГРАФИК И.Б.НОЯБРЬ '!$AC$19:$HF$19,0)),\"\")","v":"11:00:00"},{"$f":"IFERROR(INDEX('[1]ГРАФИК И.Б.НОЯБРЬ '!$AC43:$HF43,1,MATCH(X$10,'[1]ГРАФИК И.Б.НОЯБРЬ '!$AC$19:$HF$19,0)),\"\")","v":"00:00:00"},{"$f":"IFERROR(INDEX('[1]ГРАФИК И.Б.НОЯБРЬ '!$AC43:$HF43,1,MATCH(Y$10,'[1]ГРАФИК И.Б.НОЯБРЬ '!$AC$19:$HF$19,0)),\"\")","v":"10:00:00"},{"$f":"IFERROR(INDEX('[1]ГРАФИК И.Б.НОЯБРЬ '!$AC43:$HF43,1,MATCH(Z$10,'[1]ГРАФИК И.Б.НОЯБРЬ '!$AC$19:$HF$19,0)),\"\")","v":"00:00:00"},{"$f":"IFERROR(INDEX('[1]ГРАФИК И.Б.НОЯБРЬ '!$AC43:$HF43,1,MATCH(AA$10,'[1]ГРАФИК И.Б.НОЯБРЬ '!$AC$19:$HF$19,0)),\"\")","v":"10:00:00"},{"$f":"IFERROR(INDEX('[1]ГРАФИК И.Б.НОЯБРЬ '!$AC43:$HF43,1,MATCH(AB$10,'[1]ГРАФИК И.Б.НОЯБРЬ '!$AC$19:$HF$19,0)),\"\")","v":"00:00:00"},{"$f":"IFERROR(INDEX('[1]ГРАФИК И.Б.НОЯБРЬ '!$AC43:$HF43,1,MATCH(AC$10,'[1]ГРАФИК И.Б.НОЯБРЬ '!$AC$19:$HF$19,0)),\"\")","v":"10:00:00"},{"$f":"IFERROR(INDEX('[1]ГРАФИК И.Б.НОЯБРЬ '!$AC43:$HF43,1,MATCH(AD$10,'[1]ГРАФИК И.Б.НОЯБРЬ '!$AC$19:$HF$19,0)),\"\")","v":"00:00:00"},{"$f":"IFERROR(INDEX('[1]ГРАФИК И.Б.НОЯБРЬ '!$AC43:$HF43,1,MATCH(AE$10,'[1]ГРАФИК И.Б.НОЯБРЬ '!$AC$19:$HF$19,0)),\"\")","v":"10:00:00"},{"$f":"IFERROR(INDEX('[1]ГРАФИК И.Б.НОЯБРЬ '!$AC43:$HF43,1,MATCH(AF$10,'[1]ГРАФИК И.Б.НОЯБРЬ '!$AC$19:$HF$19,0)),\"\")","v":"00:00:00"},{"$f":"IFERROR(INDEX('[1]ГРАФИК И.Б.НОЯБРЬ '!$AC43:$HF43,1,MATCH(AG$10,'[1]ГРАФИК И.Б.НОЯБРЬ '!$AC$19:$HF$19,0)),\"\")","v":"10:00:00"},{"$f":"IFERROR(INDEX('[1]ГРАФИК И.Б.НОЯБРЬ '!$AC43:$HF43,1,MATCH(AH$10,'[1]ГРАФИК И.Б.НОЯБРЬ '!$AC$19:$HF$19,0)),\"\")","v":"00:00:00"},{"$f":"IFERROR(INDEX('[1]ГРАФИК И.Б.НОЯБРЬ '!$AC43:$HF43,1,MATCH(AI$10,'[1]ГРАФИК И.Б.НОЯБРЬ '!$AC$19:$HF$19,0)),\"\")","v":"10:00:00"},{"$f":"IFERROR(INDEX('[1]ГРАФИК И.Б.НОЯБРЬ '!$AC43:$HF43,1,MATCH(AJ$10,'[1]ГРАФИК И.Б.НОЯБРЬ '!$AC$19:$HF$19,0)),\"\")","v":"00:00:00"},{"$f":"IFERROR(INDEX('[1]ГРАФИК И.Б.НОЯБРЬ '!$AC43:$HF43,1,MATCH(AK$10,'[1]ГРАФИК И.Б.НОЯБРЬ '!$AC$19:$HF$19,0)),\"\")","v":""},{"$f":"COUNTIF($F22:$AK22,\">0\")","v":15},{"$f":"SUM($F$22:$AK$22)","v":6.6250000000000018},null,null,null,null,null,null,null,null,null,null,null,null,null,null,null,null,null,{"$f":"COUNTIF(F23:AK23,\"В\")","v":15}]
[null,null,null,null,null,{"$f":"IF('[1]ГРАФИК И.Б.НОЯБРЬ '!AC40=\"ОТ\",\"ОТ\",IF(F22=0,\"В\",\"Я\"))","v":"Я"},{"$f":"IF('[1]ГРАФИК И.Б.НОЯБРЬ '!AD40=\"ОТ\",\"ОТ\",IF(G22=0,\"В\",\"Я\"))","v":"В"},{"$f":"IF('[1]ГРАФИК И.Б.НОЯБРЬ '!AE40=\"ОТ\",\"ОТ\",IF(H22=0,\"В\",\"Я\"))","v":"Я"},{"$f":"IF('[1]ГРАФИК И.Б.НОЯБРЬ '!AF40=\"ОТ\",\"ОТ\",IF(I22=0,\"В\",\"Я\"))","v":"В"},{"$f":"IF('[1]ГРАФИК И.Б.НОЯБРЬ '!AG40=\"ОТ\",\"ОТ\",IF(J22=0,\"В\",\"Я\"))","v":"Я"},{"$f":"IF('[1]ГРАФИК И.Б.НОЯБРЬ '!AH40=\"ОТ\",\"ОТ\",IF(K22=0,\"В\",\"Я\"))","v":"В"},{"$f":"IF('[1]ГРАФИК И.Б.НОЯБРЬ '!AI40=\"ОТ\",\"ОТ\",IF(L22=0,\"В\",\"Я\"))","v":"Я"},{"$f":"IF('[1]ГРАФИК И.Б.НОЯБРЬ '!AJ40=\"ОТ\",\"ОТ\",IF(M22=0,\"В\",\"Я\"))","v":"В"},{"$f":"IF('[1]ГРАФИК И.Б.НОЯБРЬ '!AK40=\"ОТ\",\"ОТ\",IF(N22=0,\"В\",\"Я\"))","v":"Я"},{"$f":"IF('[1]ГРАФИК И.Б.НОЯБРЬ '!AL40=\"ОТ\",\"ОТ\",IF(O22=0,\"В\",\"Я\"))","v":"В"},{"$f":"IF('[1]ГРАФИК И.Б.НОЯБРЬ '!AM40=\"ОТ\",\"ОТ\",IF(P22=0,\"В\",\"Я\"))","v":"Я"},{"$f":"IF('[1]ГРАФИК И.Б.НОЯБРЬ '!AN40=\"ОТ\",\"ОТ\",IF(Q22=0,\"В\",\"Я\"))","v":"В"},{"$f":"IF('[1]ГРАФИК И.Б.НОЯБРЬ '!AO40=\"ОТ\",\"ОТ\",IF(R22=0,\"В\",\"Я\"))","v":"Я"},{"$f":"IF('[1]ГРАФИК И.Б.НОЯБРЬ '!AP40=\"ОТ\",\"ОТ\",IF(S22=0,\"В\",\"Я\"))","v":"В"},{"$f":"IF('[1]ГРАФИК И.Б.НОЯБРЬ '!AQ40=\"ОТ\",\"ОТ\",IF(T22=0,\"В\",\"Я\"))","v":"Я"}," ",{"$f":"IF('[1]ГРАФИК И.Б.НОЯБРЬ '!AS40=\"ОТ\",\"ОТ\",IF(V22=0,\"В\",\"Я\"))","v":"В"},{"$f":"IF('[1]ГРАФИК И.Б.НОЯБРЬ '!AT40=\"ОТ\",\"ОТ\",IF(W22=0,\"В\",\"Я\"))","v":"Я"},{"$f":"IF('[1]ГРАФИК И.Б.НОЯБРЬ '!AU40=\"ОТ\",\"ОТ\",IF(X22=0,\"В\",\"Я\"))","v":"В"},{"$f":"IF('[1]ГРАФИК И.Б.НОЯБРЬ '!AV40=\"ОТ\",\"ОТ\",IF(Y22=0,\"В\",\"Я\"))","v":"Я"},{"$f":"IF('[1]ГРАФИК И.Б.НОЯБРЬ '!AW40=\"ОТ\",\"ОТ\",IF(Z22=0,\"В\",\"Я\"))","v":"В"},{"$f":"IF('[1]ГРАФИК И.Б.НОЯБРЬ '!AX40=\"ОТ\",\"ОТ\",IF(AA22=0,\"В\",\"Я\"))","v":"Я"},{"$f":"IF('[1]ГРАФИК И.Б.НОЯБРЬ '!AY40=\"ОТ\",\"ОТ\",IF(AB22=0,\"В\",\"Я\"))","v":"В"},{"$f":"IF('[1]ГРАФИК И.Б.НОЯБРЬ '!AZ40=\"ОТ\",\"ОТ\",IF(AC22=0,\"В\",\"Я\"))","v":"Я"},{"$f":"IF('[1]ГРАФИК И.Б.НОЯБРЬ '!BA40=\"ОТ\",\"ОТ\",IF(AD22=0,\"В\",\"Я\"))","v":"В"},{"$f":"IF('[1]ГРАФИК И.Б.НОЯБРЬ '!BB40=\"ОТ\",\"ОТ\",IF(AE22=0,\"В\",\"Я\"))","v":"Я"},{"$f":"IF('[1]ГРАФИК И.Б.НОЯБРЬ '!BC40=\"ОТ\",\"ОТ\",IF(AF22=0,\"В\",\"Я\"))","v":"В"},{"$f":"IF('[1]ГРАФИК И.Б.НОЯБРЬ '!BD40=\"ОТ\",\"ОТ\",IF(AG22=0,\"В\",\"Я\"))","v":"Я"},{"$f":"IF('[1]ГРАФИК И.Б.НОЯБРЬ '!BE40=\"ОТ\",\"ОТ\",IF(AH22=0,\"В\",\"Я\"))","v":"В"},{"$f":"IF('[1]ГРАФИК И.Б.НОЯБРЬ '!BF40=\"ОТ\",\"ОТ\",IF(AI22=0,\"В\",\"Я\"))","v":"Я"},{"$f":"IF('[1]ГРАФИК И.Б.НОЯБРЬ '!BG40=\"ОТ\",\"ОТ\",IF(AJ22=0,\"В\",\"Я\"))","v":"В"}]
[null,null,null,"дворник",null,{"$f":"IFERROR(INDEX('[1]ГРАФИК И.Б.НОЯБРЬ '!$AC49:$HF49,1,MATCH(F$10,'[1]ГРАФИК И.Б.НОЯБРЬ '!$AC$19:$HF$19,0)),\"\")","v":"06:00:00"},{"$f":"IFERROR(INDEX('[1]ГРАФИК И.Б.НОЯБРЬ '!$AC49:$HF49,1,MATCH(G$10,'[1]ГРАФИК И.Б.НОЯБРЬ '!$AC$19:$HF$19,0)),\"\")","v":"06:00:00"},{"$f":"IFERROR(INDEX('[1]ГРАФИК И.Б.НОЯБРЬ '!$AC49:$HF49,1,MATCH(H$10,'[1]ГРАФИК И.Б.НОЯБРЬ '!$AC$19:$HF$19,0)),\"\")","v":"06:00:00"},{"$f":"IFERROR(INDEX('[1]ГРАФИК И.Б.НОЯБРЬ '!$AC49:$HF49,1,MATCH(I$10,'[1]ГРАФИК И.Б.НОЯБРЬ '!$AC$19:$HF$19,0)),\"\")","v":"00:00:00"},{"$f":"IFERROR(INDEX('[1]ГРАФИК И.Б.НОЯБРЬ '!$AC49:$HF49,1,MATCH(J$10,'[1]ГРАФИК И.Б.НОЯБРЬ '!$AC$19:$HF$19,0)),\"\")","v":"05:00:00"},{"$f":"IFERROR(INDEX('[1]ГРАФИК И.Б.НОЯБРЬ '!$AC49:$HF49,1,MATCH(K$10,'[1]ГРАФИК И.Б.НОЯБРЬ '!$AC$19:$HF$19,0)),\"\")","v":"00:00:00"},{"$f":"IFERROR(INDEX('[1]ГРАФИК И.Б.НОЯБРЬ '!$AC49:$HF49,1,MATCH(L$10,'[1]ГРАФИК И.Б.НОЯБРЬ '!$AC$19:$HF$19,0)),\"\")","v":"06:00:00"},{"$f":"IFERROR(INDEX('[1]ГРАФИК И.Б.НОЯБРЬ '!$AC49:$HF49,1,MATCH(M$10,'[1]ГРАФИК И.Б.НОЯБРЬ '!$AC$19:$HF$19,0)),\"\")","v":"06:00:00"},{"$f":"IFERROR(INDEX('[1]ГРАФИК И.Б.НОЯБРЬ '!$AC49:$HF49,1,MATCH(N$10,'[1]ГРАФИК И.Б.НОЯБРЬ '!$AC$19:$HF$19,0)),\"\")","v":"06:00:00"},{"$f":"IFERROR(INDEX('[1]ГРАФИК И.Б.НОЯБРЬ '!$AC49:$HF49,1,MATCH(O$10,'[1]ГРАФИК И.Б.НОЯБРЬ '!$AC$19:$HF$19,0)),\"\")","v":"06:00:00"},{"$f":"IFERROR(INDEX('[1]ГРАФИК И.Б.НОЯБРЬ '!$AC49:$HF49,1,MATCH(P$10,'[1]ГРАФИК И.Б.НОЯБРЬ '!$AC$19:$HF$19,0)),\"\")","v":"06:00:00"},{"$f":"IFERROR(INDEX('[1]ГРАФИК И.Б.НОЯБРЬ '!$AC49:$HF49,1,MATCH(Q$10,'[1]ГРАФИК И.Б.НОЯБРЬ '!$AC$19:$HF$19,0)),\"\")","v":"05:00:00"},{"$f":"IFERROR(INDEX('[1]ГРАФИК И.Б.НОЯБРЬ '!$AC49:$HF49,1,MATCH(R$10,'[1]ГРАФИК И.Б.НОЯБРЬ '!$AC$19:$HF$19,0)),\"\")","v":"00:00:00"},{"$f":"IFERROR(INDEX('[1]ГРАФИК И.Б.НОЯБРЬ '!$AC49:$HF49,1,MATCH(S$10,'[1]ГРАФИК И.Б.НОЯБРЬ '!$AC$19:$HF$19,0)),\"\")","v":"07:00:00"},{"$f":"IFERROR(INDEX('[1]ГРАФИК И.Б.НОЯБРЬ '!$AC49:$HF49,1,MATCH(T$10,'[1]ГРАФИК И.Б.НОЯБРЬ '!$AC$19:$HF$19,0)),\"\")","v":"07:00:00"},{"$f":"IFERROR(INDEX('[1]ГРАФИК И.Б.НОЯБРЬ '!$AC49:$HF49,1,MATCH(U$10,'[1]ГРАФИК И.Б.НОЯБРЬ '!$AC$19:$HF$19,0)),\"\")","v":""},{"$f":"IFERROR(INDEX('[1]ГРАФИК И.Б.НОЯБРЬ '!$AC49:$HF49,1,MATCH(V$10,'[1]ГРАФИК И.Б.НОЯБРЬ '!$AC$19:$HF$19,0)),\"\")","v":"07:00:00"},{"$f":"IFERROR(INDEX('[1]ГРАФИК И.Б.НОЯБРЬ '!$AC49:$HF49,1,MATCH(W$10,'[1]ГРАФИК И.Б.НОЯБРЬ '!$AC$19:$HF$19,0)),\"\")","v":"07:00:00"},{"$f":"IFERROR(INDEX('[1]ГРАФИК И.Б.НОЯБРЬ '!$AC49:$HF49,1,MATCH(X$10,'[1]ГРАФИК И.Б.НОЯБРЬ '!$AC$19:$HF$19,0)),\"\")","v":"07:00:00"},{"$f":"IFERROR(INDEX('[1]ГРАФИК И.Б.НОЯБРЬ '!$AC49:$HF49,1,MATCH(Y$10,'[1]ГРАФИК И.Б.НОЯБРЬ '!$AC$19:$HF$19,0)),\"\")","v":"05:00:00"},{"$f":"IFERROR(INDEX('[1]ГРАФИК И.Б.НОЯБРЬ '!$AC49:$HF49,1,MATCH(Z$10,'[1]ГРАФИК И.Б.НОЯБРЬ '!$AC$19:$HF$19,0)),\"\")","v":"00:00:00"},{"$f":"IFERROR(INDEX('[1]ГРАФИК И.Б.НОЯБРЬ '!$AC49:$HF49,1,MATCH(AA$10,'[1]ГРАФИК И.Б.НОЯБРЬ '!$AC$19:$HF$19,0)),\"\")","v":"07:00:00"},{"$f":"IFERROR(INDEX('[1]ГРАФИК И.Б.НОЯБРЬ '!$AC49:$HF49,1,MATCH(AB$10,'[1]ГРАФИК И.Б.НОЯБРЬ '!$AC$19:$HF$19,0)),\"\")","v":"07:00:00"},{"$f":"IFERROR(INDEX('[1]ГРАФИК И.Б.НОЯБРЬ '!$AC49:$HF49,1,MATCH(AC$10,'[1]ГРАФИК И.Б.НОЯБРЬ '!$AC$19:$HF$19,0)),\"\")","v":"07:00:00"},{"$f":"IFERROR(INDEX('[1]ГРАФИК И.Б.НОЯБРЬ '!$AC49:$HF49,1,MATCH(AD$10,'[1]ГРАФИК И.Б.НОЯБРЬ '!$AC$19:$HF$19,0)),\"\")","v":"07:00:00"},{"$f":"IFERROR(INDEX('[1]ГРАФИК И.Б.НОЯБРЬ '!$AC49:$HF49,1,MATCH(AE$10,'[1]ГРАФИК И.Б.НОЯБРЬ '!$AC$19:$HF$19,0)),\"\")","v":"07:00:00"},{"$f":"IFERROR(INDEX('[1]ГРАФИК И.Б.НОЯБРЬ '!$AC49:$HF49,1,MATCH(AF$10,'[1]ГРАФИК И.Б.НОЯБРЬ '!$AC$19:$HF$19,0)),\"\")","v":"05:00:00"},{"$f":"IFERROR(INDEX('[1]ГРАФИК И.Б.НОЯБРЬ '!$AC49:$HF49,1,MATCH(AG$10,'[1]ГРАФИК И.Б.НОЯБРЬ '!$AC$19:$HF$19,0)),\"\")","v":"00:00:00"},{"$f":"IFERROR(INDEX('[1]ГРАФИК И.Б.НОЯБРЬ '!$AC49:$HF49,1,MATCH(AH$10,'[1]ГРАФИК И.Б.НОЯБРЬ '!$AC$19:$HF$19,0)),\"\")","v":"07:00:00"},{"$f":"IFERROR(INDEX('[1]ГРАФИК И.Б.НОЯБРЬ '!$AC49:$HF49,1,MATCH(AI$10,'[1]ГРАФИК И.Б.НОЯБРЬ '!$AC$19:$HF$19,0)),\"\")","v":"07:00:00"},{"$f":"IFERROR(INDEX('[1]ГРАФИК И.Б.НОЯБРЬ '!$AC49:$HF49,1,MATCH(AJ$10,'[1]ГРАФИК И.Б.НОЯБРЬ '!$AC$19:$HF$19,0)),\"\")","v":"07:00:00"},{"$f":"IFERROR(INDEX('[1]ГРАФИК И.Б.НОЯБРЬ '!$AC49:$HF49,1,MATCH(AK$10,'[1]ГРАФИК И.Б.НОЯБРЬ '!$AC$19:$HF$19,0)),\"\")","v":""},{"$f":"COUNTIF($F24:$AK24,\">0\")","v":25},{"$f":"SUM($F$24:$AK$24)","v":6.6250000000000009},null,null,null,null,null,null,null,null,null,null,null,null,null,null,null,null,null,{"$f":"COUNTIF(F25:AK25,\"В\")","v":5}]
[null,null,null,null,null,{"$f":"IF('[1]ГРАФИК И.Б.НОЯБРЬ '!AC46=\"ОТ\",\"ОТ\",IF(F24=0,\"В\",\"Я\"))","v":"Я"},{"$f":"IF('[1]ГРАФИК И.Б.НОЯБРЬ '!AD46=\"ОТ\",\"ОТ\",IF(G24=0,\"В\",\"Я\"))","v":"Я"},{"$f":"IF('[1]ГРАФИК И.Б.НОЯБРЬ '!AE46=\"ОТ\",\"ОТ\",IF(H24=0,\"В\",\"Я\"))","v":"Я"},{"$f":"IF('[1]ГРАФИК И.Б.НОЯБРЬ '!AF46=\"ОТ\",\"ОТ\",IF(I24=0,\"В\",\"Я\"))","v":"В"},{"$f":"IF('[1]ГРАФИК И.Б.НОЯБРЬ '!AG46=\"ОТ\",\"ОТ\",IF(J24=0,\"В\",\"Я\"))","v":"Я"},{"$f":"IF('[1]ГРАФИК И.Б.НОЯБРЬ '!AH46=\"ОТ\",\"ОТ\",IF(K24=0,\"В\",\"Я\"))","v":"В"},{"$f":"IF('[1]ГРАФИК И.Б.НОЯБРЬ '!AI46=\"ОТ\",\"ОТ\",IF(L24=0,\"В\",\"Я\"))","v":"Я"},{"$f":"IF('[1]ГРАФИК И.Б.НОЯБРЬ '!AJ46=\"ОТ\",\"ОТ\",IF(M24=0,\"В\",\"Я\"))","v":"Я"},{"$f":"IF('[1]ГРАФИК И.Б.НОЯБРЬ '!AK46=\"ОТ\",\"ОТ\",IF(N24=0,\"В\",\"Я\"))","v":"Я"},{"$f":"IF('[1]ГРАФИК И.Б.НОЯБРЬ '!AL46=\"ОТ\",\"ОТ\",IF(O24=0,\"В\",\"Я\"))","v":"Я"},{"$f":"IF('[1]ГРАФИК И.Б.НОЯБРЬ '!AM46=\"ОТ\",\"ОТ\",IF(P24=0,\"В\",\"Я\"))","v":"Я"},{"$f":"IF('[1]ГРАФИК И.Б.НОЯБРЬ '!AN46=\"ОТ\",\"ОТ\",IF(Q24=0,\"В\",\"Я\"))","v":"Я"},{"$f":"IF('[1]ГРАФИК И.Б.НОЯБРЬ '!AO46=\"ОТ\",\"ОТ\",IF(R24=0,\"В\",\"Я\"))","v":"В"},{"$f":"IF('[1]ГРАФИК И.Б.НОЯБРЬ '!AP46=\"ОТ\",\"ОТ\",IF(S24=0,\"В\",\"Я\"))","v":"Я"},{"$f":"IF('[1]ГРАФИК И.Б.НОЯБРЬ '!AQ46=\"ОТ\",\"ОТ\",IF(T24=0,\"В\",\"Я\"))","v":"Я"}," ",{"$f":"IF('[1]ГРАФИК И.Б.НОЯБРЬ '!AS46=\"ОТ\",\"ОТ\",IF(V24=0,\"В\",\"Я\"))","v":"Я"},{"$f":"IF('[1]ГРАФИК И.Б.НОЯБРЬ '!AT46=\"ОТ\",\"ОТ\",IF(W24=0,\"В\",\"Я\"))","v":"Я"},{"$f":"IF('[1]ГРАФИК И.Б.НОЯБРЬ '!AU46=\"ОТ\",\"ОТ\",IF(X24=0,\"В\",\"Я\"))","v":"Я"},{"$f":"IF('[1]ГРАФИК И.Б.НОЯБРЬ '!AV46=\"ОТ\",\"ОТ\",IF(Y24=0,\"В\",\"Я\"))","v":"Я"},{"$f":"IF('[1]ГРАФИК И.Б.НОЯБРЬ '!AW46=\"ОТ\",\"ОТ\",IF(Z24=0,\"В\",\"Я\"))","v":"В"},{"$f":"IF('[1]ГРАФИК И.Б.НОЯБРЬ '!AX46=\"ОТ\",\"ОТ\",IF(AA24=0,\"В\",\"Я\"))","v":"Я"},{"$f":"IF('[1]ГРАФИК И.Б.НОЯБРЬ '!AY46=\"ОТ\",\"ОТ\",IF(AB24=0,\"В\",\"Я\"))","v":"Я"},{"$f":"IF('[1]ГРАФИК И.Б.НОЯБРЬ '!AZ46=\"ОТ\",\"ОТ\",IF(AC24=0,\"В\",\"Я\"))","v":"Я"},{"$f":"IF('[1]ГРАФИК И.Б.НОЯБРЬ '!BA46=\"ОТ\",\"ОТ\",IF(AD24=0,\"В\",\"Я\"))","v":"Я"},{"$f":"IF('[1]ГРАФИК И.Б.НОЯБРЬ '!BB46=\"ОТ\",\"ОТ\",IF(AE24=0,\"В\",\"Я\"))","v":"Я"},{"$f":"IF('[1]ГРАФИК И.Б.НОЯБРЬ '!BC46=\"ОТ\",\"ОТ\",IF(AF24=0,\"В\",\"Я\"))","v":"Я"},{"$f":"IF('[1]ГРАФИК И.Б.НОЯБРЬ '!BD46=\"ОТ\",\"ОТ\",IF(AG24=0,\"В\",\"Я\"))","v":"В"},{"$f":"IF('[1]ГРАФИК И.Б.НОЯБРЬ '!BE46=\"ОТ\",\"ОТ\",IF(AH24=0,\"В\",\"Я\"))","v":"Я"},{"$f":"IF('[1]ГРАФИК И.Б.НОЯБРЬ '!BF46=\"ОТ\",\"ОТ\",IF(AI24=0,\"В\",\"Я\"))","v":"Я"},{"$f":"IF('[1]ГРАФИК И.Б.НОЯБРЬ '!BG46=\"ОТ\",\"ОТ\",IF(AJ24=0,\"В\",\"Я\"))","v":"Я"}]
[null,null,null,"контролёр-посадчик аттракциона",null,{"$f":"IFERROR(INDEX('[1]ГРАФИК И.Б.НОЯБРЬ '!$AC55:$HF55,1,MATCH(F$10,'[1]ГРАФИК И.Б.НОЯБРЬ '!$AC$19:$HF$19,0)),\"\")","v":"00:00:00"},{"$f":"IFERROR(INDEX('[1]ГРАФИК И.Б.НОЯБРЬ '!$AC55:$HF55,1,MATCH(G$10,'[1]ГРАФИК И.Б.НОЯБРЬ '!$AC$19:$HF$19,0)),\"\")","v":"11:00:00"},{"$f":"IFERROR(INDEX('[1]ГРАФИК И.Б.НОЯБРЬ '!$AC55:$HF55,1,MATCH(H$10,'[1]ГРАФИК И.Б.НОЯБРЬ '!$AC$19:$HF$19,0)),\"\")","v":"00:00:00"},{"$f":"IFERROR(INDEX('[1]ГРАФИК И.Б.НОЯБРЬ '!$AC55:$HF55,1,MATCH(I$10,'[1]ГРАФИК И.Б.НОЯБРЬ '!$AC$19:$HF$19,0)),\"\")","v":"11:00:00"},{"$f":"IFERROR(INDEX('[1]ГРАФИК И.Б.НОЯБРЬ '!$AC55:$HF55,1,MATCH(J$10,'[1]ГРАФИК И.Б.НОЯБРЬ '!$AC$19:$HF$19,0)),\"\")","v":"00:00:00"},{"$f":"IFERROR(INDEX('[1]ГРАФИК И.Б.НОЯБРЬ '!$AC55:$HF55,1,MATCH(K$10,'[1]ГРАФИК И.Б.НОЯБРЬ '!$AC$19:$HF$19,0)),\"\")","v":"11:00:00"},{"$f":"IFERROR(INDEX('[1]ГРАФИК И.Б.НОЯБРЬ '!$AC55:$HF55,1,MATCH(L$10,'[1]ГРАФИК И.Б.НОЯБРЬ '!$AC$19:$HF$19,0)),\"\")","v":"00:00:00"},{"$f":"IFERROR(INDEX('[1]ГРАФИК И.Б.НОЯБРЬ '!$AC55:$HF55,1,MATCH(M$10,'[1]ГРАФИК И.Б.НОЯБРЬ '!$AC$19:$HF$19,0)),\"\")","v":"11:00:00"},{"$f":"IFERROR(INDEX('[1]ГРАФИК И.Б.НОЯБРЬ '!$AC55:$HF55,1,MATCH(N$10,'[1]ГРАФИК И.Б.НОЯБРЬ '!$AC$19:$HF$19,0)),\"\")","v":"00:00:00"},{"$f":"IFERROR(INDEX('[1]ГРАФИК И.Б.НОЯБРЬ '!$AC55:$HF55,1,MATCH(O$10,'[1]ГРАФИК И.Б.НОЯБРЬ '!$AC$19:$HF$19,0)),\"\")","v":"11:00:00"},{"$f":"IFERROR(INDEX('[1]ГРАФИК И.Б.НОЯБРЬ '!$AC55:$HF55,1,MATCH(P$10,'[1]ГРАФИК И.Б.НОЯБРЬ '!$AC$19:$HF$19,0)),\"\")","v":"00:00:00"},{"$f":"IFERROR(INDEX('[1]ГРАФИК И.Б.НОЯБРЬ '!$AC55:$HF55,1,MATCH(Q$10,'[1]ГРАФИК И.Б.НОЯБРЬ '!$AC$19:$HF$19,0)),\"\")","v":"11:00:00"},{"$f":"IFERROR(INDEX('[1]ГРАФИК И.Б.НОЯБРЬ '!$AC55:$HF55,1,MATCH(R$10,'[1]ГРАФИК И.Б.НОЯБРЬ '!$AC$19:$HF$19,0)),\"\")","v":"00:00:00"},{"$f":"IFERROR(INDEX('[1]ГРАФИК И.Б.НОЯБРЬ '!$AC55:$HF55,1,MATCH(S$10,'[1]ГРАФИК И.Б.НОЯБРЬ '!$AC$19:$HF$19,0)),\"\")","v":"11:00:00"},{"$f":"IFERROR(INDEX('[1]ГРАФИК И.Б.НОЯБРЬ '!$AC55:$HF55,1,MATCH(T$10,'[1]ГРАФИК И.Б.НОЯБРЬ '!$AC$19:$HF$19,0)),\"\")","v":"00:00:00"},{"$f":"IFERROR(INDEX('[1]ГРАФИК И.Б.НОЯБРЬ '!$AC55:$HF55,1,MATCH(U$10,'[1]ГРАФИК И.Б.НОЯБРЬ '!$AC$19:$HF$19,0)),\"\")","v":""},{"$f":"IFERROR(INDEX('[1]ГРАФИК И.Б.НОЯБРЬ '!$AC55:$HF55,1,MATCH(V$10,'[1]ГРАФИК И.Б.НОЯБРЬ '!$AC$19:$HF$19,0)),\"\")","v":"11:00:00"},{"$f":"IFERROR(INDEX('[1]ГРАФИК И.Б.НОЯБРЬ '!$AC55:$HF55,1,MATCH(W$10,'[1]ГРАФИК И.Б.НОЯБРЬ '!$AC$19:$HF$19,0)),\"\")","v":"00:00:00"},{"$f":"IFERROR(INDEX('[1]ГРАФИК И.Б.НОЯБРЬ '!$AC55:$HF55,1,MATCH(X$10,'[1]ГРАФИК И.Б.НОЯБРЬ '!$AC$19:$HF$19,0)),\"\")","v":"11:00:00"},{"$f":"IFERROR(INDEX('[1]ГРАФИК И.Б.НОЯБРЬ '!$AC55:$HF55,1,MATCH(Y$10,'[1]ГРАФИК И.Б.НОЯБРЬ '!$AC$19:$HF$19,0)),\"\")","v":"00:00:00"},{"$f":"IFERROR(INDEX('[1]ГРАФИК И.Б.НОЯБРЬ '!$AC55:$HF55,1,MATCH(Z$10,'[1]ГРАФИК И.Б.НОЯБРЬ '!$AC$19:$HF$19,0)),\"\")","v":"10:00:00"},{"$f":"IFERROR(INDEX('[1]ГРАФИК И.Б.НОЯБРЬ '!$AC55:$HF55,1,MATCH(AA$10,'[1]ГРАФИК И.Б.НОЯБРЬ '!$AC$19:$HF$19,0)),\"\")","v":"00:00:00"},{"$f":"IFERROR(INDEX('[1]ГРАФИК И.Б.НОЯБРЬ '!$AC55:$HF55,1,MATCH(AB$10,'[1]ГРАФИК И.Б.НОЯБРЬ '!$AC$19:$HF$19,0)),\"\")","v":"10:00:00"},{"$f":"IFERROR(INDEX('[1]ГРАФИК И.Б.НОЯБРЬ '!$AC55:$HF55,1,MATCH(AC$10,'[1]ГРАФИК И.Б.НОЯБРЬ '!$AC$19:$HF$19,0)),\"\")","v":"00:00:00"},{"$f":"IFERROR(INDEX('[1]ГРАФИК И.Б.НОЯБРЬ '!$AC55:$HF55,1,MATCH(AD$10,'[1]ГРАФИК И.Б.НОЯБРЬ '!$AC$19:$HF$19,0)),\"\")","v":"10:00:00"},{"$f":"IFERROR(INDEX('[1]ГРАФИК И.Б.НОЯБРЬ '!$AC55:$HF55,1,MATCH(AE$10,'[1]ГРАФИК И.Б.НОЯБРЬ '!$AC$19:$HF$19,0)),\"\")","v":"00:00:00"},{"$f":"IFERROR(INDEX('[1]ГРАФИК И.Б.НОЯБРЬ '!$AC55:$HF55,1,MATCH(AF$10,'[1]ГРАФИК И.Б.НОЯБРЬ '!$AC$19:$HF$19,0)),\"\")","v":"10:00:00"},{"$f":"IFERROR(INDEX('[1]ГРАФИК И.Б.НОЯБРЬ '!$AC55:$HF55,1,MATCH(AG$10,'[1]ГРАФИК И.Б.НОЯБРЬ '!$AC$19:$HF$19,0)),\"\")","v":"00:00:00"},{"$f":"IFERROR(INDEX('[1]ГРАФИК И.Б.НОЯБРЬ '!$AC55:$HF55,1,MATCH(AH$10,'[1]ГРАФИК И.Б.НОЯБРЬ '!$AC$19:$HF$19,0)),\"\")","v":"10:00:00"},{"$f":"IFERROR(INDEX('[1]ГРАФИК И.Б.НОЯБРЬ '!$AC55:$HF55,1,MATCH(AI$10,'[1]ГРАФИК И.Б.НОЯБРЬ '!$AC$19:$HF$19,0)),\"\")","v":"00:00:00"},{"$f":"IFERROR(INDEX('[1]ГРАФИК И.Б.НОЯБРЬ '!$AC55:$HF55,1,MATCH(AJ$10,'[1]ГРАФИК И.Б.НОЯБРЬ '!$AC$19:$HF$19,0)),\"\")","v":"10:00:00"},{"$f":"IFERROR(INDEX('[1]ГРАФИК И.Б.НОЯБРЬ '!$AC55:$HF55,1,MATCH(AK$10,'[1]ГРАФИК И.Б.НОЯБРЬ '!$AC$19:$HF$19,0)),\"\")","v":""},{"$f":"COUNTIF($F26:$AK26,\">0\")","v":15},{"$f":"SUM($F$26:$AK$26)","v":6.6250000000000018},null,null,null,null,null,null,null,null,null,null,null,null,null,null,null,null,null,{"$f":"COUNTIF(F27:AK27,\"В\")","v":15}]
[null,null,null,null,null,{"$f":"IF('[1]ГРАФИК И.Б.НОЯБРЬ '!AC52=\"ОТ\",\"ОТ\",IF(F26=0,\"В\",\"Я\"))","v":"В"},{"$f":"IF('[1]ГРАФИК И.Б.НОЯБРЬ '!AD52=\"ОТ\",\"ОТ\",IF(G26=0,\"В\",\"Я\"))","v":"Я"},{"$f":"IF('[1]ГРАФИК И.Б.НОЯБРЬ '!AE52=\"ОТ\",\"ОТ\",IF(H26=0,\"В\",\"Я\"))","v":"В"},{"$f":"IF('[1]ГРАФИК И.Б.НОЯБРЬ '!AF52=\"ОТ\",\"ОТ\",IF(I26=0,\"В\",\"Я\"))","v":"Я"},{"$f":"IF('[1]ГРАФИК И.Б.НОЯБРЬ '!AG52=\"ОТ\",\"ОТ\",IF(J26=0,\"В\",\"Я\"))","v":"В"},{"$f":"IF('[1]ГРАФИК И.Б.НОЯБРЬ '!AH52=\"ОТ\",\"ОТ\",IF(K26=0,\"В\",\"Я\"))","v":"Я"},{"$f":"IF('[1]ГРАФИК И.Б.НОЯБРЬ '!AI52=\"ОТ\",\"ОТ\",IF(L26=0,\"В\",\"Я\"))","v":"В"},{"$f":"IF('[1]ГРАФИК И.Б.НОЯБРЬ '!AJ52=\"ОТ\",\"ОТ\",IF(M26=0,\"В\",\"Я\"))","v":"Я"},{"$f":"IF('[1]ГРАФИК И.Б.НОЯБРЬ '!AK52=\"ОТ\",\"ОТ\",IF(N26=0,\"В\",\"Я\"))","v":"В"},{"$f":"IF('[1]ГРАФИК И.Б.НОЯБРЬ '!AL52=\"ОТ\",\"ОТ\",IF(O26=0,\"В\",\"Я\"))","v":"Я"},{"$f":"IF('[1]ГРАФИК И.Б.НОЯБРЬ '!AM52=\"ОТ\",\"ОТ\",IF(P26=0,\"В\",\"Я\"))","v":"В"},{"$f":"IF('[1]ГРАФИК И.Б.НОЯБРЬ '!AN52=\"ОТ\",\"ОТ\",IF(Q26=0,\"В\",\"Я\"))","v":"Я"},{"$f":"IF('[1]ГРАФИК И.Б.НОЯБРЬ '!AO52=\"ОТ\",\"ОТ\",IF(R26=0,\"В\",\"Я\"))","v":"В"},{"$f":"IF('[1]ГРАФИК И.Б.НОЯБРЬ '!AP52=\"ОТ\",\"ОТ\",IF(S26=0,\"В\",\"Я\"))","v":"Я"},{"$f":"IF('[1]ГРАФИК И.Б.НОЯБРЬ '!AQ52=\"ОТ\",\"ОТ\",IF(T26=0,\"В\",\"Я\"))","v":"В"},null,{"$f":"IF('[1]ГРАФИК И.Б.НОЯБРЬ '!AS52=\"ОТ\",\"ОТ\",IF(V26=0,\"В\",\"Я\"))","v":"Я"},{"$f":"IF('[1]ГРАФИК И.Б.НОЯБРЬ '!AT52=\"ОТ\",\"ОТ\",IF(W26=0,\"В\",\"Я\"))","v":"В"},{"$f":"IF('[1]ГРАФИК И.Б.НОЯБРЬ '!AU52=\"ОТ\",\"ОТ\",IF(X26=0,\"В\",\"Я\"))","v":"Я"},{"$f":"IF('[1]ГРАФИК И.Б.НОЯБРЬ '!AV52=\"ОТ\",\"ОТ\",IF(Y26=0,\"В\",\"Я\"))","v":"В"},{"$f":"IF('[1]ГРАФИК И.Б.НОЯБРЬ '!AW52=\"ОТ\",\"ОТ\",IF(Z26=0,\"В\",\"Я\"))","v":"Я"},{"$f":"IF('[1]ГРАФИК И.Б.НОЯБРЬ '!AX52=\"ОТ\",\"ОТ\",IF(AA26=0,\"В\",\"Я\"))","v":"В"},{"$f":"IF('[1]ГРАФИК И.Б.НОЯБРЬ '!AY52=\"ОТ\",\"ОТ\",IF(AB26=0,\"В\",\"Я\"))","v":"Я"},{"$f":"IF('[1]ГРАФИК И.Б.НОЯБРЬ '!AZ52=\"ОТ\",\"ОТ\",IF(AC26=0,\"В\",\"Я\"))","v":"В"},{"$f":"IF('[1]ГРАФИК И.Б.НОЯБРЬ '!BA52=\"ОТ\",\"ОТ\",IF(AD26=0,\"В\",\"Я\"))","v":"Я"},{"$f":"IF('[1]ГРАФИК И.Б.НОЯБРЬ '!BB52=\"ОТ\",\"ОТ\",IF(AE26=0,\"В\",\"Я\"))","v":"В"},{"$f":"IF('[1]ГРАФИК И.Б.НОЯБРЬ '!BC52=\"ОТ\",\"ОТ\",IF(AF26=0,\"В\",\"Я\"))","v":"Я"},{"$f":"IF('[1]ГРАФИК И.Б.НОЯБРЬ '!BD52=\"ОТ\",\"ОТ\",IF(AG26=0,\"В\",\"Я\"))","v":"В"},{"$f":"IF('[1]ГРАФИК И.Б.НОЯБРЬ '!BE52=\"ОТ\",\"ОТ\",IF(AH26=0,\"В\",\"Я\"))","v":"Я"},{"$f":"IF('[1]ГРАФИК И.Б.НОЯБРЬ '!BF52=\"ОТ\",\"ОТ\",IF(AI26=0,\"В\",\"Я\"))","v":"В"},{"$f":"IF('[1]ГРАФИК И.Б.НОЯБРЬ '!BG52=\"ОТ\",\"ОТ\",IF(AJ26=0,\"В\",\"Я\"))","v":"Я"}]
[null,null,{"$f":"'[1]ГРАФИК И.Б.ОКТЯБРЬ'!F58","v":"Нурлиева Е.А., котролёр-посадчик аттракциона Ч"},"контролёр-посадчик аттракциона",null,{"$f":"IFERROR(INDEX('[1]ГРАФИК И.Б.НОЯБРЬ '!$AC61:$HF61,1,MATCH(F$10,'[1]ГРАФИК И.Б.НОЯБРЬ '!$AC$19:$HF$19,0)),\"\")","v":"11:00:00"},{"$f":"IFERROR(INDEX('[1]ГРАФИК И.Б.НОЯБРЬ '!$AC61:$HF61,1,MATCH(G$10,'[1]ГРАФИК И.Б.НОЯБРЬ '!$AC$19:$HF$19,0)),\"\")","v":"00:00:00"},{"$f":"IFERROR(INDEX('[1]ГРАФИК И.Б.НОЯБРЬ '!$AC61:$HF61,1,MATCH(H$10,'[1]ГРАФИК И.Б.НОЯБРЬ '!$AC$19:$HF$19,0)),\"\")","v":"11:00:00"},{"$f":"IFERROR(INDEX('[1]ГРАФИК И.Б.НОЯБРЬ '!$AC61:$HF61,1,MATCH(I$10,'[1]ГРАФИК И.Б.НОЯБРЬ '!$AC$19:$HF$19,0)),\"\")","v":"00:00:00"},{"$f":"IFERROR(INDEX('[1]ГРАФИК И.Б.НОЯБРЬ '!$AC61:$HF61,1,MATCH(J$10,'[1]ГРАФИК И.Б.НОЯБРЬ '!$AC$19:$HF$19,0)),\"\")","v":"11:00:00"},{"$f":"IFERROR(INDEX('[1]ГРАФИК И.Б.НОЯБРЬ '!$AC61:$HF61,1,MATCH(K$10,'[1]ГРАФИК И.Б.НОЯБРЬ '!$AC$19:$HF$19,0)),\"\")","v":"00:00:00"},{"$f":"IFERROR(INDEX('[1]ГРАФИК И.Б.НОЯБРЬ '!$AC61:$HF61,1,MATCH(L$10,'[1]ГРАФИК И.Б.НОЯБРЬ '!$AC$19:$HF$19,0)),\"\")","v":"11:00:00"},{"$f":"IFERROR(INDEX('[1]ГРАФИК И.Б.НОЯБРЬ '!$AC61:$HF61,1,MATCH(M$10,'[1]ГРАФИК И.Б.НОЯБРЬ '!$AC$19:$HF$19,0)),\"\")","v":"00:00:00"},{"$f":"IFERROR(INDEX('[1]ГРАФИК И.Б.НОЯБРЬ '!$AC61:$HF61,1,MATCH(N$10,'[1]ГРАФИК И.Б.НОЯБРЬ '!$AC$19:$HF$19,0)),\"\")","v":"11:00:00"},{"$f":"IFERROR(INDEX('[1]ГРАФИК И.Б.НОЯБРЬ '!$AC61:$HF61,1,MATCH(O$10,'[1]ГРАФИК И.Б.НОЯБРЬ '!$AC$19:$HF$19,0)),\"\")","v":"00:00:00"},{"$f":"IFERROR(INDEX('[1]ГРАФИК И.Б.НОЯБРЬ '!$AC61:$HF61,1,MATCH(P$10,'[1]ГРАФИК И.Б.НОЯБРЬ '!$AC$19:$HF$19,0)),\"\")","v":"11:00:00"},{"$f":"IFERROR(INDEX('[1]ГРАФИК И.Б.НОЯБРЬ '!$AC61:$HF61,1,MATCH(Q$10,'[1]ГРАФИК И.Б.НОЯБРЬ '!$AC$19:$HF$19,0)),\"\")","v":"00:00:00"},{"$f":"IFERROR(INDEX('[1]ГРАФИК И.Б.НОЯБРЬ '!$AC61:$HF61,1,MATCH(R$10,'[1]ГРАФИК И.Б.НОЯБРЬ '!$AC$19:$HF$19,0)),\"\")","v":"11:00:00"},{"$f":"IFERROR(INDEX('[1]ГРАФИК И.Б.НОЯБРЬ '!$AC61:$HF61,1,MATCH(S$10,'[1]ГРАФИК И.Б.НОЯБРЬ '!$AC$19:$HF$19,0)),\"\")","v":"00:00:00"},{"$f":"IFERROR(INDEX('[1]ГРАФИК И.Б.НОЯБРЬ '!$AC61:$HF61,1,MATCH(T$10,'[1]ГРАФИК И.Б.НОЯБРЬ '!$AC$19:$HF$19,0)),\"\")","v":"11:00:00"},{"$f":"IFERROR(INDEX('[1]ГРАФИК И.Б.НОЯБРЬ '!$AC61:$HF61,1,MATCH(U$10,'[1]ГРАФИК И.Б.НОЯБРЬ '!$AC$19:$HF$19,0)),\"\")","v":""},{"$f":"IFERROR(INDEX('[1]ГРАФИК И.Б.НОЯБРЬ '!$AC61:$HF61,1,MATCH(V$10,'[1]ГРАФИК И.Б.НОЯБРЬ '!$AC$19:$HF$19,0)),\"\")","v":"00:00:00"},{"$f":"IFERROR(INDEX('[1]ГРАФИК И.Б.НОЯБРЬ '!$AC61:$HF61,1,MATCH(W$10,'[1]ГРАФИК И.Б.НОЯБРЬ '!$AC$19:$HF$19,0)),\"\")","v":"00:00:00"},{"$f":"IFERROR(INDEX('[1]ГРАФИК И.Б.НОЯБРЬ '!$AC61:$HF61,1,MATCH(X$10,'[1]ГРАФИК И.Б.НОЯБРЬ '!$AC$19:$HF$19,0)),\"\")","v":"00:00:00"},{"$f":"IFERROR(INDEX('[1]ГРАФИК И.Б.НОЯБРЬ '!$AC61:$HF61,1,MATCH(Y$10,'[1]ГРАФИК И.Б.НОЯБРЬ '!$AC$19:$HF$19,0)),\"\")","v":"00:00:00"},{"$f":"IFERROR(INDEX('[1]ГРАФИК И.Б.НОЯБРЬ '!$AC61:$HF61,1,MATCH(Z$10,'[1]ГРАФИК И.Б.НОЯБРЬ '!$AC$19:$HF$19,0)),\"\")","v":"00:00:00"},{"$f":"IFERROR(INDEX('[1]ГРАФИК И.Б.НОЯБРЬ '!$AC61:$HF61,1,MATCH(AA$10,'[1]ГРАФИК И.Б.НОЯБРЬ '!$AC$19:$HF$19,0)),\"\")","v":"00:00:00"},{"$f":"IFERROR(INDEX('[1]ГРАФИК И.Б.НОЯБРЬ '!$AC61:$HF61,1,MATCH(AB$10,'[1]ГРАФИК И.Б.НОЯБРЬ '!$AC$19:$HF$19,0)),\"\")","v":"00:00:00"},{"$f":"IFERROR(INDEX('[1]ГРАФИК И.Б.НОЯБРЬ '!$AC61:$HF61,1,MATCH(AC$10,'[1]ГРАФИК И.Б.НОЯБРЬ '!$AC$19:$HF$19,0)),\"\")","v":"00:00:00"},{"$f":"IFERROR(INDEX('[1]ГРАФИК И.Б.НОЯБРЬ '!$AC61:$HF61,1,MATCH(AD$10,'[1]ГРАФИК И.Б.НОЯБРЬ '!$AC$19:$HF$19,0)),\"\")","v":"00:00:00"},{"$f":"IFERROR(INDEX('[1]ГРАФИК И.Б.НОЯБРЬ '!$AC61:$HF61,1,MATCH(AE$10,'[1]ГРАФИК И.Б.НОЯБРЬ '!$AC$19:$HF$19,0)),\"\")","v":"00:00:00"},{"$f":"IFERROR(INDEX('[1]ГРАФИК И.Б.НОЯБРЬ '!$AC61:$HF61,1,MATCH(AF$10,'[1]ГРАФИК И.Б.НОЯБРЬ '!$AC$19:$HF$19,0)),\"\")","v":"00:00:00"},{"$f":"IFERROR(INDEX('[1]ГРАФИК И.Б.НОЯБРЬ '!$AC61:$HF61,1,MATCH(AG$10,'[1]ГРАФИК И.Б.НОЯБРЬ '!$AC$19:$HF$19,0)),\"\")","v":"00:00:00"},{"$f":"IFERROR(INDEX('[1]ГРАФИК И.Б.НОЯБРЬ '!$AC61:$HF61,1,MATCH(AH$10,'[1]ГРАФИК И.Б.НОЯБРЬ '!$AC$19:$HF$19,0)),\"\")","v":"00:00:00"},{"$f":"IFERROR(INDEX('[1]ГРАФИК И.Б.НОЯБРЬ '!$AC61:$HF61,1,MATCH(AI$10,'[1]ГРАФИК И.Б.НОЯБРЬ '!$AC$19:$HF$19,0)),\"\")","v":"00:00:00"},{"$f":"IFERROR(INDEX('[1]ГРАФИК И.Б.НОЯБРЬ '!$AC61:$HF61,1,MATCH(AJ$10,'[1]ГРАФИК И.Б.НОЯБРЬ '!$AC$19:$HF$19,0)),\"\")","v":"00:00:00"},{"$f":"IFERROR(INDEX('[1]ГРАФИК И.Б.НОЯБРЬ '!$AC61:$HF61,1,MATCH(AK$10,'[1]ГРАФИК И.Б.НОЯБРЬ '!$AC$19:$HF$19,0)),\"\")","v":""},{"$f":"COUNTIF($F28:$AK28,\">0\")","v":8},{"$f":"SUM($F$28:$AK$28)","v":3.666666666666667},null,null,null,null,null,null,null,null,null,null,null,null,null,null,null,null,null,{"$f":"COUNTIF(F29:AK29,\"В\")","v":7}]
[null,null,null,null,null,{"$f":"IF('[1]ГРАФИК И.Б.НОЯБРЬ '!AC58=\"ОТ\",\"ОТ\",IF(F28=0,\"В\",\"Я\"))","v":"Я"},{"$f":"IF('[1]ГРАФИК И.Б.НОЯБРЬ '!AD58=\"ОТ\",\"ОТ\",IF(G28=0,\"В\",\"Я\"))","v":"В"},{"$f":"IF('[1]ГРАФИК И.Б.НОЯБРЬ '!AE58=\"ОТ\",\"ОТ\",IF(H28=0,\"В\",\"Я\"))","v":"Я"},{"$f":"IF('[1]ГРАФИК И.Б.НОЯБРЬ '!AF58=\"ОТ\",\"ОТ\",IF(I28=0,\"В\",\"Я\"))","v":"В"},{"$f":"IF('[1]ГРАФИК И.Б.НОЯБРЬ '!AG58=\"ОТ\",\"ОТ\",IF(J28=0,\"В\",\"Я\"))","v":"Я"},{"$f":"IF('[1]ГРАФИК И.Б.НОЯБРЬ '!AH58=\"ОТ\",\"ОТ\",IF(K28=0,\"В\",\"Я\"))","v":"В"},{"$f":"IF('[1]ГРАФИК И.Б.НОЯБРЬ '!AI58=\"ОТ\",\"ОТ\",IF(L28=0,\"В\",\"Я\"))","v":"Я"},{"$f":"IF('[1]ГРАФИК И.Б.НОЯБРЬ '!AJ58=\"ОТ\",\"ОТ\",IF(M28=0,\"В\",\"Я\"))","v":"В"},{"$f":"IF('[1]ГРАФИК И.Б.НОЯБРЬ '!AK58=\"ОТ\",\"ОТ\",IF(N28=0,\"В\",\"Я\"))","v":"Я"},{"$f":"IF('[1]ГРАФИК И.Б.НОЯБРЬ '!AL58=\"ОТ\",\"ОТ\",IF(O28=0,\"В\",\"Я\"))","v":"В"},{"$f":"IF('[1]ГРАФИК И.Б.НОЯБРЬ '!AM58=\"ОТ\",\"ОТ\",IF(P28=0,\"В\",\"Я\"))","v":"Я"},{"$f":"IF('[1]ГРАФИК И.Б.НОЯБРЬ '!AN58=\"ОТ\",\"ОТ\",IF(Q28=0,\"В\",\"Я\"))","v":"В"},{"$f":"IF('[1]ГРАФИК И.Б.НОЯБРЬ '!AO58=\"ОТ\",\"ОТ\",IF(R28=0,\"В\",\"Я\"))","v":"Я"},{"$f":"IF('[1]ГРАФИК И.Б.НОЯБРЬ '!AP58=\"ОТ\",\"ОТ\",IF(S28=0,\"В\",\"Я\"))","v":"В"},{"$f":"IF('[1]ГРАФИК И.Б.НОЯБРЬ '!AQ58=\"ОТ\",\"ОТ\",IF(T28=0,\"В\",\"Я\"))","v":"Я"}," "]
[null,null,null,"контролёр-посадчик аттракциона",null,{"$f":"IFERROR(INDEX('[1]ГРАФИК И.Б.НОЯБРЬ '!$AC68:$HF68,1,MATCH(F$10,'[1]ГРАФИК И.Б.НОЯБРЬ '!$AC$19:$HF$19,0)),\"\")","v":"00:00:00"},{"$f":"IFERROR(INDEX('[1]ГРАФИК И.Б.НОЯБРЬ '!$AC68:$HF68,1,MATCH(G$10,'[1]ГРАФИК И.Б.НОЯБРЬ '!$AC$19:$HF$19,0)),\"\")","v":"11:00:00"},{"$f":"IFERROR(INDEX('[1]ГРАФИК И.Б.НОЯБРЬ '!$AC68:$HF68,1,MATCH(H$10,'[1]ГРАФИК И.Б.НОЯБРЬ '!$AC$19:$HF$19,0)),\"\")","v":"00:00:00"},{"$f":"IFERROR(INDEX('[1]ГРАФИК И.Б.НОЯБРЬ '!$AC68:$HF68,1,MATCH(I$10,'[1]ГРАФИК И.Б.НОЯБРЬ '!$AC$19:$HF$19,0)),\"\")","v":"11:00:00"},{"$f":"IFERROR(INDEX('[1]ГРАФИК И.Б.НОЯБРЬ '!$AC68:$HF68,1,MATCH(J$10,'[1]ГРАФИК И.Б.НОЯБРЬ '!$AC$19:$HF$19,0)),\"\")","v":"00:00:00"},{"$f":"IFERROR(INDEX('[1]ГРАФИК И.Б.НОЯБРЬ '!$AC68:$HF68,1,MATCH(K$10,'[1]ГРАФИК И.Б.НОЯБРЬ '!$AC$19:$HF$19,0)),\"\")","v":"11:00:00"},{"$f":"IFERROR(INDEX('[1]ГРАФИК И.Б.НОЯБРЬ '!$AC68:$HF68,1,MATCH(L$10,'[1]ГРАФИК И.Б.НОЯБРЬ '!$AC$19:$HF$19,0)),\"\")","v":"00:00:00"},{"$f":"IFERROR(INDEX('[1]ГРАФИК И.Б.НОЯБРЬ '!$AC68:$HF68,1,MATCH(M$10,'[1]ГРАФИК И.Б.НОЯБРЬ '!$AC$19:$HF$19,0)),\"\")","v":"11:00:00"},{"$f":"IFERROR(INDEX('[1]ГРАФИК И.Б.НОЯБРЬ '!$AC68:$HF68,1,MATCH(N$10,'[1]ГРАФИК И.Б.НОЯБРЬ '!$AC$19:$HF$19,0)),\"\")","v":"00:00:00"},{"$f":"IFERROR(INDEX('[1]ГРАФИК И.Б.НОЯБРЬ '!$AC68:$HF68,1,MATCH(O$10,'[1]ГРАФИК И.Б.НОЯБРЬ '!$AC$19:$HF$19,0)),\"\")","v":"11:00:00"},{"$f":"IFERROR(INDEX('[1]ГРАФИК И.Б.НОЯБРЬ '!$AC68:$HF68,1,MATCH(P$10,'[1]ГРАФИК И.Б.НОЯБРЬ '!$AC$19:$HF$19,0)),\"\")","v":"00:00:00"},{"$f":"IFERROR(INDEX('[1]ГРАФИК И.Б.НОЯБРЬ '!$AC68:$HF68,1,MATCH(Q$10,'[1]ГРАФИК И.Б.НОЯБРЬ '!$AC$19:$HF$19,0)),\"\")","v":"11:00:00"},{"$f":"IFERROR(INDEX('[1]ГРАФИК И.Б.НОЯБРЬ '!$AC68:$HF68,1,MATCH(R$10,'[1]ГРАФИК И.Б.НОЯБРЬ '!$AC$19:$HF$19,0)),\"\")","v":"00:00:00"},{"$f":"IFERROR(INDEX('[1]ГРАФИК И.Б.НОЯБРЬ '!$AC68:$HF68,1,MATCH(S$10,'[1]ГРАФИК И.Б.НОЯБРЬ '!$AC$19:$HF$19,0)),\"\")","v":"11:00:00"},{"$f":"IFERROR(INDEX('[1]ГРАФИК И.Б.НОЯБРЬ '!$AC68:$HF68,1,MATCH(T$10,'[1]ГРАФИК И.Б.НОЯБРЬ '!$AC$19:$HF$19,0)),\"\")","v":"00:00:00"},{"$f":"IFERROR(INDEX('[1]ГРАФИК И.Б.НОЯБРЬ '!$AC68:$HF68,1,MATCH(U$10,'[1]ГРАФИК И.Б.НОЯБРЬ '!$AC$19:$HF$19,0)),\"\")","v":""},{"$f":"IFERROR(INDEX('[1]ГРАФИК И.Б.НОЯБРЬ '!$AC68:$HF68,1,MATCH(V$10,'[1]ГРАФИК И.Б.НОЯБРЬ '!$AC$19:$HF$19,0)),\"\")","v":"11:00:00"},{"$f":"IFERROR(INDEX('[1]ГРАФИК И.Б.НОЯБРЬ '!$AC68:$HF68,1,MATCH(W$10,'[1]ГРАФИК И.Б.НОЯБРЬ '!$AC$19:$HF$19,0)),\"\")","v":"00:00:00"},{"$f":"IFERROR(INDEX('[1]ГРАФИК И.Б.НОЯБРЬ '!$AC68:$HF68,1,MATCH(X$10,'[1]ГРАФИК И.Б.НОЯБРЬ '!$AC$19:$HF$19,0)),\"\")","v":"11:00:00"},{"$f":"IFERROR(INDEX('[1]ГРАФИК И.Б.НОЯБРЬ '!$AC68:$HF68,1,MATCH(Y$10,'[1]ГРАФИК И.Б.НОЯБРЬ '!$AC$19:$HF$19,0)),\"\")","v":"00:00:00"},{"$f":"IFERROR(INDEX('[1]ГРАФИК И.Б.НОЯБРЬ '!$AC68:$HF68,1,MATCH(Z$10,'[1]ГРАФИК И.Б.НОЯБРЬ '!$AC$19:$HF$19,0)),\"\")","v":"10:00:00"},{"$f":"IFERROR(INDEX('[1]ГРАФИК И.Б.НОЯБРЬ '!$AC68:$HF68,1,MATCH(AA$10,'[1]ГРАФИК И.Б.НОЯБРЬ '!$AC$19:$HF$19,0)),\"\")","v":"00:00:00"},{"$f":"IFERROR(INDEX('[1]ГРАФИК И.Б.НОЯБРЬ '!$AC68:$HF68,1,MATCH(AB$10,'[1]ГРАФИК И.Б.НОЯБРЬ '!$AC$19:$HF$19,0)),\"\")","v":"10:00:00"},{"$f":"IFERROR(INDEX('[1]ГРАФИК И.Б.НОЯБРЬ '!$AC68:$HF68,1,MATCH(AC$10,'[1]ГРАФИК И.Б.НОЯБРЬ '!$AC$19:$HF$19,0)),\"\")","v":"00:00:00"},{"$f":"IFERROR(INDEX('[1]ГРАФИК И.Б.НОЯБРЬ '!$AC68:$HF68,1,MATCH(AD$10,'[1]ГРАФИК И.Б.НОЯБРЬ '!$AC$19:$HF$19,0)),\"\")","v":"10:00:00"},{"$f":"IFERROR(INDEX('[1]ГРАФИК И.Б.НОЯБРЬ '!$AC68:$HF68,1,MATCH(AE$10,'[1]ГРАФИК И.Б.НОЯБРЬ '!$AC$19:$HF$19,0)),\"\")","v":"00:00:00"},{"$f":"IFERROR(INDEX('[1]ГРАФИК И.Б.НОЯБРЬ '!$AC68:$HF68,1,MATCH(AF$10,'[1]ГРАФИК И.Б.НОЯБРЬ '!$AC$19:$HF$19,0)),\"\")","v":"10:00:00"},{"$f":"IFERROR(INDEX('[1]ГРАФИК И.Б.НОЯБРЬ '!$AC68:$HF68,1,MATCH(AG$10,'[1]ГРАФИК И.Б.НОЯБРЬ '!$AC$19:$HF$19,0)),\"\")","v":"00:00:00"},{"$f":"IFERROR(INDEX('[1]ГРАФИК И.Б.НОЯБРЬ '!$AC68:$HF68,1,MATCH(AH$10,'[1]ГРАФИК И.Б.НОЯБРЬ '!$AC$19:$HF$19,0)),\"\")","v":"10:00:00"},{"$f":"IFERROR(INDEX('[1]ГРАФИК И.Б.НОЯБРЬ '!$AC68:$HF68,1,MATCH(AI$10,'[1]ГРАФИК И.Б.НОЯБРЬ '!$AC$19:$HF$19,0)),\"\")","v":"00:00:00"},{"$f":"IFERROR(INDEX('[1]ГРАФИК И.Б.НОЯБРЬ '!$AC68:$HF68,1,MATCH(AJ$10,'[1]ГРАФИК И.Б.НОЯБРЬ '!$AC$19:$HF$19,0)),\"\")","v":"10:00:00"},{"$f":"IFERROR(INDEX('[1]ГРАФИК И.Б.НОЯБРЬ '!$AC68:$HF68,1,MATCH(AK$10,'[1]ГРАФИК И.Б.НОЯБРЬ '!$AC$19:$HF$19,0)),\"\")","v":""},{"$f":"COUNTIF($F30:$AK30,\">0\")","v":15},{"$f":"SUM($F$30:$AK$30)","v":6.6250000000000018},null,{"$f":"SUMIF($F30:$AK30,\">8\",$F31:$AK31)","v":0},{"$f":"COUNTIF($F30:$AK30,\"=12\")+COUNTIF($F31:$AK31,\"=8\")*2","v":0},{"$f":"SUMIF($F$12:$AK$12,\"ЧП\",$F30:$AK30)","v":0},{"$f":"SUMPRODUCT(IF(ISNUMBER(F30:AK30),(F30:AK30>8)*(F30:AK30-8),0))","v":0},{"$f":"SUMIF(#REF!,\"в\",$F30:$AK30)","v":{"$error":"#REF!"}},{"$f":"IF($AN30>$BF$7,$AN30-$BF$7,\"–\")","v":"–"},{"$f":"SUM($AV30:$BD31)","v":0},{"$f":"COUNTIF($F30:$AK30,\"=От\")","v":0},{"$f":"COUNTIF($F30:$AK30,\"=Б\")","v":0},{"$f":"COUNTIF($F30:$AK30,\"=А\")","v":0},{"$f":"COUNTIF($F30:$AK30,\"=Ор\")","v":0},{"$f":"COUNTIF($F30:$AK30,\"=У\")","v":0},{"$f":"COUNTIF($F30:$AK30,\"=Ч\")","v":0},{"$f":"COUNTIF($F30:$AK30,\"=Пр\")","v":0},{"$f":"COUNTIF($F30:$AK30,\"=Ож\")","v":0},{"$f":"COUNTIF($F30:$AK30,\"=К\")","v":0},{"$f":"COUNTIF(F31:AK31,\"В\")","v":15}]
[null,null,null,null,null,{"$f":"IF('[1]ГРАФИК И.Б.НОЯБРЬ '!AC65=\"ОТ\",\"ОТ\",IF(F30=0,\"В\",\"Я\"))","v":"В"},{"$f":"IF('[1]ГРАФИК И.Б.НОЯБРЬ '!AD65=\"ОТ\",\"ОТ\",IF(G30=0,\"В\",\"Я\"))","v":"Я"},{"$f":"IF('[1]ГРАФИК И.Б.НОЯБРЬ '!AE65=\"ОТ\",\"ОТ\",IF(H30=0,\"В\",\"Я\"))","v":"В"},{"$f":"IF('[1]ГРАФИК И.Б.НОЯБРЬ '!AF65=\"ОТ\",\"ОТ\",IF(I30=0,\"В\",\"Я\"))","v":"Я"},{"$f":"IF('[1]ГРАФИК И.Б.НОЯБРЬ '!AG65=\"ОТ\",\"ОТ\",IF(J30=0,\"В\",\"Я\"))","v":"В"},{"$f":"IF('[1]ГРАФИК И.Б.НОЯБРЬ '!AH65=\"ОТ\",\"ОТ\",IF(K30=0,\"В\",\"Я\"))","v":"Я"},{"$f":"IF('[1]ГРАФИК И.Б.НОЯБРЬ '!AI65=\"ОТ\",\"ОТ\",IF(L30=0,\"В\",\"Я\"))","v":"В"},{"$f":"IF('[1]ГРАФИК И.Б.НОЯБРЬ '!AJ65=\"ОТ\",\"ОТ\",IF(M30=0,\"В\",\"Я\"))","v":"Я"},{"$f":"IF('[1]ГРАФИК И.Б.НОЯБРЬ '!AK65=\"ОТ\",\"ОТ\",IF(N30=0,\"В\",\"Я\"))","v":"В"},{"$f":"IF('[1]ГРАФИК И.Б.НОЯБРЬ '!AL65=\"ОТ\",\"ОТ\",IF(O30=0,\"В\",\"Я\"))","v":"Я"},{"$f":"IF('[1]ГРАФИК И.Б.НОЯБРЬ '!AM65=\"ОТ\",\"ОТ\",IF(P30=0,\"В\",\"Я\"))","v":"В"},{"$f":"IF('[1]ГРАФИК И.Б.НОЯБРЬ '!AN65=\"ОТ\",\"ОТ\",IF(Q30=0,\"В\",\"Я\"))","v":"Я"},{"$f":"IF('[1]ГРАФИК И.Б.НОЯБРЬ '!AO65=\"ОТ\",\"ОТ\",IF(R30=0,\"В\",\"Я\"))","v":"В"},{"$f":"IF('[1]ГРАФИК И.Б.НОЯБРЬ '!AP65=\"ОТ\",\"ОТ\",IF(S30=0,\"В\",\"Я\"))","v":"Я"},{"$f":"IF('[1]ГРАФИК И.Б.НОЯБРЬ '!AQ65=\"ОТ\",\"ОТ\",IF(T30=0,\"В\",\"Я\"))","v":"В"}," ",{"$f":"IF('[1]ГРАФИК И.Б.НОЯБРЬ '!AS65=\"ОТ\",\"ОТ\",IF(V30=0,\"В\",\"Я\"))","v":"Я"},{"$f":"IF('[1]ГРАФИК И.Б.НОЯБРЬ '!AT65=\"ОТ\",\"ОТ\",IF(W30=0,\"В\",\"Я\"))","v":"В"},{"$f":"IF('[1]ГРАФИК И.Б.НОЯБРЬ '!AU65=\"ОТ\",\"ОТ\",IF(X30=0,\"В\",\"Я\"))","v":"Я"},{"$f":"IF('[1]ГРАФИК И.Б.НОЯБРЬ '!AV65=\"ОТ\",\"ОТ\",IF(Y30=0,\"В\",\"Я\"))","v":"В"},{"$f":"IF('[1]ГРАФИК И.Б.НОЯБРЬ '!AW65=\"ОТ\",\"ОТ\",IF(Z30=0,\"В\",\"Я\"))","v":"Я"},{"$f":"IF('[1]ГРАФИК И.Б.НОЯБРЬ '!AX65=\"ОТ\",\"ОТ\",IF(AA30=0,\"В\",\"Я\"))","v":"В"},{"$f":"IF('[1]ГРАФИК И.Б.НОЯБРЬ '!AY65=\"ОТ\",\"ОТ\",IF(AB30=0,\"В\",\"Я\"))","v":"Я"},{"$f":"IF('[1]ГРАФИК И.Б.НОЯБРЬ '!AZ65=\"ОТ\",\"ОТ\",IF(AC30=0,\"В\",\"Я\"))","v":"В"},{"$f":"IF('[1]ГРАФИК И.Б.НОЯБРЬ '!BA65=\"ОТ\",\"ОТ\",IF(AD30=0,\"В\",\"Я\"))","v":"Я"},{"$f":"IF('[1]ГРАФИК И.Б.НОЯБРЬ '!BB65=\"ОТ\",\"ОТ\",IF(AE30=0,\"В\",\"Я\"))","v":"В"},{"$f":"IF('[1]ГРАФИК И.Б.НОЯБРЬ '!BC65=\"ОТ\",\"ОТ\",IF(AF30=0,\"В\",\"Я\"))","v":"Я"},{"$f":"IF('[1]ГРАФИК И.Б.НОЯБРЬ '!BD65=\"ОТ\",\"ОТ\",IF(AG30=0,\"В\",\"Я\"))","v":"В"},{"$f":"IF('[1]ГРАФИК И.Б.НОЯБРЬ '!BE65=\"ОТ\",\"ОТ\",IF(AH30=0,\"В\",\"Я\"))","v":"Я"},{"$f":"IF('[1]ГРАФИК И.Б.НОЯБРЬ '!BF65=\"ОТ\",\"ОТ\",IF(AI30=0,\"В\",\"Я\"))","v":"В"},{"$f":"IF('[1]ГРАФИК И.Б.НОЯБРЬ '!BG65=\"ОТ\",\"ОТ\",IF(AJ30=0,\"В\",\"Я\"))","v":"Я"}]
[null,null,null,"сторож",null,{"$f":"IFERROR(INDEX('[1]ГРАФИК И.Б.НОЯБРЬ '!$AC85:$HF85,1,MATCH(F$10,'[1]ГРАФИК И.Б.НОЯБРЬ '!$AC$19:$HF$19,0)),\"\")","v":"09:00:00"},{"$f":"IFERROR(INDEX('[1]ГРАФИК И.Б.НОЯБРЬ '!$AC85:$HF85,1,MATCH(G$10,'[1]ГРАФИК И.Б.НОЯБРЬ '!$AC$19:$HF$19,0)),\"\")","v":"00:00:00"},{"$f":"IFERROR(INDEX('[1]ГРАФИК И.Б.НОЯБРЬ '!$AC85:$HF85,1,MATCH(H$10,'[1]ГРАФИК И.Б.НОЯБРЬ '!$AC$19:$HF$19,0)),\"\")","v":"07:00:00"},{"$f":"IFERROR(INDEX('[1]ГРАФИК И.Б.НОЯБРЬ '!$AC85:$HF85,1,MATCH(I$10,'[1]ГРАФИК И.Б.НОЯБРЬ '!$AC$19:$HF$19,0)),\"\")","v":"09:00:00"},{"$f":"IFERROR(INDEX('[1]ГРАФИК И.Б.НОЯБРЬ '!$AC85:$HF85,1,MATCH(J$10,'[1]ГРАФИК И.Б.НОЯБРЬ '!$AC$19:$HF$19,0)),\"\")","v":"00:00:00"},{"$f":"IFERROR(INDEX('[1]ГРАФИК И.Б.НОЯБРЬ '!$AC85:$HF85,1,MATCH(K$10,'[1]ГРАФИК И.Б.НОЯБРЬ '!$AC$19:$HF$19,0)),\"\")","v":"07:00:00"},{"$f":"IFERROR(INDEX('[1]ГРАФИК И.Б.НОЯБРЬ '!$AC85:$HF85,1,MATCH(L$10,'[1]ГРАФИК И.Б.НОЯБРЬ '!$AC$19:$HF$19,0)),\"\")","v":"09:00:00"},{"$f":"IFERROR(INDEX('[1]ГРАФИК И.Б.НОЯБРЬ '!$AC85:$HF85,1,MATCH(M$10,'[1]ГРАФИК И.Б.НОЯБРЬ '!$AC$19:$HF$19,0)),\"\")","v":"00:00:00"},{"$f":"IFERROR(INDEX('[1]ГРАФИК И.Б.НОЯБРЬ '!$AC85:$HF85,1,MATCH(N$10,'[1]ГРАФИК И.Б.НОЯБРЬ '!$AC$19:$HF$19,0)),\"\")","v":"07:00:00"},{"$f":"IFERROR(INDEX('[1]ГРАФИК И.Б.НОЯБРЬ '!$AC85:$HF85,1,MATCH(O$10,'[1]ГРАФИК И.Б.НОЯБРЬ '!$AC$19:$HF$19,0)),\"\")","v":"09:00:00"},{"$f":"IFERROR(INDEX('[1]ГРАФИК И.Б.НОЯБРЬ '!$AC85:$HF85,1,MATCH(P$10,'[1]ГРАФИК И.Б.НОЯБРЬ '!$AC$19:$HF$19,0)),\"\")","v":"00:00:00"},{"$f":"IFERROR(INDEX('[1]ГРАФИК И.Б.НОЯБРЬ '!$AC85:$HF85,1,MATCH(Q$10,'[1]ГРАФИК И.Б.НОЯБРЬ '!$AC$19:$HF$19,0)),\"\")","v":"07:00:00"},{"$f":"IFERROR(INDEX('[1]ГРАФИК И.Б.НОЯБРЬ '!$AC85:$HF85,1,MATCH(R$10,'[1]ГРАФИК И.Б.НОЯБРЬ '!$AC$19:$HF$19,0)),\"\")","v":"09:00:00"},{"$f":"IFERROR(INDEX('[1]ГРАФИК И.Б.НОЯБРЬ '!$AC85:$HF85,1,MATCH(S$10,'[1]ГРАФИК И.Б.НОЯБРЬ '!$AC$19:$HF$19,0)),\"\")","v":"00:00:00"},{"$f":"IFERROR(INDEX('[1]ГРАФИК И.Б.НОЯБРЬ '!$AC85:$HF85,1,MATCH(T$10,'[1]ГРАФИК И.Б.НОЯБРЬ '!$AC$19:$HF$19,0)),\"\")","v":"07:00:00"},{"$f":"IFERROR(INDEX('[1]ГРАФИК И.Б.НОЯБРЬ '!$AC85:$HF85,1,MATCH(U$10,'[1]ГРАФИК И.Б.НОЯБРЬ '!$AC$19:$HF$19,0)),\"\")","v":""},{"$f":"IFERROR(INDEX('[1]ГРАФИК И.Б.НОЯБРЬ '!$AC85:$HF85,1,MATCH(V$10,'[1]ГРАФИК И.Б.НОЯБРЬ '!$AC$19:$HF$19,0)),\"\")","v":"09:00:00"},{"$f":"IFERROR(INDEX('[1]ГРАФИК И.Б.НОЯБРЬ '!$AC85:$HF85,1,MATCH(W$10,'[1]ГРАФИК И.Б.НОЯБРЬ '!$AC$19:$HF$19,0)),\"\")","v":"00:00:00"},{"$f":"IFERROR(INDEX('[1]ГРАФИК И.Б.НОЯБРЬ '!$AC85:$HF85,1,MATCH(X$10,'[1]ГРАФИК И.Б.НОЯБРЬ '!$AC$19:$HF$19,0)),\"\")","v":"07:00:00"},{"$f":"IFERROR(INDEX('[1]ГРАФИК И.Б.НОЯБРЬ '!$AC85:$HF85,1,MATCH(Y$10,'[1]ГРАФИК И.Б.НОЯБРЬ '!$AC$19:$HF$19,0)),\"\")","v":"09:00:00"},{"$f":"IFERROR(INDEX('[1]ГРАФИК И.Б.НОЯБРЬ '!$AC85:$HF85,1,MATCH(Z$10,'[1]ГРАФИК И.Б.НОЯБРЬ '!$AC$19:$HF$19,0)),\"\")","v":"00:00:00"},{"$f":"IFERROR(INDEX('[1]ГРАФИК И.Б.НОЯБРЬ '!$AC85:$HF85,1,MATCH(AA$10,'[1]ГРАФИК И.Б.НОЯБРЬ '!$AC$19:$HF$19,0)),\"\")","v":"07:00:00"},{"$f":"IFERROR(INDEX('[1]ГРАФИК И.Б.НОЯБРЬ '!$AC85:$HF85,1,MATCH(AB$10,'[1]ГРАФИК И.Б.НОЯБРЬ '!$AC$19:$HF$19,0)),\"\")","v":"09:00:00"},{"$f":"IFERROR(INDEX('[1]ГРАФИК И.Б.НОЯБРЬ '!$AC85:$HF85,1,MATCH(AC$10,'[1]ГРАФИК И.Б.НОЯБРЬ '!$AC$19:$HF$19,0)),\"\")","v":"00:00:00"},{"$f":"IFERROR(INDEX('[1]ГРАФИК И.Б.НОЯБРЬ '!$AC85:$HF85,1,MATCH(AD$10,'[1]ГРАФИК И.Б.НОЯБРЬ '!$AC$19:$HF$19,0)),\"\")","v":"07:00:00"},{"$f":"IFERROR(INDEX('[1]ГРАФИК И.Б.НОЯБРЬ '!$AC85:$HF85,1,MATCH(AE$10,'[1]ГРАФИК И.Б.НОЯБРЬ '!$AC$19:$HF$19,0)),\"\")","v":"09:00:00"},{"$f":"IFERROR(INDEX('[1]ГРАФИК И.Б.НОЯБРЬ '!$AC85:$HF85,1,MATCH(AF$10,'[1]ГРАФИК И.Б.НОЯБРЬ '!$AC$19:$HF$19,0)),\"\")","v":"00:00:00"},{"$f":"IFERROR(INDEX('[1]ГРАФИК И.Б.НОЯБРЬ '!$AC85:$HF85,1,MATCH(AG$10,'[1]ГРАФИК И.Б.НОЯБРЬ '!$AC$19:$HF$19,0)),\"\")","v":"07:00:00"},{"$f":"IFERROR(INDEX('[1]ГРАФИК И.Б.НОЯБРЬ '!$AC85:$HF85,1,MATCH(AH$10,'[1]ГРАФИК И.Б.НОЯБРЬ '!$AC$19:$HF$19,0)),\"\")","v":"09:00:00"},{"$f":"IFERROR(INDEX('[1]ГРАФИК И.Б.НОЯБРЬ '!$AC85:$HF85,1,MATCH(AI$10,'[1]ГРАФИК И.Б.НОЯБРЬ '!$AC$19:$HF$19,0)),\"\")","v":"00:00:00"},{"$f":"IFERROR(INDEX('[1]ГРАФИК И.Б.НОЯБРЬ '!$AC85:$HF85,1,MATCH(AJ$10,'[1]ГРАФИК И.Б.НОЯБРЬ '!$AC$19:$HF$19,0)),\"\")","v":"06:00:00"},{"$f":"IFERROR(INDEX('[1]ГРАФИК И.Б.НОЯБРЬ '!$AC85:$HF85,1,MATCH(AK$10,'[1]ГРАФИК И.Б.НОЯБРЬ '!$AC$19:$HF$19,0)),\"\")","v":""},{"$f":"COUNTIF($F32:$AK32,\">0\")","v":20},{"$f":"SUM($F$32:$AK$32)","v":6.625},null,null,null,null,null,null,null,null,null,null,null,null,null,null,null,null,null,10]
[null,null,null,null,null,{"$f":"IF('[1]ГРАФИК И.Б.НОЯБРЬ '!AC83=\"ОТ\",\"ОТ\",IF(F32=0,\"В\",\"Я\"))","v":"Я"},{"$f":"IF('[1]ГРАФИК И.Б.НОЯБРЬ '!AD83=\"ОТ\",\"ОТ\",IF(G32=0,\"В\",\"Я\"))","v":"В"},{"$f":"IF('[1]ГРАФИК И.Б.НОЯБРЬ '!AE83=\"ОТ\",\"ОТ\",IF(H32=0,\"В\",\"Я\"))","v":"Я"},{"$f":"IF('[1]ГРАФИК И.Б.НОЯБРЬ '!AF83=\"ОТ\",\"ОТ\",IF(I32=0,\"В\",\"Я\"))","v":"Я"},{"$f":"IF('[1]ГРАФИК И.Б.НОЯБРЬ '!AG83=\"ОТ\",\"ОТ\",IF(J32=0,\"В\",\"Я\"))","v":"В"},{"$f":"IF('[1]ГРАФИК И.Б.НОЯБРЬ '!AH83=\"ОТ\",\"ОТ\",IF(K32=0,\"В\",\"Я\"))","v":"Я"},{"$f":"IF('[1]ГРАФИК И.Б.НОЯБРЬ '!AI83=\"ОТ\",\"ОТ\",IF(L32=0,\"В\",\"Я\"))","v":"Я"},{"$f":"IF('[1]ГРАФИК И.Б.НОЯБРЬ '!AJ83=\"ОТ\",\"ОТ\",IF(M32=0,\"В\",\"Я\"))","v":"В"},{"$f":"IF('[1]ГРАФИК И.Б.НОЯБРЬ '!AK83=\"ОТ\",\"ОТ\",IF(N32=0,\"В\",\"Я\"))","v":"Я"},{"$f":"IF('[1]ГРАФИК И.Б.НОЯБРЬ '!AL83=\"ОТ\",\"ОТ\",IF(O32=0,\"В\",\"Я\"))","v":"Я"},{"$f":"IF('[1]ГРАФИК И.Б.НОЯБРЬ '!AM83=\"ОТ\",\"ОТ\",IF(P32=0,\"В\",\"Я\"))","v":"В"},{"$f":"IF('[1]ГРАФИК И.Б.НОЯБРЬ '!AN83=\"ОТ\",\"ОТ\",IF(Q32=0,\"В\",\"Я\"))","v":"Я"},{"$f":"IF('[1]ГРАФИК И.Б.НОЯБРЬ '!AO83=\"ОТ\",\"ОТ\",IF(R32=0,\"В\",\"Я\"))","v":"Я"},{"$f":"IF('[1]ГРАФИК И.Б.НОЯБРЬ '!AP83=\"ОТ\",\"ОТ\",IF(S32=0,\"В\",\"Я\"))","v":"В"},{"$f":"IF('[1]ГРАФИК И.Б.НОЯБРЬ '!AQ83=\"ОТ\",\"ОТ\",IF(T32=0,\"В\",\"Я\"))","v":"Я"}," ",{"$f":"IF('[1]ГРАФИК И.Б.НОЯБРЬ '!AS83=\"ОТ\",\"ОТ\",IF(V32=0,\"В\",\"Я\"))","v":"Я"},{"$f":"IF('[1]ГРАФИК И.Б.НОЯБРЬ '!AT83=\"ОТ\",\"ОТ\",IF(W32=0,\"В\",\"Я\"))","v":"В"},{"$f":"IF('[1]ГРАФИК И.Б.НОЯБРЬ '!AU83=\"ОТ\",\"ОТ\",IF(X32=0,\"В\",\"Я\"))","v":"Я"},{"$f":"IF('[1]ГРАФИК И.Б.НОЯБРЬ '!AV83=\"ОТ\",\"ОТ\",IF(Y32=0,\"В\",\"Я\"))","v":"Я"},{"$f":"IF('[1]ГРАФИК И.Б.НОЯБРЬ '!AW83=\"ОТ\",\"ОТ\",IF(Z32=0,\"В\",\"Я\"))","v":"В"},{"$f":"IF('[1]ГРАФИК И.Б.НОЯБРЬ '!AX83=\"ОТ\",\"ОТ\",IF(AA32=0,\"В\",\"Я\"))","v":"Я"},{"$f":"IF('[1]ГРАФИК И.Б.НОЯБРЬ '!AY83=\"ОТ\",\"ОТ\",IF(AB32=0,\"В\",\"Я\"))","v":"Я"},{"$f":"IF('[1]ГРАФИК И.Б.НОЯБРЬ '!AZ83=\"ОТ\",\"ОТ\",IF(AC32=0,\"В\",\"Я\"))","v":"В"},{"$f":"IF('[1]ГРАФИК И.Б.НОЯБРЬ '!BA83=\"ОТ\",\"ОТ\",IF(AD32=0,\"В\",\"Я\"))","v":"Я"},{"$f":"IF('[1]ГРАФИК И.Б.НОЯБРЬ '!BB83=\"ОТ\",\"ОТ\",IF(AE32=0,\"В\",\"Я\"))","v":"Я"},{"$f":"IF('[1]ГРАФИК И.Б.НОЯБРЬ '!BC83=\"ОТ\",\"ОТ\",IF(AF32=0,\"В\",\"Я\"))","v":"В"},{"$f":"IF('[1]ГРАФИК И.Б.НОЯБРЬ '!BD83=\"ОТ\",\"ОТ\",IF(AG32=0,\"В\",\"Я\"))","v":"Я"},{"$f":"IF('[1]ГРАФИК И.Б.НОЯБРЬ '!BE83=\"ОТ\",\"ОТ\",IF(AH32=0,\"В\",\"Я\"))","v":"Я"},{"$f":"IF('[1]ГРАФИК И.Б.НОЯБРЬ '!BF83=\"ОТ\",\"ОТ\",IF(AI32=0,\"В\",\"Я\"))","v":"В"},{"$f":"IF('[1]ГРАФИК И.Б.НОЯБРЬ '!BG83=\"ОТ\",\"ОТ\",IF(AJ32=0,\"В\",\"Я\"))","v":"Я"}]
[null,null,null,"контролёр-посадчик аттракциона",null,{"$f":"IFERROR(INDEX('[1]ГРАФИК И.Б.НОЯБРЬ '!$AC74:$HF74,1,MATCH(F$10,'[1]ГРАФИК И.Б.НОЯБРЬ '!$AC$19:$HF$19,0)),\"\")","v":"00:00:00"},{"$f":"IFERROR(INDEX('[1]ГРАФИК И.Б.НОЯБРЬ '!$AC74:$HF74,1,MATCH(G$10,'[1]ГРАФИК И.Б.НОЯБРЬ '!$AC$19:$HF$19,0)),\"\")","v":"00:00:00"},{"$f":"IFERROR(INDEX('[1]ГРАФИК И.Б.НОЯБРЬ '!$AC74:$HF74,1,MATCH(H$10,'[1]ГРАФИК И.Б.НОЯБРЬ '!$AC$19:$HF$19,0)),\"\")","v":"00:00:00"},{"$f":"IFERROR(INDEX('[1]ГРАФИК И.Б.НОЯБРЬ '!$AC74:$HF74,1,MATCH(I$10,'[1]ГРАФИК И.Б.НОЯБРЬ '!$AC$19:$HF$19,0)),\"\")","v":"00:00:00"},{"$f":"IFERROR(INDEX('[1]ГРАФИК И.Б.НОЯБРЬ '!$AC74:$HF74,1,MATCH(J$10,'[1]ГРАФИК И.Б.НОЯБРЬ '!$AC$19:$HF$19,0)),\"\")","v":"00:00:00"},{"$f":"IFERROR(INDEX('[1]ГРАФИК И.Б.НОЯБРЬ '!$AC74:$HF74,1,MATCH(K$10,'[1]ГРАФИК И.Б.НОЯБРЬ '!$AC$19:$HF$19,0)),\"\")","v":"00:00:00"},{"$f":"IFERROR(INDEX('[1]ГРАФИК И.Б.НОЯБРЬ '!$AC74:$HF74,1,MATCH(L$10,'[1]ГРАФИК И.Б.НОЯБРЬ '!$AC$19:$HF$19,0)),\"\")","v":"00:00:00"},{"$f":"IFERROR(INDEX('[1]ГРАФИК И.Б.НОЯБРЬ '!$AC74:$HF74,1,MATCH(M$10,'[1]ГРАФИК И.Б.НОЯБРЬ '!$AC$19:$HF$19,0)),\"\")","v":"00:00:00"},{"$f":"IFERROR(INDEX('[1]ГРАФИК И.Б.НОЯБРЬ '!$AC74:$HF74,1,MATCH(N$10,'[1]ГРАФИК И.Б.НОЯБРЬ '!$AC$19:$HF$19,0)),\"\")","v":"00:00:00"},{"$f":"IFERROR(INDEX('[1]ГРАФИК И.Б.НОЯБРЬ '!$AC74:$HF74,1,MATCH(O$10,'[1]ГРАФИК И.Б.НОЯБРЬ '!$AC$19:$HF$19,0)),\"\")","v":"00:00:00"},{"$f":"IFERROR(INDEX('[1]ГРАФИК И.Б.НОЯБРЬ '!$AC74:$HF74,1,MATCH(P$10,'[1]ГРАФИК И.Б.НОЯБРЬ '!$AC$19:$HF$19,0)),\"\")","v":"00:00:00"},{"$f":"IFERROR(INDEX('[1]ГРАФИК И.Б.НОЯБРЬ '!$AC74:$HF74,1,MATCH(Q$10,'[1]ГРАФИК И.Б.НОЯБРЬ '!$AC$19:$HF$19,0)),\"\")","v":"00:00:00"},{"$f":"IFERROR(INDEX('[1]ГРАФИК И.Б.НОЯБРЬ '!$AC74:$HF74,1,MATCH(R$10,'[1]ГРАФИК И.Б.НОЯБРЬ '!$AC$19:$HF$19,0)),\"\")","v":"00:00:00"},{"$f":"IFERROR(INDEX('[1]ГРАФИК И.Б.НОЯБРЬ '!$AC74:$HF74,1,MATCH(S$10,'[1]ГРАФИК И.Б.НОЯБРЬ '!$AC$19:$HF$19,0)),\"\")","v":"00:00:00"},{"$f":"IFERROR(INDEX('[1]ГРАФИК И.Б.НОЯБРЬ '!$AC74:$HF74,1,MATCH(T$10,'[1]ГРАФИК И.Б.НОЯБРЬ '!$AC$19:$HF$19,0)),\"\")","v":"00:00:00"},{"$f":"IFERROR(INDEX('[1]ГРАФИК И.Б.НОЯБРЬ '!$AC74:$HF74,1,MATCH(U$10,'[1]ГРАФИК И.Б.НОЯБРЬ '!$AC$19:$HF$19,0)),\"\")","v":""},{"$f":"IFERROR(INDEX('[1]ГРАФИК И.Б.НОЯБРЬ '!$AC74:$HF74,1,MATCH(V$10,'[1]ГРАФИК И.Б.НОЯБРЬ '!$AC$19:$HF$19,0)),\"\")","v":"00:00:00"},{"$f":"IFERROR(INDEX('[1]ГРАФИК И.Б.НОЯБРЬ '!$AC74:$HF74,1,MATCH(W$10,'[1]ГРАФИК И.Б.НОЯБРЬ '!$AC$19:$HF$19,0)),\"\")","v":"00:00:00"},{"$f":"IFERROR(INDEX('[1]ГРАФИК И.Б.НОЯБРЬ '!$AC74:$HF74,1,MATCH(X$10,'[1]ГРАФИК И.Б.НОЯБРЬ '!$AC$19:$HF$19,0)),\"\")","v":"00:00:00"},{"$f":"IFERROR(INDEX('[1]ГРАФИК И.Б.НОЯБРЬ '!$AC74:$HF74,1,MATCH(Y$10,'[1]ГРАФИК И.Б.НОЯБРЬ '!$AC$19:$HF$19,0)),\"\")","v":"00:00:00"},{"$f":"IFERROR(INDEX('[1]ГРАФИК И.Б.НОЯБРЬ '!$AC74:$HF74,1,MATCH(Z$10,'[1]ГРАФИК И.Б.НОЯБРЬ '!$AC$19:$HF$19,0)),\"\")","v":"00:00:00"},{"$f":"IFERROR(INDEX('[1]ГРАФИК И.Б.НОЯБРЬ '!$AC74:$HF74,1,MATCH(AA$10,'[1]ГРАФИК И.Б.НОЯБРЬ '!$AC$19:$HF$19,0)),\"\")","v":"00:00:00"},{"$f":"IFERROR(INDEX('[1]ГРАФИК И.Б.НОЯБРЬ '!$AC74:$HF74,1,MATCH(AB$10,'[1]ГРАФИК И.Б.НОЯБРЬ '!$AC$19:$HF$19,0)),\"\")","v":"00:00:00"},{"$f":"IFERROR(INDEX('[1]ГРАФИК И.Б.НОЯБРЬ '!$AC74:$HF74,1,MATCH(AC$10,'[1]ГРАФИК И.Б.НОЯБРЬ '!$AC$19:$HF$19,0)),\"\")","v":"00:00:00"},{"$f":"IFERROR(INDEX('[1]ГРАФИК И.Б.НОЯБРЬ '!$AC74:$HF74,1,MATCH(AD$10,'[1]ГРАФИК И.Б.НОЯБРЬ '!$AC$19:$HF$19,0)),\"\")","v":"00:00:00"},{"$f":"IFERROR(INDEX('[1]ГРАФИК И.Б.НОЯБРЬ '!$AC74:$HF74,1,MATCH(AE$10,'[1]ГРАФИК И.Б.НОЯБРЬ '!$AC$19:$HF$19,0)),\"\")","v":"00:00:00"},{"$f":"IFERROR(INDEX('[1]ГРАФИК И.Б.НОЯБРЬ '!$AC74:$HF74,1,MATCH(AF$10,'[1]ГРАФИК И.Б.НОЯБРЬ '!$AC$19:$HF$19,0)),\"\")","v":"00:00:00"},{"$f":"IFERROR(INDEX('[1]ГРАФИК И.Б.НОЯБРЬ '!$AC74:$HF74,1,MATCH(AG$10,'[1]ГРАФИК И.Б.НОЯБРЬ '!$AC$19:$HF$19,0)),\"\")","v":"00:00:00"},{"$f":"IFERROR(INDEX('[1]ГРАФИК И.Б.НОЯБРЬ '!$AC74:$HF74,1,MATCH(AH$10,'[1]ГРАФИК И.Б.НОЯБРЬ '!$AC$19:$HF$19,0)),\"\")","v":"00:00:00"},{"$f":"IFERROR(INDEX('[1]ГРАФИК И.Б.НОЯБРЬ '!$AC74:$HF74,1,MATCH(AI$10,'[1]ГРАФИК И.Б.НОЯБРЬ '!$AC$19:$HF$19,0)),\"\")","v":"00:00:00"},{"$f":"IFERROR(INDEX('[1]ГРАФИК И.Б.НОЯБРЬ '!$AC74:$HF74,1,MATCH(AJ$10,'[1]ГРАФИК И.Б.НОЯБРЬ '!$AC$19:$HF$19,0)),\"\")","v":"00:00:00"},{"$f":"IFERROR(INDEX('[1]ГРАФИК И.Б.НОЯБРЬ '!$AC74:$HF74,1,MATCH(AK$10,'[1]ГРАФИК И.Б.НОЯБРЬ '!$AC$19:$HF$19,0)),\"\")","v":""},{"$f":"COUNTIF($F34:$AK34,\">0\")","v":0},{"$f":"SUM($F$34:$AK$34)","v":0},null,null,null,null,null,null,null,null,null,null,null,null,null,null,null,null,null,30]
[null,null,null,null,null,{"$f":"IF('[1]ГРАФИК И.Б.НОЯБРЬ '!AC71=\"ОТ\",\"ОТ\",IF(F34=0,\"В\",\"Я\"))","v":"В"},{"$f":"IF('[1]ГРАФИК И.Б.НОЯБРЬ '!AD71=\"ОТ\",\"ОТ\",IF(G34=0,\"В\",\"Я\"))","v":"В"},{"$f":"IF('[1]ГРАФИК И.Б.НОЯБРЬ '!AE71=\"ОТ\",\"ОТ\",IF(H34=0,\"В\",\"Я\"))","v":"В"},{"$f":"IF('[1]ГРАФИК И.Б.НОЯБРЬ '!AF71=\"ОТ\",\"ОТ\",IF(I34=0,\"В\",\"Я\"))","v":"В"},{"$f":"IF('[1]ГРАФИК И.Б.НОЯБРЬ '!AG71=\"ОТ\",\"ОТ\",IF(J34=0,\"В\",\"Я\"))","v":"В"},{"$f":"IF('[1]ГРАФИК И.Б.НОЯБРЬ '!AH71=\"ОТ\",\"ОТ\",IF(K34=0,\"В\",\"Я\"))","v":"В"},{"$f":"IF('[1]ГРАФИК И.Б.НОЯБРЬ '!AI71=\"ОТ\",\"ОТ\",IF(L34=0,\"В\",\"Я\"))","v":"В"},{"$f":"IF('[1]ГРАФИК И.Б.НОЯБРЬ '!AJ71=\"ОТ\",\"ОТ\",IF(M34=0,\"В\",\"Я\"))","v":"В"},{"$f":"IF('[1]ГРАФИК И.Б.НОЯБРЬ '!AK71=\"ОТ\",\"ОТ\",IF(N34=0,\"В\",\"Я\"))","v":"В"},{"$f":"IF('[1]ГРАФИК И.Б.НОЯБРЬ '!AL71=\"ОТ\",\"ОТ\",IF(O34=0,\"В\",\"Я\"))","v":"В"},{"$f":"IF('[1]ГРАФИК И.Б.НОЯБРЬ '!AM71=\"ОТ\",\"ОТ\",IF(P34=0,\"В\",\"Я\"))","v":"В"},{"$f":"IF('[1]ГРАФИК И.Б.НОЯБРЬ '!AN71=\"ОТ\",\"ОТ\",IF(Q34=0,\"В\",\"Я\"))","v":"В"},{"$f":"IF('[1]ГРАФИК И.Б.НОЯБРЬ '!AO71=\"ОТ\",\"ОТ\",IF(R34=0,\"В\",\"Я\"))","v":"В"},{"$f":"IF('[1]ГРАФИК И.Б.НОЯБРЬ '!AP71=\"ОТ\",\"ОТ\",IF(S34=0,\"В\",\"Я\"))","v":"В"},{"$f":"IF('[1]ГРАФИК И.Б.НОЯБРЬ '!AQ71=\"ОТ\",\"ОТ\",IF(T34=0,\"В\",\"Я\"))","v":"В"}," ",{"$f":"IF('[1]ГРАФИК И.Б.НОЯБРЬ '!AS71=\"ОТ\",\"ОТ\",IF(V34=0,\"В\",\"Я\"))","v":"В"},{"$f":"IF('[1]ГРАФИК И.Б.НОЯБРЬ '!AT71=\"ОТ\",\"ОТ\",IF(W34=0,\"В\",\"Я\"))","v":"В"},{"$f":"IF('[1]ГРАФИК И.Б.НОЯБРЬ '!AU71=\"ОТ\",\"ОТ\",IF(X34=0,\"В\",\"Я\"))","v":"В"},{"$f":"IF('[1]ГРАФИК И.Б.НОЯБРЬ '!AV71=\"ОТ\",\"ОТ\",IF(Y34=0,\"В\",\"Я\"))","v":"В"},{"$f":"IF('[1]ГРАФИК И.Б.НОЯБРЬ '!AW71=\"ОТ\",\"ОТ\",IF(Z34=0,\"В\",\"Я\"))","v":"В"},{"$f":"IF('[1]ГРАФИК И.Б.НОЯБРЬ '!AX71=\"ОТ\",\"ОТ\",IF(AA34=0,\"В\",\"Я\"))","v":"В"},{"$f":"IF('[1]ГРАФИК И.Б.НОЯБРЬ '!AY71=\"ОТ\",\"ОТ\",IF(AB34=0,\"В\",\"Я\"))","v":"В"},{"$f":"IF('[1]ГРАФИК И.Б.НОЯБРЬ '!AZ71=\"ОТ\",\"ОТ\",IF(AC34=0,\"В\",\"Я\"))","v":"В"},{"$f":"IF('[1]ГРАФИК И.Б.НОЯБРЬ '!BA71=\"ОТ\",\"ОТ\",IF(AD34=0,\"В\",\"Я\"))","v":"В"},{"$f":"IF('[1]ГРАФИК И.Б.НОЯБРЬ '!BB71=\"ОТ\",\"ОТ\",IF(AE34=0,\"В\",\"Я\"))","v":"В"},{"$f":"IF('[1]ГРАФИК И.Б.НОЯБРЬ '!BC71=\"ОТ\",\"ОТ\",IF(AF34=0,\"В\",\"Я\"))","v":"В"},{"$f":"IF('[1]ГРАФИК И.Б.НОЯБРЬ '!BD71=\"ОТ\",\"ОТ\",IF(AG34=0,\"В\",\"Я\"))","v":"В"},{"$f":"IF('[1]ГРАФИК И.Б.НОЯБРЬ '!BE71=\"ОТ\",\"ОТ\",IF(AH34=0,\"В\",\"Я\"))","v":"В"},{"$f":"IF('[1]ГРАФИК И.Б.НОЯБРЬ '!BF71=\"ОТ\",\"ОТ\",IF(AI34=0,\"В\",\"Я\"))","v":"В"},{"$f":"IF('[1]ГРАФИК И.Б.НОЯБРЬ '!BG71=\"ОТ\",\"ОТ\",IF(AJ34=0,\"В\",\"Я\"))","v":"В"}]
[null,"101",null,"контролёр-посадчик аттракциона",null,{"$f":"IFERROR(INDEX('[1]ГРАФИК И.Б.НОЯБРЬ '!$AC80:$HF80,1,MATCH(F$10,'[1]ГРАФИК И.Б.НОЯБРЬ '!$AC$19:$HF$19,0)),\"\")","v":"00:00:00"},{"$f":"IFERROR(INDEX('[1]ГРАФИК И.Б.НОЯБРЬ '!$AC80:$HF80,1,MATCH(G$10,'[1]ГРАФИК И.Б.НОЯБРЬ '!$AC$19:$HF$19,0)),\"\")","v":"00:00:00"},{"$f":"IFERROR(INDEX('[1]ГРАФИК И.Б.НОЯБРЬ '!$AC80:$HF80,1,MATCH(H$10,'[1]ГРАФИК И.Б.НОЯБРЬ '!$AC$19:$HF$19,0)),\"\")","v":"00:00:00"},{"$f":"IFERROR(INDEX('[1]ГРАФИК И.Б.НОЯБРЬ '!$AC80:$HF80,1,MATCH(I$10,'[1]ГРАФИК И.Б.НОЯБРЬ '!$AC$19:$HF$19,0)),\"\")","v":"00:00:00"},{"$f":"IFERROR(INDEX('[1]ГРАФИК И.Б.НОЯБРЬ '!$AC80:$HF80,1,MATCH(J$10,'[1]ГРАФИК И.Б.НОЯБРЬ '!$AC$19:$HF$19,0)),\"\")","v":"00:00:00"},{"$f":"IFERROR(INDEX('[1]ГРАФИК И.Б.НОЯБРЬ '!$AC80:$HF80,1,MATCH(K$10,'[1]ГРАФИК И.Б.НОЯБРЬ '!$AC$19:$HF$19,0)),\"\")","v":"00:00:00"},{"$f":"IFERROR(INDEX('[1]ГРАФИК И.Б.НОЯБРЬ '!$AC80:$HF80,1,MATCH(L$10,'[1]ГРАФИК И.Б.НОЯБРЬ '!$AC$19:$HF$19,0)),\"\")","v":"00:00:00"},{"$f":"IFERROR(INDEX('[1]ГРАФИК И.Б.НОЯБРЬ '!$AC80:$HF80,1,MATCH(M$10,'[1]ГРАФИК И.Б.НОЯБРЬ '!$AC$19:$HF$19,0)),\"\")","v":"00:00:00"},{"$f":"IFERROR(INDEX('[1]ГРАФИК И.Б.НОЯБРЬ '!$AC80:$HF80,1,MATCH(N$10,'[1]ГРАФИК И.Б.НОЯБРЬ '!$AC$19:$HF$19,0)),\"\")","v":"00:00:00"},{"$f":"IFERROR(INDEX('[1]ГРАФИК И.Б.НОЯБРЬ '!$AC80:$HF80,1,MATCH(O$10,'[1]ГРАФИК И.Б.НОЯБРЬ '!$AC$19:$HF$19,0)),\"\")","v":"00:00:00"},{"$f":"IFERROR(INDEX('[1]ГРАФИК И.Б.НОЯБРЬ '!$AC80:$HF80,1,MATCH(P$10,'[1]ГРАФИК И.Б.НОЯБРЬ '!$AC$19:$HF$19,0)),\"\")","v":"00:00:00"},{"$f":"IFERROR(INDEX('[1]ГРАФИК И.Б.НОЯБРЬ '!$AC80:$HF80,1,MATCH(Q$10,'[1]ГРАФИК И.Б.НОЯБРЬ '!$AC$19:$HF$19,0)),\"\")","v":"00:00:00"},{"$f":"IFERROR(INDEX('[1]ГРАФИК И.Б.НОЯБРЬ '!$AC80:$HF80,1,MATCH(R$10,'[1]ГРАФИК И.Б.НОЯБРЬ '!$AC$19:$HF$19,0)),\"\")","v":"00:00:00"},{"$f":"IFERROR(INDEX('[1]ГРАФИК И.Б.НОЯБРЬ '!$AC80:$HF80,1,MATCH(S$10,'[1]ГРАФИК И.Б.НОЯБРЬ '!$AC$19:$HF$19,0)),\"\")","v":"00:00:00"},{"$f":"IFERROR(INDEX('[1]ГРАФИК И.Б.НОЯБРЬ '!$AC80:$HF80,1,MATCH(T$10,'[1]ГРАФИК И.Б.НОЯБРЬ '!$AC$19:$HF$19,0)),\"\")","v":"00:00:00"},{"$f":"IFERROR(INDEX('[1]ГРАФИК И.Б.НОЯБРЬ '!$AC80:$HF80,1,MATCH(U$10,'[1]ГРАФИК И.Б.НОЯБРЬ '!$AC$19:$HF$19,0)),\"\")","v":""},{"$f":"IFERROR(INDEX('[1]ГРАФИК И.Б.НОЯБРЬ '!$AC80:$HF80,1,MATCH(V$10,'[1]ГРАФИК И.Б.НОЯБРЬ '!$AC$19:$HF$19,0)),\"\")","v":"00:00:00"},{"$f":"IFERROR(INDEX('[1]ГРАФИК И.Б.НОЯБРЬ '!$AC80:$HF80,1,MATCH(W$10,'[1]ГРАФИК И.Б.НОЯБРЬ '!$AC$19:$HF$19,0)),\"\")","v":"00:00:00"},{"$f":"IFERROR(INDEX('[1]ГРАФИК И.Б.НОЯБРЬ '!$AC80:$HF80,1,MATCH(X$10,'[1]ГРАФИК И.Б.НОЯБРЬ '!$AC$19:$HF$19,0)),\"\")","v":"00:00:00"},{"$f":"IFERROR(INDEX('[1]ГРАФИК И.Б.НОЯБРЬ '!$AC80:$HF80,1,MATCH(Y$10,'[1]ГРАФИК И.Б.НОЯБРЬ '!$AC$19:$HF$19,0)),\"\")","v":"00:00:00"},{"$f":"IFERROR(INDEX('[1]ГРАФИК И.Б.НОЯБРЬ '!$AC80:$HF80,1,MATCH(Z$10,'[1]ГРАФИК И.Б.НОЯБРЬ '!$AC$19:$HF$19,0)),\"\")","v":"00:00:00"},{"$f":"IFERROR(INDEX('[1]ГРАФИК И.Б.НОЯБРЬ '!$AC80:$HF80,1,MATCH(AA$10,'[1]ГРАФИК И.Б.НОЯБРЬ '!$AC$19:$HF$19,0)),\"\")","v":"00:00:00"},{"$f":"IFERROR(INDEX('[1]ГРАФИК И.Б.НОЯБРЬ '!$AC80:$HF80,1,MATCH(AB$10,'[1]ГРАФИК И.Б.НОЯБРЬ '!$AC$19:$HF$19,0)),\"\")","v":"00:00:00"},{"$f":"IFERROR(INDEX('[1]ГРАФИК И.Б.НОЯБРЬ '!$AC80:$HF80,1,MATCH(AC$10,'[1]ГРАФИК И.Б.НОЯБРЬ '!$AC$19:$HF$19,0)),\"\")","v":"00:00:00"},{"$f":"IFERROR(INDEX('[1]ГРАФИК И.Б.НОЯБРЬ '!$AC80:$HF80,1,MATCH(AD$10,'[1]ГРАФИК И.Б.НОЯБРЬ '!$AC$19:$HF$19,0)),\"\")","v":"00:00:00"},{"$f":"IFERROR(INDEX('[1]ГРАФИК И.Б.НОЯБРЬ '!$AC80:$HF80,1,MATCH(AE$10,'[1]ГРАФИК И.Б.НОЯБРЬ '!$AC$19:$HF$19,0)),\"\")","v":"00:00:00"},{"$f":"IFERROR(INDEX('[1]ГРАФИК И.Б.НОЯБРЬ '!$AC80:$HF80,1,MATCH(AF$10,'[1]ГРАФИК И.Б.НОЯБРЬ '!$AC$19:$HF$19,0)),\"\")","v":"00:00:00"},{"$f":"IFERROR(INDEX('[1]ГРАФИК И.Б.НОЯБРЬ '!$AC80:$HF80,1,MATCH(AG$10,'[1]ГРАФИК И.Б.НОЯБРЬ '!$AC$19:$HF$19,0)),\"\")","v":"00:00:00"},{"$f":"IFERROR(INDEX('[1]ГРАФИК И.Б.НОЯБРЬ '!$AC80:$HF80,1,MATCH(AH$10,'[1]ГРАФИК И.Б.НОЯБРЬ '!$AC$19:$HF$19,0)),\"\")","v":"00:00:00"},{"$f":"IFERROR(INDEX('[1]ГРАФИК И.Б.НОЯБРЬ '!$AC80:$HF80,1,MATCH(AI$10,'[1]ГРАФИК И.Б.НОЯБРЬ '!$AC$19:$HF$19,0)),\"\")","v":"00:00:00"},{"$f":"IFERROR(INDEX('[1]ГРАФИК И.Б.НОЯБРЬ '!$AC80:$HF80,1,MATCH(AJ$10,'[1]ГРАФИК И.Б.НОЯБРЬ '!$AC$19:$HF$19,0)),\"\")","v":"00:00:00"},{"$f":"IFERROR(INDEX('[1]ГРАФИК И.Б.НОЯБРЬ '!$AC80:$HF80,1,MATCH(AK$10,'[1]ГРАФИК И.Б.НОЯБРЬ '!$AC$19:$HF$19,0)),\"\")","v":""},{"$f":"COUNTIF($F36:$AK36,\">0\")","v":0},{"$f":"SUM($F$36:$AK$36)","v":0},null,{"$f":"SUM(#REF!)","v":{"$error":"#REF!"}},{"$f":"COUNTIF($F36:$AK36,\"=12\")+COUNTIF(#REF!,\"=8\")*2","v":{"$error":"#REF!"}},{"$f":"SUMIF($F$12:$AK$12,\"ЧП\",$F36:$AK36)","v":0},{"$f":"SUMPRODUCT(IF(ISNUMBER(F36:AK36),(F36:AK36>8)*(F36:AK36-8),0))","v":0},{"$f":"SUMIF(#REF!,\"в\",$F36:$AK36)","v":{"$error":"#REF!"}},{"$f":"IF($AN36>$BF$7,$AN36-$BF$7,\"–\")","v":"–"},{"$f":"SUM($AV36:$BD36)","v":0},{"$f":"COUNTIF($F36:$AK36,\"=От\")","v":0},{"$f":"COUNTIF($F36:$AK36,\"=Б\")","v":0},{"$f":"COUNTIF($F36:$AK36,\"=А\")","v":0},{"$f":"COUNTIF($F36:$AK36,\"=Ор\")","v":0},{"$f":"COUNTIF($F36:$AK36,\"=У\")","v":0},{"$f":"COUNTIF($F36:$AK36,\"=Ч\")","v":0},{"$f":"COUNTIF($F36:$AK36,\"=Пр\")","v":0},{"$f":"COUNTIF($F36:$AK36,\"=Ож\")","v":0},{"$f":"COUNTIF($F36:$AK36,\"=К\")","v":0},31]
[null,null,null,null,null,{"$f":"IF('[1]ГРАФИК И.Б.НОЯБРЬ '!AC77=\"ОТ\",\"ОТ\",IF(F36=0,\"В\",\"Я\"))","v":"В"},{"$f":"IF('[1]ГРАФИК И.Б.НОЯБРЬ '!AD77=\"ОТ\",\"ОТ\",IF(G36=0,\"В\",\"Я\"))","v":"В"},{"$f":"IF('[1]ГРАФИК И.Б.НОЯБРЬ '!AE77=\"ОТ\",\"ОТ\",IF(H36=0,\"В\",\"Я\"))","v":"В"},{"$f":"IF('[1]ГРАФИК И.Б.НОЯБРЬ '!AF77=\"ОТ\",\"ОТ\",IF(I36=0,\"В\",\"Я\"))","v":"В"},{"$f":"IF('[1]ГРАФИК И.Б.НОЯБРЬ '!AG77=\"ОТ\",\"ОТ\",IF(J36=0,\"В\",\"Я\"))","v":"В"},{"$f":"IF('[1]ГРАФИК И.Б.НОЯБРЬ '!AH77=\"ОТ\",\"ОТ\",IF(K36=0,\"В\",\"Я\"))","v":"В"},{"$f":"IF('[1]ГРАФИК И.Б.НОЯБРЬ '!AI77=\"ОТ\",\"ОТ\",IF(L36=0,\"В\",\"Я\"))","v":"В"},{"$f":"IF('[1]ГРАФИК И.Б.НОЯБРЬ '!AJ77=\"ОТ\",\"ОТ\",IF(M36=0,\"В\",\"Я\"))","v":"В"},{"$f":"IF('[1]ГРАФИК И.Б.НОЯБРЬ '!AK77=\"ОТ\",\"ОТ\",IF(N36=0,\"В\",\"Я\"))","v":"В"},{"$f":"IF('[1]ГРАФИК И.Б.НОЯБРЬ '!AL77=\"ОТ\",\"ОТ\",IF(O36=0,\"В\",\"Я\"))","v":"В"},{"$f":"IF('[1]ГРАФИК И.Б.НОЯБРЬ '!AM77=\"ОТ\",\"ОТ\",IF(P36=0,\"В\",\"Я\"))","v":"В"},{"$f":"IF('[1]ГРАФИК И.Б.НОЯБРЬ '!AN77=\"ОТ\",\"ОТ\",IF(Q36=0,\"В\",\"Я\"))","v":"В"},{"$f":"IF('[1]ГРАФИК И.Б.НОЯБРЬ '!AO77=\"ОТ\",\"ОТ\",IF(R36=0,\"В\",\"Я\"))","v":"В"},{"$f":"IF('[1]ГРАФИК И.Б.НОЯБРЬ '!AP77=\"ОТ\",\"ОТ\",IF(S36=0,\"В\",\"Я\"))","v":"В"},{"$f":"IF('[1]ГРАФИК И.Б.НОЯБРЬ '!AQ77=\"ОТ\",\"ОТ\",IF(T36=0,\"В\",\"Я\"))","v":"В"}," ",{"$f":"IF('[1]ГРАФИК И.Б.НОЯБРЬ '!AS77=\"ОТ\",\"ОТ\",IF(V36=0,\"В\",\"Я\"))","v":"В"},{"$f":"IF('[1]ГРАФИК И.Б.НОЯБРЬ '!AT77=\"ОТ\",\"ОТ\",IF(W36=0,\"В\",\"Я\"))","v":"В"},{"$f":"IF('[1]ГРАФИК И.Б.НОЯБРЬ '!AU77=\"ОТ\",\"ОТ\",IF(X36=0,\"В\",\"Я\"))","v":"В"},{"$f":"IF('[1]ГРАФИК И.Б.НОЯБРЬ '!AV77=\"ОТ\",\"ОТ\",IF(Y36=0,\"В\",\"Я\"))","v":"В"},{"$f":"IF('[1]ГРАФИК И.Б.НОЯБРЬ '!AW77=\"ОТ\",\"ОТ\",IF(Z36=0,\"В\",\"Я\"))","v":"В"},{"$f":"IF('[1]ГРАФИК И.Б.НОЯБРЬ '!AX77=\"ОТ\",\"ОТ\",IF(AA36=0,\"В\",\"Я\"))","v":"В"},{"$f":"IF('[1]ГРАФИК И.Б.НОЯБРЬ '!AY77=\"ОТ\",\"ОТ\",IF(AB36=0,\"В\",\"Я\"))","v":"В"},{"$f":"IF('[1]ГРАФИК И.Б.НОЯБРЬ '!AZ77=\"ОТ\",\"ОТ\",IF(AC36=0,\"В\",\"Я\"))","v":"В"},{"$f":"IF('[1]ГРАФИК И.Б.НОЯБРЬ '!BA77=\"ОТ\",\"ОТ\",IF(AD36=0,\"В\",\"Я\"))","v":"В"},{"$f":"IF('[1]ГРАФИК И.Б.НОЯБРЬ '!BB77=\"ОТ\",\"ОТ\",IF(AE36=0,\"В\",\"Я\"))","v":"В"},{"$f":"IF('[1]ГРАФИК И.Б.НОЯБРЬ '!BC77=\"ОТ\",\"ОТ\",IF(AF36=0,\"В\",\"Я\"))","v":"В"},{"$f":"IF('[1]ГРАФИК И.Б.НОЯБРЬ '!BD77=\"ОТ\",\"ОТ\",IF(AG36=0,\"В\",\"Я\"))","v":"В"},{"$f":"IF('[1]ГРАФИК И.Б.НОЯБРЬ '!BE77=\"ОТ\",\"ОТ\",IF(AH36=0,\"В\",\"Я\"))","v":"В"},{"$f":"IF('[1]ГРАФИК И.Б.НОЯБРЬ '!BF77=\"ОТ\",\"ОТ\",IF(AI36=0,\"В\",\"Я\"))","v":"В"},{"$f":"IF('[1]ГРАФИК И.Б.НОЯБРЬ '!BG77=\"ОТ\",\"ОТ\",IF(AJ36=0,\"В\",\"Я\"))","v":"В"}]
[null,null,null,null,null,{"$f":"COUNTIF(F16:F33,\"Я\")","v":5},{"$f":"COUNTIF(G16:G33,\"Я\")","v":5},6,4,5,6,6,5,5,7,4,7,5,6,5,0,6,4,6,5,5,5,6,3,7,4,6,4,7,3,6,null,null,{"$f":"SUM($F$38:$AJ$38)","v":158}]
[null,null,null,null,null,{"$f":"SUM(F16,F$18,F$20,F$22,F$24,F$26,F$28,F$30,F$32)","v":1.7916666666666665},{"$f":"SUM(G16,G$18,G$20,G$22,G$24,G$26,G$28,G$30,G$32)","v":1.8749999999999998},2.0416666666666665,1.75,1.7499999999999998,2.2916666666666665,2.1666666666666665,1.75,1.5833333333333335,2.583333333333333,1.5416666666666665,2.4999999999999996,1.8749999999999998,2.2916666666666665,1.7916666666666665,0,2.333333333333333,1.2916666666666667,2.2916666666666665,1.6249999999999998,1.8749999999999996,1.625,2.208333333333333,1,2.3749999999999996,1.4166666666666667,2.083333333333333,1.333333333333333,2.5416666666666665,1,2.083333333333333,null,null,{"$f":"SUM(H39:AL39)","v":53.000000000000007}]
[]
[]
[]
[null,null,null,null,null,null,null,null,null,null,null,null,null,null,null,null,null,null,null,null,null,null,null,null,null,null,null,null,null,null,"в ячейках жёлтого и зелёного цвета должно стать ОТ"]
[]
[]
[null,null,null,null,null,null,null,null,null,null,null,null,null,null,null,null,null,null,null,null,null,null,null,null,null,null,"Помогите сделать так, чтобы в ячейку кроме Я и В выходил ОТ (отпуск) из графика."]
[]
[null,null,null,"2020-11-01"]
[null,null,null,2020]
[null,null,null,11]
[null,null,null,1,2,3,4,5,6,7,8,9,10,11,12,13,14,15,16,17,18,19,20,21,22,23,24,25,26,27,28,29,30,31]
[]
[null,null,null,null,null,null,null,null,null,null,null,null,null,null,null,null,null,null,null,null,null,null,null,null,null,null,null,null,null,null,null,null,null,null,null,null,null,null,"2020-01-01"]
[null,null,null,null,null,null,null,null,null,null,null,null,null,null,null,null,null,null,null,null,null,null,null,null,null,null,null,null,null,null,null,null,null,null,null,null,null,null,"2020-01-02"]
[null,null,null,null,null,null,null,null,null,null,null,null,null,null,null,null,null,null,null,null,null,null,null,null,null,null,null,null,null,null,null,null,null,null,null,null,null,null,"2020-01-03"]
[null,null,null,null,null,null,null,null,null,null,null,null,null,null,null,null,null,null,null,null,null,null,null,null,null,null,null,null,null,null,null,null,null,null,null,null,null,null,"2020-01-04"]
[null,null,null,null,null,null,null,null,null,null,null,null,null,null,null,null,null,null,null,null,null,null,null,null,null,null,null,null,null,null,null,null,null,null,null,null,null,null,"2020-01-05"]
[null,null,null,null,null,null,null,null,null,null,null,null,null,null,null,null,null,null,null,null,null,null,null,null,null,null,null,null,null,null,null,null,null,null,null,null,null,null,"2020-01-06"]
[null,null,null,null,null,null,null,null,null,null,null,null,null,null,null,null,null,null,null,null,null,null,null,null,null,null,null,null,null,null,null,null,null,null,null,null,null,null,"2020-01-07"]
[null,null,null,null,null,null,null,null,null,null,null,null,null,null,null,null,null,null,null,null,null,null,null,null,null,null,null,null,null,null,null,null,null,null,null,null,null,null,"2020-01-08"]
[null,null,null,null,null,null,null,null,null,null,null,null,null,null,null,null,null,null,null,null,null,null,null,null,null,null,null,null,null,null,null,null,null,null,null,null,null,null,"2020-02-23"]
[null,null,null,null,null,null,null,null,null,null,null,null,null,null,null,null,null,null,null,null,null,null,null,null,null,null,null,null,null,null,null,null,null,null,null,null,null,null,"2020-03-08"]
[null,null,null,null,null,null,null,null,null,null,null,null,null,null,null,null,null,null,null,null,null,null,null,null,null,null,null,null,null,null,null,null,null,null,null,null,null,null,"2020-05-01"]
[]
[]
[null,null,null,null,null,null,null,null,null,null,null,null,null,null,null,null,null,null,null,null,null,null,null,null,null,null,null,null,null,null,null,null,null,null,null,null,null,null,"2020-05-09"]
[]
[null,null,null,null,null,null,null,null,null,null,null,null,null,null,null,null,null,null,null,null,null,null,null,null,null,null,null,null,null,null,null,null,null,null,null,null,null,null,"2020-06-12"]
[null,null,null,null,null,null,null,null,null,null,null,null,null,null,null,null,null,null,null,null,null,null,null,null,null,null,null,null,null,null,null,null,null,null,null,null,null,null,"2020-11-04"]